Workbook

Sheet Ведомственная 2008 (hidden)
B1: Приложение 13
B2: к Закону Московской области №
B3: "О внесении изменений в Закон Московской области
B4: "О бюджете Московской области на 2008 год"
B6: Приложение 19
B7: к Закону Московской области №
B8: "О бюджете Московской области на 2008 год"
B11: Ведомственная структура расходов
B12: бюджета Московской области на 2008 год
H14: (тыс. рублей)
B15: Наименования | C15: Код | D15: Рз | E15: ПР | F15: ЦСР | G15: ВР | H15: Сумма
A17: 0 | B17: Московская областная Дума | C17: 001 | H17: =H18+H42+H47+H52 -> 926254
A18: 1 | B18: Общегосударственные вопросы | C18: 001 | D18: 01 | H18: =H19+H34 -> 818155
A19: 103 | B19: Функционирование законодательных (представительных) органов государственной власти и представительных органов муниципальных образований | C19: 001 | D19: 01 | E19: 03 | H19: =H20+H27 -> 806070
A20: 103002 | B20: Руководство и управление в сфере установленных функций органов государственной власти субъектов Российской Федерации и органов местного самоуправления | C20: 001 | D20: 01 | E20: 03 | F20: 002 00 00 | H20: =H21+H23+H25 -> 797591
A21: 10300204 | B21: Центральный аппарат | C21: 001 | D21: 01 | E21: 03 | F21: 002 04 00 | H21: =H22 -> 709475
A22: 10300204012 | B22: Выполнение функций государственными органами | C22: 001 | D22: 01 | E22: 03 | F22: 002 04 00 | G22: 012 | H22: 709475
A23: 10300209 | B23: Председатель законодательного (представительного) органа государственной власти субъекта Российской Федерации | C23: 001 | D23: 01 | E23: 03 | F23: 002 09 00 | H23: =H24 -> 2381
A24: 10300209012 | B24: Выполнение функций государственными органами | C24: 001 | D24: 01 | E24: 03 | F24: 002 09 00 | G24: 012 | H24: 2381
A25: 10300210 | B25: Депутаты (члены) законодательного (представительного) органа государственной власти субъекта Российской Федерации | C25: 001 | D25: 01 | E25: 03 | F25: 002 10 00 | H25: =H26 -> 85735
A26: 10300210012 | B26: Выполнение функций государственными органами | C26: 001 | D26: 01 | E26: 03 | F26: 002 10 00 | G26: 012 | H26: 85735
A27: 103803 | B27: Расходы на страхование | C27: 001 | D27: 01 | E27: 03 | F27: 803 00 00 | H27: =H28+H30+H32 -> 8479
A28: 1038030001 | B28: Расходы на страхование имущества, находящегося в государственной собственности Московской области | C28: 001 | D28: 01 | E28: 03 | F28: 803 00 01 | H28: =H29 -> 7300
A29: 1038030001013 | B29: Прочие расходы | C29: 001 | D29: 01 | E29: 03 | F29: 803 00 01 | G29: 013 | H29: 7300
A30: 1038030003 | B30: Расходы на обязательное страхование гражданской ответственности владельцев транспортных средств | C30: 001 | D30: 01 | E30: 03 | F30: 803 00 03 | H30: =H31 -> 1055
A31: 1038030003013 | B31: Прочие расходы | C31: 001 | D31: 01 | E31: 03 | F31: 803 00 03 | G31: 013 | H31: 1055
A32: 1038030004 | B32: Расходы на добровольное страхование гражданской ответственности владельцев транспортных средств | C32: 001 | D32: 01 | E32: 03 | F32: 803 00 04 | H32: =H33 -> 124
A33: 1038030004013 | B33: Прочие расходы | C33: 001 | D33: 01 | E33: 03 | F33: 803 00 04 | G33: 013 | H33: 124
A34: 114 | B34: Другие общегосударственные вопросы | C34: 001 | D34: 01 | E34: 14 | H34: =H35 -> 12085
A35: 114001 | B35: Руководство и управление в сфере установленных функций | C35: 001 | D35: 01 | E35: 14 | F35: 001 00 00 | H35: =H36+H38+H40 -> 12085
A36: 11400112 | B36: Члены Совета Федерации и их помощники | C36: 001 | D36: 01 | E36: 14 | F36: 001 12 00 | H36: =H37 -> 364
A37: 11400112012 | B37: Выполнение функций государственными органами | C37: 001 | D37: 01 | E37: 14 | F37: 001 12 00 | G37: 012 | H37: 364
A38: 11400161 | B38: Расходы, связанные с выплатой Премии Московской областной Думы | C38: 001 | D38: 01 | E38: 14 | F38: 001 61 00 | H38: =H39 -> 8621
A39: 11400161013 | B39: Прочие расходы | C39: 001 | D39: 01 | E39: 14 | F39: 001 61 00 | G39: 013 | H39: =8621-8621+8621 -> 8621
A40: 11400162 | B40: Расходы на выплату премий победителям конкурсов профессионального мастерства и награждения ценными подарками в связи с проведение профессиональных праздников | C40: 001 | D40: 01 | E40: 14 | F40: 001 62 00 | H40: =H41 -> 3100
A41: 11400162013 | B41: Прочие расходы | C41: 001 | D41: 01 | E41: 14 | F41: 001 62 00 | G41: 013 | H41: 3100
A42: 5 | B42: Жилищно-коммунальное хозяйство | C42: 001 | D42: 05 | H42: =H43 -> 65000
A43: 501 | B43: Жилищное хозяйство | C43: 001 | D43: 05 | E43: 01 | H43: =H44 -> 65000
A44: 501350 | B44: Поддержка жилищного хозяйства | C44: 001 | D44: 05 | E44: 01 | F44: 350 00 00 | H44: =H45 -> 65000
A45: 50135003 | B45: Мероприятия в области жилищного хозяйства | C45: 001 | D45: 05 | E45: 01 | F45: 350 03 00 | H45: =H46 -> 65000
A46: 50135003012 | B46: Выполнение функций государственными органами | C46: 001 | D46: 05 | E46: 01 | F46: 350 03 00 | G46: 012 | H46: 65000
A47: 7 | B47: Образование | C47: 001 | D47: 07 | H47: =H48 -> 450
A48: 707 | B48: Молодежная политика и оздоровление детей | C48: 001 | D48: 07 | E48: 07 | H48: =H49 -> 450
A49: 707432 | B49: Мероприятия по проведению оздоровительной кампании детей | C49: 001 | D49: 07 | E49: 07 | F49: 432 00 00 | H49: =H50 -> 450
A50: 70743202 | B50: Оздоровление детей | C50: 001 | D50: 07 | E50: 07 | F50: 432 02 00 | H50: =H51 -> 450
A51: 70743202001 | B51: Выполнение функций бюджетными учреждениями | C51: 001 | D51: 07 | E51: 07 | F51: 432 02 00 | G51: 001 | H51: 450
A52: 9 | B52: Здравоохранение, физическая культура и спорт | C52: 001 | D52: 09 | H52: =H53 -> 42649
A53: 910 | B53: Другие вопросы в области здравоохранения, физической культуры и спорта | C53: 001 | D53: 09 | E53: 10 | H53: =H54 -> 42649
A54: 910485 | B54: Реализация государственных функций в области здравоохранения, спорта и туризма | C54: 001 | D54: 09 | E54: 10 | F54: 485 00 00 | H54: =H55 -> 42649
A55: 91048597 | B55: Мероприятия в области здравохранения, спорта и физической культуры, туризма | C55: 001 | D55: 09 | E55: 10 | F55: 485 97 00 | H55: =H56 -> 42649
A56: 91048597079 | B56: Мероприятия в области здравоохранения, спорта и физической культуры | C56: 001 | D56: 09 | E56: 10 | F56: 485 97 00 | G56: 079 | H56: 42649
A58: 0 | B58: Правительство Московской области | C58: 002 | H58: =H59+H87+H92+H97 -> 2730114
A59: 1 | B59: Общегосударственные вопросы | C59: 002 | D59: 01 | H59: =H60+H64+H70 -> 1958797
A60: 102 | B60: Функционирование высшего должностного лица субъекта Российской Федерации и муниципального образования | C60: 002 | D60: 01 | E60: 02 | H60: =H61 -> 2114
A61: 102002 | B61: Руководство и управление в сфере установленных функций органов государственной власти субъектов Российской Федерации и органов местного самоуправления | C61: 002 | D61: 01 | E61: 02 | F61: 002 00 00 | H61: =H62 -> 2114
A62: 10200201 | B62: Высшее должностное лицо субъекта Российской Федерации | C62: 002 | D62: 01 | E62: 02 | F62: 002 01 00 | H62: =H63 -> 2114
A63: 10200201012 | B63: Выполнение функций государственными органами | C63: 002 | D63: 01 | E63: 02 | F63: 002 01 00 | G63: 012 | H63: 2114
A64: 104 | B64: Функционирование Правительства Российской Федерации, высших исполнительных органов государственной власти субъектов Российской Федерации, местных администраций | C64: 002 | D64: 01 | E64: 04 | H64: =H65 -> 902951
A65: 104002 | B65: Руководство и управление в сфере установленных функций органов государственной власти субъектов Российской Федерации и органов местного самоуправления | C65: 002 | D65: 01 | E65: 04 | F65: 002 00 00 | H65: =H66+H68 -> 902951
A66: 10400204 | B66: Центральный аппарат | C66: 002 | D66: 01 | E66: 04 | F66: 002 04 00 | H66: =H67 -> 886096
A67: 10400204012 | B67: Выполнение функций государственными органами | C67: 002 | D67: 01 | E67: 04 | F67: 002 04 00 | G67: 012 | H67: 886096
A68: 10400206 | B68: Высшее должностное лицо субъекта Российской Федерации (руководитель высшего исполнительного органа государственной власти субъекта Российской Федерации) и его заместители | C68: 002 | D68: 01 | E68: 04 | F68: 002 06 00 | H68: =H69 -> 16855
A69: 10400206012 | B69: Выполнение функций государственными органами | C69: 002 | D69: 01 | E69: 04 | F69: 002 06 00 | G69: 012 | H69: 16855
A70: 114 | B70: Другие общегосударственные вопросы | C70: 002 | D70: 01 | E70: 14 | H70: =H71+H82 -> 1053732
A71: 114001 | B71: Руководство и управление в сфере установленных функций | C71: 002 | D71: 01 | E71: 14 | F71: 001 00 00 | H71: =H72+H74+H76+H78+H80 -> 26458
A72: 11400110 | B72: Депутаты Государственной Думы и их помощники | C72: 002 | D72: 01 | E72: 14 | F72: 001 10 00 | H72: =H73 -> 20804
A73: 11400110012 | B73: Выполнение функций государственными органами | C73: 002 | D73: 01 | E73: 14 | F73: 001 10 00 | G73: 012 | H73: 20804
A74: 11400112 | B74: Члены Совета Федерации и их помощники | C74: 002 | D74: 01 | E74: 14 | F74: 001 12 00 | H74: =H75 -> 484
A75: 11400112012 | B75: Выполнение функций государственными органами | C75: 002 | D75: 01 | E75: 14 | F75: 001 12 00 | G75: 012 | H75: 484
A76: 11400163 | B76: Расходы на выплату Премии Губернатора Московской области | C76: 002 | D76: 01 | E76: 14 | F76: 001 63 00 | H76: =H77 -> 2000
A77: 11400163013 | B77: Прочие расходы | C77: 002 | D77: 01 | E77: 14 | F77: 001 63 00 | G77: 013 | H77: 2000
A78: 11400164 | B78: Взносы Московской области в общественные организации, фонды, ассоциации | C78: 002 | D78: 01 | E78: 14 | F78: 001 64 00 | H78: =H79 -> 600
A79: 11400164013 | B79: Прочие расходы | C79: 002 | D79: 01 | E79: 14 | F79: 001 64 00 | G79: 013 | H79: 600
A80: 11400165 | B80: Расходы на реализацию Закона Московской области "О наградах Московской области" | C80: 002 | D80: 01 | E80: 14 | F80: 001 65 00 | H80: =H81 -> 2570
A81: 11400165013 | B81: Прочие расходы | C81: 002 | D81: 01 | E81: 14 | F81: 001 65 00 | G81: 013 | H81: 2570
A82: 114093 | B82: Учреждения по обеспечению хозяйственного обслуживания | C82: 002 | D82: 01 | E82: 14 | F82: 093 00 00 | H82: =H83+H85 -> 1027274
A83: 11409310 | B83: Обеспечение эксплуатации и надлежащего содержания зданий и помещений, занимаемых Правительством Московской области | C83: 002 | D83: 01 | E83: 14 | F83: 093 10 00 | H83: =H84 -> 27274
A84: 11409310001 | B84: Выполнение функций бюджетными учреждениями | C84: 002 | D84: 01 | E84: 14 | F84: 093 10 00 | G84: 001 | H84: 27274
A85: 11409311 | B85: Обеспечение эксплуатации и надлежащего содержания зданий и помещений, занимаемых органами исполнительной власти Московской области | C85: 002 | D85: 01 | E85: 14 | F85: 093 11 00 | H85: =H86 -> 1000000
A86: 11409311001 | B86: Выполнение функций бюджетными учреждениями | C86: 002 | D86: 01 | E86: 14 | F86: 093 11 00 | G86: 001 | H86: 1000000
A87: 5 | B87: Жилищно - коммунальное хозяйство | C87: 002 | D87: 05 | H87: =H88 -> 400000
A88: 501 | B88: Жилищное хозяйство | C88: 002 | D88: 05 | E88: 01 | H88: =H89 -> 400000
A89: 501350 | B89: Поддержка жилищного хозяйства | C89: 002 | D89: 05 | E89: 01 | F89: 350 00 00 | H89: =H90 -> 400000
A90: 50135003 | B90: Мероприятия в области жилищного хозяйства | C90: 002 | D90: 05 | E90: 01 | F90: 350 03 00 | H90: =H91 -> 400000
A91: 50135003012 | B91: Выполнение функций государственными органами | C91: 002 | D91: 05 | E91: 01 | F91: 350 03 00 | G91: 012 | H91: 400000
A92: 7 | B92: Образование | C92: 002 | D92: 07 | H92: =H93 -> 2104
A93: 707 | B93: Молодежная политика и оздоровление детей | C93: 002 | D93: 07 | E93: 07 | H93: =H94 -> 2104
A94: 707432 | B94: Мероприятия по проведению оздоровительной кампании детей | C94: 002 | D94: 07 | E94: 07 | F94: 432 00 00 | H94: =H95 -> 2104
A95: 70743202 | B95: Оздоровление детей | C95: 002 | D95: 07 | E95: 07 | F95: 432 02 00 | H95: =H96 -> 2104
A96: 70743202001 | B96: Выполнение функций бюджетными учреждениями | C96: 002 | D96: 07 | E96: 07 | F96: 432 02 00 | G96: 001 | H96: 2104
A97: 9 | B97: Здравоохранение, физическая культура и спорт | C97: 002 | D97: 09 | H97: =H98 -> 369213
A98: 910 | B98: Другие вопросы в области здравоохранения, физической культуры и спорта | C98: 002 | D98: 09 | E98: 10 | H98: =H99 -> 369213
A99: 910485 | B99: Реализация государственных функций в области здравоохранения, спорта и туризма | C99: 002 | D99: 09 | E99: 10 | F99: 485 00 00 | H99: =H100 -> 369213
A100: 91048597 | B100: Мероприятия в области здравохранения, спорта и физической культуры, туризма | C100: 002 | D100: 09 | E100: 10 | F100: 485 97 00 | H100: =H101 -> 369213
A101: 91048597079 | B101: Мероприятия в области здравоохранения, спорта и физической культуры | C101: 002 | D101: 09 | E101: 10 | F101: 485 97 00 | G101: 079 | H101: 369213
A103: 0 | B103: Министерство внешнеэкономических связей Московской области | C103: 003 | H103: =H104+H116+H121+H126 -> 287272
A104: 1 | B104: Общегосударственные вопросы | C104: 003 | D104: 01 | H104: =H105+H112 -> 286941
A105: 108 | B105: Международные отношения и международное сотрудничество | C105: 003 | D105: 01 | E105: 08 | H105: =H106+H109 -> 200130
A106: 108030 | B106: Международное сотрудничество | C106: 003 | D106: 01 | E106: 08 | F106: 030 00 00 | H106: =H107 -> 200000
A107: 10803005 | B107: Прочие расходы, связанные с международной деятельностью | C107: 003 | D107: 01 | E107: 08 | F107: 030 05 00 | H107: =H108 -> 200000
A108: 10803005012 | B108: Выполнение функций государственными органами | C108: 003 | D108: 01 | E108: 08 | F108: 030 05 00 | G108: 012 | H108: 200000
A109: 108522 | B109: Региональные целевые программы | C109: 003 | D109: 01 | E109: 08 | F109: 522 00 00 | H109: =H110 -> 130
A110: 10852209 | B110: Областная целевая программа "Поддержка Московской областью соотечественников за рубежом на 2007-2010 годы" | C110: 003 | D110: 01 | E110: 08 | F110: 522 09 00 | H110: =H111 -> 130
A111: 10852209012 | B111: Выполнение функций государственными органами | C111: 003 | D111: 01 | E111: 08 | F111: 522 09 00 | G111: 012 | H111: 130
A112: 114 | B112: Другие общегосударственные вопросы | C112: 003 | D112: 01 | E112: 14 | H112: =H113 -> 86811
A113: 114002 | B113: Руководство и управление в сфере установленных функций органов государственной власти субъектов Российской Федерации и органов местного самоуправления | C113: 003 | D113: 01 | E113: 14 | F113: 002 00 00 | H113: =H114 -> 86811
A114: 11400204 | B114: Центральный аппарат | C114: 003 | D114: 01 | E114: 14 | F114: 002 04 00 | H114: =H115 -> 86811
A115: 11400204012 | B115: Выполнение функций государственными органами | C115: 003 | D115: 01 | E115: 14 | F115: 002 04 00 | G115: 012 | H115: 86811
A116: 2 | B116: Национальная оборона | C116: 003 | D116: 02 | H116: =H117 -> 200
A117: 204 | B117: Мобилизационная подготовка экономики | C117: 003 | D117: 02 | E117: 04 | H117: =H118 -> 200
A118: 204209 | B118: Реализация государственных функций по мобилизационной подготовке экономики | C118: 003 | D118: 02 | E118: 04 | F118: 209 00 00 | H118: =H119 -> 200
A119: 20420901 | B119: Мероприятия по обеспечению мобилизационной готовности экономики | C119: 003 | D119: 02 | E119: 04 | F119: 209 01 00 | H119: =H120 -> 200
A120: 20420901012 | B120: Выполнение функций государственными органами | C120: 003 | D120: 02 | E120: 04 | F120: 209 01 00 | G120: 012 | H120: 200
A121: 3 | B121: Национальная безопасность и правоохранительная деятельность | C121: 003 | D121: 03 | H121: =H122+H131 -> 69
A122: 309 | B122: Защита населения и территории от последствий чрезвычайных ситуаций природного и техногенного характера, гражданская оборона | C122: 003 | D122: 03 | E122: 09 | H122: =H123 -> 69
A123: 309219 | B123: Мероприятия по гражданской обороне | C123: 003 | D123: 03 | E123: 09 | F123: 219 00 00 | H123: =H124 -> 69
A124: 30921901 | B124: Подготовка населения и организаций к действиям в чрезвычайной ситуации в мирное и военное время | C124: 003 | D124: 03 | E124: 09 | F124: 219 01 00 | H124: =H125 -> 69
A125: 30921901012 | B125: Выполнение функций государственными органами | C125: 003 | D125: 03 | E125: 09 | F125: 219 01 00 | G125: 012 | H125: 69
A126: 7 | B126: Образование | C126: 003 | D126: 07 | H126: =H127 -> 62
A127: 707 | B127: Молодежная политика и оздоровление детей | C127: 003 | D127: 07 | E127: 07 | H127: =H128 -> 62
A128: 707432 | B128: Мероприятия по проведению оздоровительной кампании детей | C128: 003 | D128: 07 | E128: 07 | F128: 432 00 00 | H128: =H129 -> 62
A129: 70743202 | B129: Оздоровление детей | C129: 003 | D129: 07 | E129: 07 | F129: 432 02 00 | H129: =H130 -> 62
A130: 70743202001 | B130: Выполнение функций бюджетными учреждениями | C130: 003 | D130: 07 | E130: 07 | F130: 432 02 00 | G130: 001 | H130: 62
A132: 0 | B132: Министерство жилищно-коммунального хозяйства Московской области | C132: 004 | H132: =H133+H138+H143+H148+H170 -> 1381721
A133: 2 | B133: Национальная оборона | C133: 004 | D133: 02 | H133: =H134 -> 200
A134: 204 | B134: Мобилизационная подготовка экономики | C134: 004 | D134: 02 | E134: 04 | H134: =H135 -> 200
A135: 204209 | B135: Реализация государственных функций по мобилизационной подготовке экономики | C135: 004 | D135: 02 | E135: 04 | F135: 209 00 00 | H135: =H136 -> 200
A136: 20420901 | B136: Мероприятия по обеспечению мобилизационной готовности экономики | C136: 004 | D136: 02 | E136: 04 | F136: 209 01 00 | H136: =H137 -> 200
A137: 20420901012 | B137: Выполнение функций государственными органами | C137: 004 | D137: 02 | E137: 04 | F137: 209 01 00 | G137: 012 | H137: 200
A138: 3 | B138: Национальная безопасность и правоохранительная деятельность | C138: 004 | D138: 03 | H138: =H139 -> 78
A139: 309 | B139: Защита населения и территории от последствий чрезвычайных ситуаций природного и техногенного характера, гражданская оборона | C139: 004 | D139: 03 | E139: 09 | H139: =H140 -> 78
A140: 309219 | B140: Мероприятия по гражданской обороне | C140: 004 | D140: 03 | E140: 09 | F140: 219 00 00 | H140: =H141 -> 78
A141: 30921901 | B141: Подготовка населения и организаций к действиям в чрезвычайной ситуации в мирное и военное время | C141: 004 | D141: 03 | E141: 09 | F141: 219 01 00 | H141: =H142 -> 78
A142: 30921901012 | B142: Выполнение функций государственными органами | C142: 004 | D142: 03 | E142: 09 | F142: 219 01 00 | G142: 012 | H142: 78
A143: 4 | B143: Национальная экономика | C143: 004 | D143: 04 | H143: =H144 -> 500000
A144: 412 | B144: Другие вопросы в области национальной экономики | C144: 004 | D144: 04 | E144: 12 | H144: =H145 -> 500000
A145: 412340 | B145: Реализация государственных функций в области национальной экономики | C145: 004 | D145: 04 | E145: 12 | F145: 340 00 00 | H145: =H146 -> 500000
A146: 41234004 | B146: Мероприятия в области гражданской промышленности | C146: 004 | D146: 04 | E146: 12 | F146: 340 04 00 | H146: =H147 -> 500000
A147: 41234004006 | B147: Субсидии юридическим лицам | C147: 004 | D147: 04 | E147: 12 | F147: 340 04 00 | G147: 006 | H147: 500000
A148: 5 | B148: Жилищно - коммунальное хозяйство | C148: 004 | D148: 05 | H148: =H149+H157+H162 -> 881399
A149: 501 | B149: Жилищное хозяйство | C149: 004 | D149: 05 | E149: 01 | H149: =H150+H154 -> 384531
A150: 501102 | B150: Бюджетные инвестиции в объекты капитального строительства, не включенные в целевые программы | C150: 004 | D150: 05 | E150: 01 | F150: 102 00 00 | H150: =H151 -> 190153
A151: 50110201 | B151: Бюджетные инвестиции в объекты капитального строительства государственной собственности субъектов Российской Федерации (объекты капитального строительства собственности муниципальных образований) | C151: 004 | D151: 05 | E151: 01 | F151: 102 01 00 | H151: =H152 -> 190153
A152: 5011020102 | B152: Бюджетные инвестиции в объекты капитального строительства собственности муниципальных образований | C152: 004 | D152: 05 | E152: 01 | F152: 102 01 02 | H152: =H153 -> 190153
A153: 5011020102003 | B153: Бюджетные инвестиции | C153: 004 | D153: 05 | E153: 01 | F153: 102 01 02 | G153: 003 | H153: 190153
A154: 501104 | B154: Федеральная целевая программа "Жилище" на 2002 - 2010 годы (второй этап) | C154: 004 | D154: 05 | E154: 01 | F154: 104 00 00 | H154: =H155 -> 194378
A155: 50110407 | B155: Расходы общепрограммного характера по федеральной целевой программе "Жилище" на 2002 - 2010 годы (второй этап) | C155: 004 | D155: 05 | E155: 01 | F155: 104 07 00 | H155: =H156 -> 194378
A156: 50110407012 | B156: Выполнение функций государственными органами | C156: 004 | D156: 05 | E156: 01 | F156: 104 07 00 | G156: 012 | H156: 194378
A157: 502 | B157: Коммунальное хозяйство | C157: 004 | D157: 05 | E157: 02 | H157: =H158 -> 143500
A158: 502522 | B158: Региональные целевые программы | C158: 004 | D158: 05 | E158: 02 | F158: 522 00 00 | H158: =H159 -> 143500
A159: 50252201 | B159: Областная целевая программа "Экология Подмосковья на 2007-2008 годы" | C159: 004 | D159: 05 | E159: 02 | F159: 522 01 00 | H159: =H160 -> 143500
A160: 5025220102 | B160: Подпрограмма "Строительство и реконструкция природоохранных объектов коммунального назначения" | C160: 004 | D160: 05 | E160: 02 | F160: 522 01 02 | H160: =H161 -> 143500
A161: 5025220102003 | B161: Бюджетные инвестиции | C161: 004 | D161: 05 | E161: 02 | F161: 522 01 02 | G161: 003 | H161: 143500
A162: 505 | B162: Другие вопросы в области жилищно-коммунального хозяйства | C162: 004 | D162: 05 | E162: 05 | H162: =H163+H168 -> 353368
A163: 505002 | B163: Руководство и управление в сфере установленных функций органов государственной власти субъектов Российской Федерации и органов местного самоуправления | C163: 004 | D163: 05 | E163: 05 | F163: 002 00 00 | H163: =H164+H166 -> 346710
A164: 50500204 | B164: Центральный аппарат | C164: 004 | D164: 05 | E164: 05 | F164: 002 04 00 | H164: =H165 -> 205458
A165: 50500204012 | B165: Выполнение функций государственными органами | C165: 004 | D165: 05 | E165: 05 | F165: 002 04 00 | G165: 012 | H165: =182658+22800 -> 205458
A166: 50500299 | B166: Обеспечение деятельности подведомственных учреждений | C166: 004 | D166: 05 | E166: 05 | F166: 002 99 00 | H166: =H167 -> 141252
A167: 50500299001 | B167: Выполнение функций бюджетными учреждениями | C167: 004 | D167: 05 | E167: 05 | F167: 002 99 00 | G167: 001 | H167: 141252
A168: 505806 | B168: Прочие расходы, не отнесенные к другим целевым статьям | C168: 004 | D168: 05 | E168: 05 | F168: 806 00 00 | H168: =H169 -> 6658
A169: 505806006 | B169: Субсидии юридическим лицам | C169: 004 | D169: 05 | E169: 05 | F169: 806 00 00 | G169: 006 | H169: 6658
A170: 7 | B170: Образование | C170: 004 | D170: 07 | H170: =H171 -> 44
A171: 707 | B171: Молодежная политика и оздоровление детей | C171: 004 | D171: 07 | E171: 07 | H171: =H172 -> 44
A172: 707432 | B172: Мероприятия по проведению оздоровительной кампании детей | C172: 004 | D172: 07 | E172: 07 | F172: 432 00 00 | H172: =H173 -> 44
A173: 70743202 | B173: Оздоровление детей | C173: 004 | D173: 07 | E173: 07 | F173: 432 02 00 | H173: =H174 -> 44
A174: 70743202001 | B174: Выполнение функций бюджетными учреждениями | C174: 004 | D174: 07 | E174: 07 | F174: 432 02 00 | G174: 001 | H174: 44
A176: 0 | B176: Министерство промышленности и науки Московской области | C176: 005 | H176: =H177+H182+H187+H192+H211 -> 226908
A177: 1 | B177: Общегосударственные вопросы | C177: 005 | D177: 01 | H177: =H178 -> 72
A178: 114 | B178: Другие общегосударственные вопросы | C178: 005 | D178: 01 | E178: 14 | H178: =H179 -> 72
A179: 114001 | B179: Руководство и управление в сфере установленных функций | C179: 005 | D179: 01 | E179: 14 | F179: 001 00 00 | H179: =H180 -> 72
A180: 11400164 | B180: Взносы Московской области в общественные организации, фонды, ассоциации | C180: 005 | D180: 01 | E180: 14 | F180: 001 64 00 | H180: =H181 -> 72
A181: 11400164013 | B181: Прочие расходы | C181: 005 | D181: 01 | E181: 14 | F181: 001 64 00 | G181: 013 | H181: 72
A182: 2 | B182: Национальная оборона | C182: 005 | D182: 02 | H182: =H183 -> 750
A183: 204 | B183: Мобилизационная подготовка экономики | C183: 005 | D183: 02 | E183: 04 | H183: =H184 -> 750
A184: 204209 | B184: Реализация государственных функций по мобилизационной подготовке экономики | C184: 005 | D184: 02 | E184: 04 | F184: 209 00 00 | H184: =H185 -> 750
A185: 20420901 | B185: Мероприятия по обеспечению мобилизационной готовности экономики | C185: 005 | D185: 02 | E185: 04 | F185: 209 01 00 | H185: =H186 -> 750
A186: 20420901012 | B186: Выполнение функций государственными органами | C186: 005 | D186: 02 | E186: 04 | F186: 209 01 00 | G186: 012 | H186: 750
A187: 3 | B187: Национальная безопасность и правоохранительная деятельность | C187: 005 | D187: 03 | H187: =H188 -> 615
A188: 309 | B188: Защита населения и территории от последствий чрезвычайных ситуаций природного и техногенного характера, гражданская оборона | C188: 005 | D188: 03 | E188: 09 | H188: =H189 -> 615
A189: 309219 | B189: Мероприятия по гражданской обороне | C189: 005 | D189: 03 | E189: 09 | F189: 219 00 00 | H189: =H190 -> 615
A190: 30921901 | B190: Подготовка населения и организаций к действиям в чрезвычайной ситуации в мирное и военное время | C190: 005 | D190: 03 | E190: 09 | F190: 219 01 00 | H190: =H191 -> 615
A191: 30921901012 | B191: Выполнение функций государственными органами | C191: 005 | D191: 03 | E191: 09 | F191: 219 01 00 | G191: 012 | H191: 615
A192: 4 | B192: Национальная экономика | C192: 005 | D192: 04 | H192: =H193+H198+H202 -> 225371
A193: 401 | B193: Общеэкономические вопросы | C193: 005 | D193: 04 | E193: 01 | H193: =H194 -> 120224
A194: 401002 | B194: Руководство и управление в сфере установленных функций органов государственной власти субъектов Российской Федерации и органов местного самоуправления | C194: 005 | D194: 04 | E194: 01 | F194: 002 00 00 | H194: =H195 -> 120224
A195: 40100204 | B195: Центральный аппарат | C195: 005 | D195: 04 | E195: 01 | F195: 002 04 00 | H195: =H196+H197 -> 120224
A196: 40100204012 | B196: Выполнение функций государственными органами | C196: 005 | D196: 04 | E196: 01 | F196: 002 04 00 | G196: 012 | H196: 119724
A197: 40100204902 | B197: Проведение мероприятий по защите информации, обеспечению безопасности информационных систем и баз данных, содержащих конфиденциальную информацию, в том числе персональные данные населения Московской области | C197: 005 | D197: 04 | E197: 01 | F197: 002 04 00 | G197: 902 | H197: 500
A198: 411 | B198: Прикладные научные исследования в области национальной экономики | C198: 005 | D198: 04 | E198: 11 | H198: =H199 -> 53000
A199: 411081 | B199: Прикладные научные исследования и разработки | C199: 005 | D199: 04 | E199: 11 | F199: 081 00 00 | H199: =H200 -> 53000
A200: 41108169 | B200: Выполнение научно- исследовательских и опытно-конструкторских работ по государственным контрактам | C200: 005 | D200: 04 | E200: 11 | F200: 081 69 00 | H200: =H201 -> 53000
A201: 41108169012 | B201: Выполнение функций государственными органами | C201: 005 | D201: 04 | E201: 11 | F201: 081 69 00 | G201: 012 | H201: 53000
A202: 412 | B202: Другие вопросы в области национальной экономики | C202: 005 | D202: 04 | E202: 12 | H202: =H203 -> 52147
A203: 412340 | B203: Реализация государственных функций в области национальной экономики | C203: 005 | D203: 04 | E203: 12 | F203: 340 00 00 | H203: =H204 -> 52147
A204: 41234083 | B204: Государственная поддержка отдельных отраслей промышленности и топливно-энергетического комплекса | C204: 005 | D204: 04 | E204: 12 | F204: 340 83 00 | H204: =H205+H207+H209 -> 52147
A205: 4123408303 | B205: Субсидии организациям легкой и текстильной промышленности на возмещение части затрат на уплату процентов по кредитам, полученным в российских кредитных организациях в 2007-2010 годах, на осуществление сезонных закупок сырья и материалов для производства товаров народного потребления и продукции производственно-технического назначения | C205: 005 | D205: 04 | E205: 12 | F205: 340 83 03 | H205: =H206 -> 40000
A206: 4123408303006 | B206: Субсидии юридическим лицам | C206: 005 | D206: 04 | E206: 12 | F206: 340 83 03 | G206: 006 | H206: 40000
A207: 4123408304 | B207: Субсидии организациям легкой и текстильной промышленности на возмещение части затрат на уплату процентов по кредитам, полученным в российских кредитных организациях в 2008-2010 годах, на осуществление технического перевооружения | C207: 005 | D207: 04 | E207: 12 | F207: 340 83 04 | H207: =H208 -> 10000
A208: 4123408304006 | B208: Субсидии юридическим лицам | C208: 005 | D208: 04 | E208: 12 | F208: 340 83 04 | G208: 006 | H208: 10000
A209: 4123408320 | B209: Расходы на проведение мероприятий, общегосударственных праздников и юбилейных дат Московской области в области промышленности | C209: 005 | D209: 04 | E209: 12 | F209: 340 83 20 | H209: =H210 -> 2147
... 2361 more rows

Sheet коды (hidden)
A2: ЦСР | D2: ВР
D3: 901 | E3: Взносы Московской области в общественные организации, фонды, ассоциации
D4: 701-823 | E4: Софинансирование дорожных объектов
A5: 802 00 00 | B5: Прочие учреждения в области образования | D5: 902 | E5: Проведение мероприятий по защите информации, обеспечению безопасности информационных систем и баз данных, содержащих конфиденциальную информацию, в том числе персональные данные населения Московской области
A6: 803 00 00 | B6: Расходы на страхование | D6: 903 | E6: Бюджетные инвестиции в объекты капитального строительства собственности муниципальных образований, софинансирование которых осуществляется за счет средств федерального бюджета
A7: 803 00 01 | B7: Расходы на страхование имущества, находящегося в государственной собственности Московской области | D7: 904 | E7: Обеспечение деятельности подразделений УГИБДД ГУВД по Московской области
A8: 803 00 02 | B8: Расходы на страхование гражданской ответственности учреждений, находящихся в государственной собственности Московской области | D8: 905 | E8: Страховые взносы по обязательному медицинскому страхованию неработающего населения
A9: 803 00 03 | B9: Расходы на обязательное страхование гражданской ответственности владельцев транспортных средств | D9: 906 | E9: Работы по гидрометеорологии и мониторингу окружающей среды
A10: 803 00 04 | B10: Расходы на добровольное страхование гражданской ответственности владельцев транспортных средств | D10: 907 | E10: Проведение государственной экологической экспертизы объектов регионального уровня на территории Московской области
A11: 803 00 05 | B11: Расходы на страхование жизни и здоровья медицинских, фармацевтических и других работников государственных учреждений здравоохранения Московской области, работа которых связана с угрозой их жизни и здоровью | D11: 908 | E11: Софинансирование строительства объектов газификации собственности муниципальных образований
A12: 803 00 06 | B12: Расходы на страхование жизни и здоровья членов сборных команд Московской области | D12: 909 | E12: Софинансирование строительства объектов водоснабжения собственности муниципальных образований
A13: 803 00 07 | B13: Расходы на страхование на случай причинения вреда жизни и здоровью лиц, замещающих государственные должности Московской области и государственных гражданских служащих Московской области | D13: 910 | E13: Финансирование расходов, осуществляемое за счет средств, поступающих от сдачи в аренду имущества, закрепленного за государственными организациями
A14: 804 00 00 | B14: Приобретение земельных участков в государственную собственность Московской области | D14: 917 | E14: Субсидии на возмещение за счет средств фонда стимулирования организаций легкой и текстильной промышленности, состоящих на учете в налоговых органах по Московской области, части процентных ставок по кредитам, предоставляемых российскими кредитными организациями
A15: 806 00 00 | B15: Прочие расходы, не отнесенные к другим целевым статьям | D15: 919 | E15: Финансирование транспортным организациям выпадающих доходов, возникающих в связи с предоставлением мер социальной поддержки по проезду отдельных категорий граждан, имеющих место жительства в Московской области, за исключением ветеранов труда, тружеников тыла, реабилитированных лиц и лиц, признанных пострадавшими от политических репрессий, финансирование выпадающих доходов по перевозке отдельных категорий граждан на внутреннем водном транспорте пригородного сообщения
A16: 806 01 00 | B16: Подготовка врачебных кадров | D16: 921 | E16: Финансирование транспортным организациям выпадающих доходов, возникающих в связи с реализацией мер социальной поддержки в части транспортного обслуживания отдельных категорий граждан, имеющих место жительства в городе Москве, паасажирским транспортом общего пользования Московской области
A17: 806 02 00 | B17: Подготовка кадров в сфере культуры и искусства
A18: 806 00 30 | B18: Создание финансового резерва для обеспечения выплаты дополнительных пенсий работникам государственных учреждений Московской области, вышедшим на пенсию
A19: 806 00 31 | B19: Компенсация расходов адвокатам, оказывающим гражданам Российской Федерации на территории Московской области юридическую помощь бесплатно
A20: 806 00 32 | B20: Проведение мероприятий в сфере социальной защиты населения, посвященных знаменательным событиям и памятным датам, установленным в Российской Федерации и Московской области
A21: 806 00 33 | B21: Возмещение стоимости услуг, согласно гарантированному перечню услуг по погребению умерших
A22: 807 00 00 | B22: Меры социальной поддержки по обеспечению проездом граждан
A23: 808 00 00 | B23: Расходы на оценку имущества, подлежащего страхованию
A24: 522 01 00 | B24: Областная целевая программа "Экология Подмосковья на 2007-2008 годы"
A25: 522 02 00 | B25: Областная целевая программа "Жилище" на 2006-2010 годы
A26: 522 02 01 | B26: Подпрограмма "Модернизация объектов коммунальной инфраструктуры"
A27: 522 02 02 | B27: Подпрограмма "Переселение граждан из ветхого и аварийного жилищного фонда"
A28: 522 02 03 | B28: Подпрограмма "Обеспечение земельных участков коммунальной инфраструктурой в целях жилищного строительства"
A29: 522 02 04 | B29: Подпрограмма "Обеспечение жильем молодых семей"
A30: 522 03 00 | B30: Областная целевая программа "Разработка Генерального плана развития Московской области на период до 2020 года"
A31: 522 04 00 | B31: Областная целевая программа "Электронное Подмосковье на период 2006-2009 годы"
A32: 522 05 00 | B32: Областная целевая программа "Сохранение объектов культурного наследия (памятников истории и культуры) в Московской области на 2006-2008 годы"
A33: 522 05 01 | B33: Раздел 1 "Сохранение объектов культурного наследия"
A34: 522 05 02 | B34: Раздел 2 "Государственная охрана объектов культурного наследия"
A35: 522 05 03 | B35: Раздел 3 "Оказание поддержки религиозным организациям в проведении работ по сохранению памятников истории и культуры религиозного назначения"
A36: 522 05 04 | B36: Раздел 4 "Установка памятника создателям славянской азбуки, просветителям славянских народов, святым братьям Кириллу и Мефодию"
A37: 522 06 00 | B37: Областная целевая программа "Развитие образования в Московской области на период 2006-2010 годов"
A38: 522 07 00 | B38: Областная целевая программа "Молодое поколение Подмосковья на 2006-2008 годы"
A39: 522 08 00 | B39: Областная целевая программа "Радиационная безопасность Московской области на 2006-2010 годы"
A40: 522 09 00 | B40: Областная целевая программа "Поддержка Московской областью соотечественников за рубежом на 2007-2010 годы"
A41: 522 10 00 | B41: Областная целевая программа "Обеспечение безопасности дорожного движения на территории Московской области в 2007-2010 годах"
A42: 522 10 01 | B42: Раздел "Предупреждение опасного поведения участников дорожного движения"
A43: 522 10 02 | B43: Раздел "Организационно-планировочные и инженерные меры, направленные на совершенствование организации движения транспортных средств и пешеходов"
A44: 522 10 03 | B44: Раздел "Совершенствование системы подготовки и переподготовки водительского, ремонтного и инженерно-технического персонала"
A45: 522 10 05 | B45: Раздел "Совершенствование контрольно-надзорной деятельности и деятельности по ликвидации последствий и снижению тяжести ДТП"
A46: 522 11 00 | B46: Областная целевая программа "Совершенствование медицинской помощи новорожденным, беременным женщинам и матерям в Московской области на период 2008-2011 годов"
A47: 522 12 00 | B47: Областная целевая программа "Предупреждение и борьба с заболеваниями социального характера в Московской области на период 2008-2011 годов"
A48: 522 12 01 | B48: Подпрограмма "Сахарный диабет"
A49: 522 12 02 | B49: Подпрограмма "Неотложные меры борьбы с туберкулезом"
A50: 522 12 03 | B50: Подпрограмма "О мерах по предупреждению распространения заболевания, вызываемого вирусом иммунодефицита человека (ВИЧ - инфекции)"
A51: 522 12 04 | B51: Подпрограмма "О мерах по развитию онкологической помощи"
A52: 522 12 05 | B52: Подпрограмма "О мерах по предупреждению дальнейшего распространения заболеваний, передаваемых половым путем"
A53: 522 12 06 | B53: Подпрограмма "Вирусные гепатиты"
A54: 522 12 07 | B54: Подпрограмма "Развитие психиатрической помощи"
A55: 522 12 08 | B55: Подпрограмма "Вакцинопрофилактика"
A56: 522 12 09 | B56: Подпрограмма "Профилактика и лечение артериальной гипертонии"
A57: 522 12 10 | B57: Подпрограмма "Общая врачебная практика"

Sheet разделы (hidden)
B1: проект
A2: Код | B2: Наименование раздела и подраздела
D3: фуккцион | E3: свод
A4: 0100 | B4: ОБЩЕГОСУДАРСТВЕННЫЕ ВОПРОСЫ | C4: =SUM(C5:C18) -> 23580617 | D4: =C4-'ведом. 2022-2024'!G11 -> 23580617 | E4: =C4-[1]свод!$E$203 -> 0
A5: 0101 | B5: Функционирование Президента Российской Федерации
A6: 0102 | B6: Функционирование высшего должностного лица субъекта Российской Федерации и муниципального образования | C6: 2114 | D6: =C6-'ведом. 2022-2024'!G12 -> 2114
A7: 0103 | B7: Функционирование законодательных (представительных) органов государственной власти и представительных органов муниципальных образований | C7: =8479+797591 -> 806070 | D7: =C7-'ведом. 2022-2024'!#REF! -> 
A8: 0104 | B8: Функционирование Правительства Российской Федерации, высших исполнительных органов государственной власти субъектов Российской Федерации, местных администраций | C8: 902951 | D8: =C8-'ведом. 2022-2024'!G19 -> 902951
A9: 0105 | B9: Судебная система | C9: 1163086 | D9: =C9-'ведом. 2022-2024'!#REF! -> 
A10: 0106 | B10: Обеспечение деятельности финансовых, налоговых и таможенных органов и органов финансового (финансово-бюджетного) надзора | C10: =5050+2170797+3000+141000 -> 2319847 | D10: =C10-'ведом. 2022-2024'!#REF! -> 
A11: 0107 | B11: Обеспечение проведения выборов и референдумов | C11: 67921 | D11: =C11-'ведом. 2022-2024'!#REF! -> 
A12: 0108 | B12: Международные отношения и международное сотрудничество | C12: =203700+5800 -> 209500 | D12: =C12-'ведом. 2022-2024'!#REF! -> 
A13: 0109 | B13: Государственный материальный резерв
A14: 0110 | B14: Фундаментальные исследования
A15: 0111 | B15: Обслуживание государственного и муниципального долга | C15: 8537000 | D15: =C15-'ведом. 2022-2024'!G437 -> 8537000
A16: 0112 | B16: Резервные фонды | C16: =1500000+55107 -> 1555107 | D16: =C16-'ведом. 2022-2024'!G76 -> 1555107
A17: 0113 | B17: Прикладные научные исследования в области общегосударственных вопросов
A18: 0114 | B18: Другие общегосударственные вопросы | C18: =26190+27274+720000+375064+3754446+10000+3099047-8621+8621+2000+3000 -> 8017021 | D18: =C18-'ведом. 2022-2024'!G84 -> 8017021
A20: 0200 | B20: НАЦИОНАЛЬНАЯ ОБОРОНА | C20: =SUM(C21:C29) -> 12972 | D20: =C20-'ведом. 2022-2024'!G141 -> 12972 | E20: =C20-[1]свод!$E$204 -> 0
A21: 0201 | B21: Вооруженные Силы Российской Федерации
A22: 0202 | B22: Модернизация Вооруженных Сил Российской Федерации и воинских формирований
A23: 0203 | B23: Мобилизационная и вневойсковая подготовка
A24: 0204 | B24: Мобилизационная подготовка экономики | C24: 12972 | D24: =C24-'ведом. 2022-2024'!#REF! -> 
A25: 0205 | B25: Подготовка и участие в обеспечении коллективной безопасности и миротворческой деятельности;
A26: 0206 | B26: Ядерно-оружейный комплекс
A27: 0207 | B27: Реализация международных обязательств в сфере военно-технического сотрудничества
A28: 0208 | B28: Прикладные научные исследования в области национальной обороны
A29: 0209 | B29: Другие вопросы в области национальной обороны
A31: 0300 | B31: НАЦИОНАЛЬНАЯ БЕЗОПАСНОСТЬ И ПРАВООХРАНИТЕЛЬНАЯ ДЕЯТЕЛЬНОСТЬ | C31: =SUM(C32:C45) -> 16669168 | D31: =C31-'ведом. 2022-2024'!G158 -> 16669168 | E31: =C31-[1]свод!$E$205 -> 0
A32: 0301 | B32: Органы прокуратуры
A33: 0302 | B33: Органы внутренних дел | C33: =315585+11659394+26106 -> 12001085 | D33: =C33-'ведом. 2022-2024'!#REF! -> 
A34: 0303 | B34: Внутренние войска
A35: 0304 | B35: Органы юстиции
A36: 0305 | B36: Система исполнения наказаний | C36: 177958 | D36: =C36-'ведом. 2022-2024'!#REF! -> 
A37: 0306 | B37: Органы безопасности
A38: 0307 | B38: Органы пограничной службы
A39: 0308 | B39: Органы по контролю за оборотом наркотических средств и психотропных веществ | C39: 67662 | D39: =C39-'ведом. 2022-2024'!#REF! -> 
A40: 0309 | B40: Предупреждение и ликвидация последствий чрезвычайных ситуаций природного и техногенного характера, гражданская оборона | C40: 996190 | D40: =C40-'ведом. 2022-2024'!G159 -> 996190
A41: 0310 | B41: Обеспечение пожарной безопасности | C41: =46851+3225689+100000+53733 -> 3426273 | D41: =C41-'ведом. 2022-2024'!#REF! -> 
A42: 0311 | B42: Миграционная политика
A43: 0312 | B43: Модернизация внутренних войск, войск гражданской обороны, а также правоохранительных и иных органов
A44: 0313 | B44: Прикладные научные исследования в области национальной безопасности и правоохранительной деятельности
A45: 0314 | B45: Другие вопросы в области национальной безопасности и правоохранительной деятельности
A47: 0400 | B47: НАЦИОНАЛЬНАЯ ЭКОНОМИКА | C47: =SUM(C48:C59) -> 47268313 | D47: =C47-'ведом. 2022-2024'!G218 -> 47268313 | E47: =C47-[1]свод!$E$206 -> 0
A48: 0401 | B48: Общеэкономические вопросы | C48: =449106+1060+723785 -> 1173951 | D48: =C48-'ведом. 2022-2024'!#REF! -> 
A49: 0402 | B49: Топливно-энергетический комплекс | C49: =139180+153 -> 139333 | D49: =C49-'ведом. 2022-2024'!#REF! -> 
A50: 0403 | B50: Исследование и использование космического пространства
A51: 0404 | B51: Воспроизводство минерально-сырьевой базы
A52: 0405 | B52: Сельское хозяйство и рыболовство | C52: =121513+1781175+10276+669+22224 -> 1935857 | D52: =C52-'ведом. 2022-2024'!#REF! -> 
A53: 0406 | B53: Водные ресурсы | C53: 36721 | D53: =C53-'ведом. 2022-2024'!#REF! -> 
A54: 0407 | B54: Лесное хозяйство
A55: 0408 | B55: Транспорт | C55: =1712331+442920 -> 2155251 | D55: =C55-'ведом. 2022-2024'!G219 -> 2155251
A56: 0409 | B56: Дорожное хозяйство | C56: 35016518 | D56: =C56-'ведом. 2022-2024'!#REF! -> 
A57: 0410 | B57: Связь и информатика | C57: =391523+82000 -> 473523 | D57: =C57-'ведом. 2022-2024'!#REF! -> 
A58: 0411 | B58: Прикладные научные исследования в области национальной экономики | C58: =101000+19000 -> 120000 | D58: =C58-'ведом. 2022-2024'!#REF! -> 
A59: 0412 | B59: Другие вопросы в области национальной экономики | C59: =10506+256+53397+1278437+377300+3110389+6896+537478+800000+42500 -> 6217159 | D59: =C59-'ведом. 2022-2024'!#REF! -> 
A61: 0500 | B61: ЖИЛИЩНО-КОММУНАЛЬНОЕ ХОЗЯЙСТВО | C61: =SUM(C62:C66) -> 2711709 | D61: =C61-'ведом. 2022-2024'!#REF! ->  | E61: =C61-[1]свод!$E$207 -> 0
A62: 0501 | B62: Жилищное хозяйство | C62: =659378+190153 -> 849531 | D62: =C62-'ведом. 2022-2024'!#REF! -> 
A63: 0502 | B63: Коммунальное хозяйство | C63: =371840+283200+143500 -> 798540 | D63: =C63-'ведом. 2022-2024'!#REF! -> 
A64: 0503 | B64: Благоустройство
A65: 0504 | B65: Прикладные научные исследования в области жилищно- коммунального хозяйства
A66: 0505 | B66: Другие вопросы в области жилищно-коммунального хозяйства | C66: =500+3969+147910+888459+22800 -> 1063638 | D66: =C66-'ведом. 2022-2024'!#REF! -> 
A68: 0600 | B68: ОХРАНА ОКРУЖАЮЩЕЙ СРЕДЫ | C68: =SUM(C69:C73) -> 487816 | D68: =C68-'ведом. 2022-2024'!#REF! ->  | E68: =C68-[1]свод!$E$208 -> 0
A69: 0601 | B69: Экологический контроль
A70: 0602 | B70: Сбор, удаление отходов и очистка сточных вод
A71: 0603 | B71: Охрана объектов растительного и животного мира и среды их обитания | C71: =5794-669 -> 5125 | D71: =C71-'ведом. 2022-2024'!#REF! -> 
A72: 0604 | B72: Прикладные научные исследования в области охраны окружающей среды
A73: 0605 | B73: Другие вопросы в области охраны окружающей среды | C73: =850+190719+291122 -> 482691 | D73: =C73-'ведом. 2022-2024'!#REF! -> 
A75: 0700 | B75: ОБРАЗОВАНИЕ | C75: =SUM(C76:C84) -> 15977562 | D75: =C75-'ведом. 2022-2024'!G322 -> 15977562 | E75: =C75-[1]свод!$E$209 -> 0
A76: 0701 | B76: Дошкольное образование | C76: 45109 | D76: =C76-'ведом. 2022-2024'!#REF! -> 
A77: 0702 | B77: Общее образование | C77: =16320+1579553+35000-120708 -> 1510165 | D77: =C77-'ведом. 2022-2024'!#REF! -> 
A78: 0703 | B78: Начальное профессиональное образование | C78: 4671918 | D78: =C78-'ведом. 2022-2024'!#REF! -> 
A79: 0704 | B79: Среднее профессиональное образование | C79: =30220+3196696+9500-18000 -> 3218416 | D79: =C79-'ведом. 2022-2024'!#REF! -> 
A80: 0705 | B80: Профессиональная подготовка, переподготовка и повышение квалификации | C80: 419843 | D80: =C80-'ведом. 2022-2024'!#REF! -> 
A81: 0706 | B81: Высшее и послевузовское профессиональное образование | C81: =507500+3215131 -> 3722631 | D81: =C81-'ведом. 2022-2024'!#REF! -> 
A82: 0707 | B82: Молодежная политика и оздоровление детей | C82: =73808+458+39313+268054 -> 381633 | D82: =C82-'ведом. 2022-2024'!G334 -> 381633
A83: 0708 | B83: Прикладные научные исследования в области образования | C83: 5625 | D83: =C83-'ведом. 2022-2024'!#REF! -> 
A84: 0709 | B84: Другие вопросы в области образования | C84: =520+80550+787674+1057879+75599 -> 2002222 | D84: =C84-'ведом. 2022-2024'!#REF! -> 
A86: 0800 | B86: КУЛЬТУРА, КИНЕМАТОГРАФИЯ И СРЕДСТВА МАССОВОЙ ИНФОРМАЦИИ | C86: =SUM(C87:C92) -> 4620983 | D86: =C86-'ведом. 2022-2024'!G361 -> 4620983 | E86: =C86-[1]свод!$E$210 -> 0
A87: 0801 | B87: Культура | C87: =2049557+253950+3000 -> 2306507 | D87: =C87-'ведом. 2022-2024'!G362 -> 2306507
A88: 0802 | B88: Кинематография
A89: 0803 | B89: Телевидение и радиовещание | C89: 915009 | D89: =C89-'ведом. 2022-2024'!#REF! -> 
A90: 0804 | B90: Периодическая печать и издательства | C90: 482232 | D90: =C90-'ведом. 2022-2024'!#REF! -> 
A91: 0805 | B91: Прикладные научные исследования в области культуры, кинематографии и средств массовой информации
A92: 0806 | B92: Другие вопросы в области культуры, кинематографии и средств массовой информации | C92: =1210+12189+1700+611492+290644 -> 917235 | D92: =C92-'ведом. 2022-2024'!#REF! -> 
A94: 0900 | B94: ЗДРАВООХРАНЕНИЕ, ФИЗИЧЕСКАЯ КУЛЬТУРА И СПОРТ | C94: =SUM(C95:C104) -> 37148428 | D94: =C94-'ведом. 2022-2024'!#REF! ->  | E94: =C94-[1]свод!$E$211 -> 0
A95: 0901 | B95: Стационарная медицинская помощь | C95: =820590+7752658+2890840+2783923 -> 14248011 | D95: =C95-'ведом. 2022-2024'!#REF! -> 
A96: 0902 | B96: Амбулаторная помощь | C96: 662232 | D96: =C96-'ведом. 2022-2024'!#REF! -> 
A97: 0903 | B97: Медицинская помощь в дневных стационарах всех типов
A98: 0904 | B98: Скорая медицинская помощь
A99: 0905 | B99: Санаторно-оздоровительная помощь | C99: 724098 | D99: =C99-'ведом. 2022-2024'!#REF! -> 
A100: 0906 | B100: Заготовка, переработка, хранение и обеспечение безопасности донорской крови и её компонентов | C100: 377981 | D100: =C100-'ведом. 2022-2024'!#REF! -> 
A101: 0907 | B101: Санитарно-эпидемиологическое благополучие
A102: 0908 | B102: Физическая культура и спорт | C102: =7800+1408321+370000+6700 -> 1792821 | D102: =C102-'ведом. 2022-2024'!#REF! -> 
A103: 0909 | B103: Прикладные научные исследования в области здравоохранения, физической культуры и спорта | C103: 269728 | D103: =C103-'ведом. 2022-2024'!#REF! -> 
A104: 0910 | B104: Другие вопросы в области здравоохранения, физической культуры и спорта | C104: =700+77619-4704+1061358+45000+20330903+21267+285337+40000-2783923 -> 19073557 | D104: =C104-'ведом. 2022-2024'!#REF! -> 
A106: 1000 | B106: СОЦИАЛЬНАЯ ПОЛИТИКА | C106: =SUM(C107:C112) -> 43410314 | D106: =C106-'ведом. 2022-2024'!G403 -> 43410314 | E106: =C106-[1]свод!$E$212 -> 0
A107: 1001 | B107: Пенсионное обеспечение | C107: 142633 | D107: =C107-'ведом. 2022-2024'!G404 -> 142633
A108: 1002 | B108: Социальное обслуживание населения | C108: =6842258-285000+384800 -> 6942058 | D108: =C108-'ведом. 2022-2024'!#REF! -> 
A109: 1003 | B109: Социальное обеспечение населения | C109: =12882130+394827+10076960+5733862+51761+768117+120000-5045+375914+84409+52500+415975 -> 30951410 | D109: =C109-'ведом. 2022-2024'!G410 -> 30951410
A110: 1004 | B110: Охрана семьи и детства | C110: =580+2000+2871367 -> 2873947 | D110: =C110-'ведом. 2022-2024'!#REF! -> 
A111: 1005 | B111: Прикладные научные исследования в области социальной политики
A112: 1006 | B112: Другие вопросы в области социальной политики | C112: =78766+7647+85664+1988045+285000+55144 -> 2500266 | D112: =C112-'ведом. 2022-2024'!#REF! -> 
A114: 1100 | B114: МЕЖБЮДЖЕТНЫЕ ТРАНСФЕРТЫ | C114: =SUM(C115:C119) -> 58232166 | D114: =C114-'ведом. 2022-2024'!#REF! ->  | E114: =C114-[1]свод!$E$213 -> 0
A115: 1101 | B115: Дотации бюджетам субъектов Российской Федерации и муниципальных образований | C115: =5289811-576383 -> 4713428 | D115: =C115-'ведом. 2022-2024'!#REF! ->  | E115: =C115-[1]свод!$E$215 -> 0
A116: 1102 | B116: Субсидии бюджетам субъектов Российской Федерации и муниципальных образований (межбюджетные субсидии) | C116: =45137+1422412-8000+3516363+1120817+115530+4450200+25040+1454659+1115615+610471+973579+151146+160000+297200+281+400000+1000000 -> 16850450 | D116: =C116-'ведом. 2022-2024'!#REF! ->  | E116: =C116-[1]свод!$E$222 -> 0
A117: 1103 | B117: Субвенции бюджетам субъектов Российской Федерации и муниципальных образований | C117: =4668019+281+70477+805870+159381+90840+27834+1551298+281597+26495709+21661+8000+146682-281+175000+7400+37+2088 -> 34511893 | D117: =C117-'ведом. 2022-2024'!#REF! ->  | E117: =C117-[1]свод!$E$261 -> 0
A118: 1104 | B118: Иные межбюджетные трансферты | C118: =200000+23893+6013666-141000-21267-7647-3911250 -> 2156395 | D118: =C118-'ведом. 2022-2024'!#REF! ->  | E118: =C118-[1]свод!$E$292 -> 0
A119: 1105 | B119: Межбюджетные трансферты бюджетам государственных внебюджетных фондов
A120: ВСЕГО | C120: =C4+C20+C31+C47+C61+C68+C75+C86+C94+C106+C114 -> 250120048 | D120: =C120-'ведом. 2022-2024'!#REF! ->  | E120: =C120-[1]свод!$E$300 -> 0
B122: ведомственная | C122: =C120-'Ведомственная 2008'!H2619 -> 0
B123: функцион | C123: =C120-'ведом. 2022-2024'!#REF! -> 
B125: Резерв было всего | C125: 6013666 | D125: 3911250
C126: -141000
C127: -21267
C128: -7647
B129: Остаток в Думу | C129: =C125+C126+C127+C128 -> 5843752
B130: спец продукция, для допуска транспортных средст ГУВД МО | C130: -26106
B131: выплата надбавок к денежному довольствию личного состава Гл. упр. региональной безопасности МО | C131: -100000
B132: замены электропроводки и установки противопожарной сигнализации для Лобненского техникума строительной индустрии и предпринимательства предусмотреть Министерству строительного комплекса | C132: -9500
B133: проведение капитального ремонта комплекса зданий, в котором располагается министерство жилищно-коммунального хозяйства | C133: -22800
B134: открытие пяти отделений на базе государственного учреждения Московской области «Детская юношеская спортивная школа олимпийского резерва по футболу» (Комитет физ-ры) | C134: -15000
B135: открытие государственного учреждения дополнительного образования «Детско-юношеская спортивная школа по гандболу» на 500 человек (Комитет физ-ры) | C135: -2000
B136: проведение спортивных соревнований на призы Правительства Московской области в рамках международных соревнований мемориала братьев Знаменских (Комитет физ-ры) | C136: -6700
B137: Мин. Потребительского рынка | C137: -42500
B138: Премия Думы | C138: -8621
B139: АПК | C139: -17956
B142: Минус с остатка | C142: =SUM(C130:C141) -> -251183
B143: Остаток резерва | C143: =C129+C142 -> 5592569

Sheet Функц. 2022-2024
F2: Приложение 2
H3: к бюджету городского округа Лыткарино на 2023 год
F4: и на плановый период 2024 и 2025 годов
A8: Распределение бюджетных ассигнований по разделам, подразделам, целевым статьям (муниципальным программам городского округа Лыткарино и непрограммным направлениям деятельности), группам и подгруппам видов расходов классификации расходов бюджета городского округа Лыткарино на 2023 год и на плановый период 2024 и 2025 годов
K9: (тыс.руб.)
A10: Наименования | B10: Рз | C10: ПР | D10: ЦСР | E10: ВР | F10: Сумма на 2023 год | G10: В т.ч. Субвенции, субсидии, иные межбюджетные трансферты | H10: Сумма на 2024 год | I10: В т.ч. Субвенции, субсидии, иные межбюджетные трансферты | J10: Сумма на 2025 год | K10: В т.ч. Субвенции, субсидии, иные межбюджетные трансферты
A11: 1 | B11: 2 | C11: 3 | D11: 4 | E11: 5 | F11: 6 | G11: 7 | H11: 8 | I11: 9 | J11: 10 | K11: 11
A12: Общегосударственные вопросы | B12: 01 | F12: =F13+F20+F44+F101+F135+F143 -> 338500 | G12: 6034.1 | H12: 320950.1 | I12: 6065.1 | J12: 300099.2 | K12: 6087.9
A13: Функционирование высшего должностного лица субъекта Российской Федерации и муниципального образования | B13: 01 | C13: 02 | F13: =F14 -> 3395.7 | H13: =H14 -> 3395.7 | J13: =J14 -> 3395.7
A14: Муниципальная программа «Управление имуществом и муниципальными финансами» | B14: 01 | C14: 02 | D14: 12 0 00 00000 | F14: =F15 -> 3395.7 | H14: =H15 -> 3395.7 | J14: 3395.7
A15: Обеспечивающая подпрограмма | B15: 01 | C15: 02 | D15: 12 5 00 00000 | F15: =F16 -> 3395.7 | H15: =H16 -> 3395.7 | J15: 3395.7
A16: Основное мероприятие «Создание условий для реализации полномочий органов местного самоуправления» | B16: 01 | C16: 02 | D16: 12 5 01 00000 | F16: =F17 -> 3395.7 | H16: =H17 -> 3395.7 | J16: 3395.7
A17: Функционирование высшего должностного лица | B17: 01 | C17: 02 | D17: 12 5 01 00110 | F17: ='ведом. 2022-2024'!AD16 -> 3395.7 | H17: ='ведом. 2022-2024'!AE16 -> 3395.7 | J17: 3395.7
A18: Расходы на выплаты персоналу в целях обеспечения выполнения функций государственными (муниципальными) органами, казенными учреждениями, органами управления государственными внебюджетными фондами | B18: 01 | C18: 02 | D18: 12 5 01 00110 | E18: 100 | F18: =F19 -> 3395.7 | H18: =H19 -> 3395.7 | J18: 3395.7
A19: Расходы на выплаты персоналу государственных (муниципальных) органов | B19: 01 | C19: 02 | D19: 12 5 01 00110 | E19: 120 | F19: ='ведом. 2022-2024'!AD18 -> 3395.7 | H19: ='ведом. 2022-2024'!AE18 -> 3395.7 | J19: ='ведом. 2022-2024'!AF18 -> 3395.7
A20: Функционирование законодательных (представительных) органов государственной власти и представительных органов муниципальных образований | B20: 01 | C20: 03 | F20: =F27+F21 -> 16011.7 | H20: =H27+H21 -> 16011.7 | J20: 16166.7
A21: Муниципальная программа «Культура» | B21: 01 | C21: 03 | D21: 02 0 00 00000 | F21: =F22 -> 0 | H21: =H22 -> 0 | J21: =J22 -> 155
A22: Подпрограмма «Развитие архивного дела» | B22: 01 | C22: 03 | D22: 02 9 00 00000 | F22: 0 | H22: 0 | J22: 155
A23: Основное мероприятие «Хранение, комплектование, учет и использование архивных документов в муниципальных архивах» | B23: 01 | C23: 03 | D23: 02 9 01 00000 | F23: 0 | H23: 0 | J23: 155
A24: Расходы на обеспечение деятельности (оказание услуг) муниципальных архивов | B24: 01 | C24: 03 | D24: 02 9 01 06160 | F24: 0 | H24: 0 | J24: 155
A25: Закупка товаров, работ и услуг для обеспечения государственных (муниципальных) нужд | B25: 01 | C25: 03 | D25: 02 9 01 06160 | E25: 200 | F25: 0 | H25: 0 | J25: 155
A26: Иные закупки товаров, работ и услуг для обеспечения государственных (муниципальных) нужд | B26: 01 | C26: 03 | D26: 02 9 01 06160 | E26: 240 | F26: ='ведом. 2022-2024'!AD452 -> 0 | H26: ='ведом. 2022-2024'!AE452 -> 0 | J26: ='ведом. 2022-2024'!AF452 -> 155
A27: Руководство и управление в сфере установленных функций органов местного самоуправления | B27: 01 | C27: 03 | D27: 95 0 00 00000 | F27: =F28+F31+F34 -> 16011.7 | H27: =H28+H31+H34 -> 16011.7 | J27: =J28+J31+J34 -> 16011.7
A28: Председатель представительного органа местного самоуправления | B28: 01 | C28: 03 | D28: 95 0 00 00010 | F28: =F29 -> 3017.8 | H28: =H29 -> 3017.8 | J28: =J29 -> 3017.8
A29: Расходы на выплаты персоналу в целях обеспечения выполнения функций государственными (муниципальными) органами, казенными учреждениями, органами управления государственными внебюджетными фондами | B29: 01 | C29: 03 | D29: 95 0 00 00010 | E29: 100 | F29: =F30 -> 3017.8 | H29: =H30 -> 3017.8 | J29: =J30 -> 3017.8
A30: Расходы на выплаты персоналу государственных (муниципальных) органов | B30: 01 | C30: 03 | D30: 95 0 00 00010 | E30: 120 | F30: ='ведом. 2022-2024'!AD456 -> 3017.8 | H30: ='ведом. 2022-2024'!AE456 -> 3017.8 | J30: ='ведом. 2022-2024'!AF456 -> 3017.8
A31: Депутат представительного органа местного самоуправления на постоянной основе | B31: 01 | C31: 03 | D31: 95 0 00 00020 | F31: =F33 -> 2325.1 | H31: =H33 -> 2325.1 | J31: =J33 -> 2325.1
A32: Расходы на выплаты персоналу в целях обеспечения выполнения функций государственными (муниципальными) органами, казенными учреждениями, органами управления государственными внебюджетными фондами | B32: 01 | C32: 03 | D32: 95 0 00 00020 | E32: 100 | F32: =F33 -> 2325.1 | H32: =H33 -> 2325.1 | J32: =J33 -> 2325.1
A33: Расходы на выплаты персоналу государственных (муниципальных) органов | B33: 01 | C33: 03 | D33: 95 0 00 00020 | E33: 120 | F33: ='ведом. 2022-2024'!AD459 -> 2325.1 | H33: ='ведом. 2022-2024'!AE459 -> 2325.1 | J33: ='ведом. 2022-2024'!AF459 -> 2325.1
A34: Расходы на содержание представительного органа муниципального образования | B34: 01 | C34: 03 | D34: 95 0 00 00030 | F34: =F35+F38+F41 -> 10668.8 | H34: =H35+H38+H41 -> 10668.8 | J34: =J35+J38+J41 -> 10668.8
A35: Расходы на содержание представительного органа муниципального образования( обеспечение деятельности) | B35: 01 | C35: 03 | D35: 95 0 00 00031 | F35: =F36 -> 1697.3 | H35: =H36 -> 1697.3 | J35: 1697.3
A36: Закупка товаров, работ и услуг для обеспечения государственных (муниципальных) нужд | B36: 01 | C36: 03 | D36: 95 0 00 00031 | E36: 200 | F36: =F37 -> 1697.3 | H36: =H37 -> 1697.3 | J36: =J37 -> 1697.3
A37: Иные закупки товаров, работ и услуг для обеспечения государственных (муниципальных) нужд | B37: 01 | C37: 03 | D37: 95 0 00 00031 | E37: 240 | F37: ='ведом. 2022-2024'!AD463 -> 1697.3 | H37: ='ведом. 2022-2024'!AE463 -> 1697.3 | J37: ='ведом. 2022-2024'!AF463 -> 1697.3
A38: Расходы на содержание представительного органа муниципального образования (расходы на содержание лиц, замещающих должности, не являющиеся должностями муниципальной службы) | B38: 01 | C38: 03 | D38: 95 0 00 00032 | F38: =F39 -> 4263.9 | H38: =H39 -> 4263.9 | J38: =J39 -> 4263.9
A39: Расходы на выплаты персоналу в целях обеспечения выполнения функций государственными (муниципальными) органами, казенными учреждениями, органами управления государственными внебюджетными фондами | B39: 01 | C39: 03 | D39: 95 0 00 00032 | E39: 100 | F39: =F40 -> 4263.9 | H39: =H40 -> 4263.9 | J39: =J40 -> 4263.9
A40: Расходы на выплаты персоналу государственных (муниципальных) органов | B40: 01 | C40: 03 | D40: 95 0 00 00032 | E40: 120 | F40: ='ведом. 2022-2024'!AD466 -> 4263.9 | H40: ='ведом. 2022-2024'!AE466 -> 4263.9 | J40: ='ведом. 2022-2024'!AF466 -> 4263.9
A41: Расходы на содержание представительного органа муниципального образования (расходы на содержание лиц, замещающих должности муниципальной службы) | B41: 01 | C41: 03 | D41: 95 0 00 00033 | F41: =F42 -> 4707.6 | H41: =H42 -> 4707.6 | J41: =J42 -> 4707.6
A42: Расходы на выплаты персоналу в целях обеспечения выполнения функций государственными (муниципальными) органами, казенными учреждениями, органами управления государственными внебюджетными фондами | B42: 01 | C42: 03 | D42: 95 0 00 00033 | E42: 100 | F42: =F43 -> 4707.6 | H42: =H43 -> 4707.6 | J42: =J43 -> 4707.6
A43: Расходы на выплаты персоналу государственных (муниципальных) органов | B43: 01 | C43: 03 | D43: 95 0 00 00033 | E43: 120 | F43: ='ведом. 2022-2024'!AD469 -> 4707.6 | H43: ='ведом. 2022-2024'!AE469 -> 4707.6 | J43: ='ведом. 2022-2024'!AF469 -> 4707.6
A44: Функционирование Правительства Российской Федерации, высших исполнительных органов государственной власти субъектов Российской Федерации, местных администраций | B44: 01 | C44: 04 | F44: =F45+F57+F87+F93+F70 -> 93540 | G44: 4336 | H44: 92911 | I44: 4367 | J44: 93079 | K44: 4390
A45: Муниципальная программа «Культура и туризм» | B45: 01 | C45: 04 | D45: 02 0 00 00000 | F45: =F46 -> 2102 | G45: 1802 | H45: 1806 | I45: 1806 | J45: 1953 | K45: 1808
A46: Подпрограмма «Развитие архивного дела» | B46: 01 | C46: 04 | D46: 02 9 00 00000 | F46: =F47+F51 -> 2102 | G46: 1802 | H46: 1806 | I46: 1806 | J46: 1953 | K46: 1808
A47: Основное мероприятие «Хранение, комплектование, учет и использование архивных документов в муниципальных архивах» | B47: 01 | C47: 04 | D47: 02 9 01 00000 | F47: =F48 -> 300 | H47: =H48 -> 0 | J47: =J48 -> 145
A48: Расходы на обеспечение деятельности (оказание услуг) муниципальных архивов | B48: 01 | C48: 04 | D48: 02 9 01 06160 | F48: =F49 -> 300 | H48: =H49 -> 0 | J48: =J49 -> 145
A49: Закупка товаров, работ и услуг для обеспечения государственных (муниципальных) нужд | B49: 01 | C49: 04 | D49: 02 9 01 06160 | E49: 200 | F49: =F50 -> 300 | H49: =H50 -> 0 | J49: =J50 -> 145
A50: Иные закупки товаров, работ и услуг для обеспечения государственных (муниципальных) нужд | B50: 01 | C50: 04 | D50: 02 9 01 06160 | E50: 240 | F50: ='ведом. 2022-2024'!AD25 -> 300 | H50: ='ведом. 2022-2024'!AE25 -> 0 | J50: ='ведом. 2022-2024'!AF25 -> 145
A51: Основное мероприятие «Временное хранение, комплектование, учет и использование архивных документов, относящихся к собственности Московской области и временно хранящихся в муниципальных архивах» | B51: 01 | C51: 04 | D51: 02 9 02 00000 | F51: =F52 -> 1802 | G51: 1802 | H51: 1806 | I51: 1806 | J51: 1808 | K51: 1808
A52: Обеспечение переданных полномочий по временному хранению, комплектованию, учету и использованию архивных документов, относящихся к собственности Московской области и временно хранящихся в муниципальных архивах | B52: 01 | C52: 04 | D52: 02 9 02 60690 | F52: =F53+F55 -> 1802 | G52: 1802 | H52: 1806 | I52: 1806 | J52: 1808 | K52: 1808
A53: Расходы на выплаты персоналу в целях обеспечения выполнения функций государственными (муниципальными) органами, казенными учреждениями, органами управления государственными внебюджетными фондами | B53: 01 | C53: 04 | D53: 02 9 02 60690 | E53: 100 | F53: =F54 -> 1733 | G53: 1733 | H53: 1733 | I53: 1733 | J53: 1733 | K53: 1733
A54: Расходы на выплаты персоналу государственных (муниципальных) органов | B54: 01 | C54: 04 | D54: 02 9 02 60690 | E54: 120 | F54: ='ведом. 2022-2024'!AD29 -> 1733 | G54: =F54 -> 1733 | H54: ='ведом. 2022-2024'!AE29 -> 1733 | I54: =H54 -> 1733 | J54: ='ведом. 2022-2024'!AF29 -> 1733 | K54: =J54 -> 1733
A55: Закупка товаров, работ и услуг для обеспечения государственных (муниципальных) нужд | B55: 01 | C55: 04 | D55: 02 9 02 60690 | E55: 200 | F55: =F56 -> 69 | G55: 69 | H55: 73 | I55: 73 | J55: 75 | K55: 75
A56: Иные закупки товаров, работ и услуг для обеспечения государственных (муниципальных) нужд | B56: 01 | C56: 04 | D56: 02 9 02 60690 | E56: 240 | F56: ='ведом. 2022-2024'!AD31 -> 69 | G56: =F56 -> 69 | H56: ='ведом. 2022-2024'!AE31 -> 73 | I56: =H56 -> 73 | J56: ='ведом. 2022-2024'!AF31 -> 75 | K56: =J56 -> 75
A57: Муниципальная программа «Социальная защита населения» | B57: 01 | C57: 04 | D57: 04 0 00 00000 | F57: =F58+F65 -> 2765 | G57: =G58+G65 -> 2335 | H57: 2432 | I57: 2362 | J57: 2453 | K57: 2383
A58: Обеспечивающая подпрограмма | B58: 01 | C58: 04 | D58: 04 5 00 00000 | F58: =F59 -> 2335 | G58: 2335 | H58: 2362 | I58: 2362 | J58: 2383 | K58: 2383
A59: Основное мероприятие «Иные мероприятия, реализуемые в целях создания условий для реализации полномочий органов государственной власти Московской области и государственных органов Московской области» | B59: 01 | C59: 04 | D59: 04 5 03 00000 | F59: 2335 | G59: 2335 | H59: 2362 | I59: 2362 | J59: 2383 | K59: 2383
A60: Обеспечение переданного государственного полномочия Московской области по созданию комиссий по делам несовершеннолетних и защите их прав муниципальных образований Московской области | B60: 01 | C60: 04 | D60: 04 5 03 60680 | F60: =F61+F63 -> 2335 | G60: 2335 | H60: 2362 | I60: 2362 | J60: 2383 | K60: 2383
A61: Расходы на выплаты персоналу в целях обеспечения выполнения функций государственными (муниципальными) органами, казенными учреждениями, органами управления государственными внебюджетными фондами | B61: 01 | C61: 04 | D61: 04 5 03 60680 | E61: 100 | F61: =F62 -> 1998 | G61: 1998 | H61: 1998 | I61: 1998 | J61: 1998 | K61: 1998
A62: Расходы на выплаты персоналу государственных (муниципальных) органов | B62: 01 | C62: 04 | D62: 04 5 03 60680 | E62: 120 | F62: ='ведом. 2022-2024'!AD37 -> 1998 | G62: =F62 -> 1998 | H62: ='ведом. 2022-2024'!AE37 -> 1998 | I62: =H62 -> 1998 | J62: ='ведом. 2022-2024'!AF37 -> 1998 | K62: =J62 -> 1998
A63: Закупка товаров, работ и услуг для обеспечения государственных (муниципальных) нужд | B63: 01 | C63: 04 | D63: 04 5 03 60680 | E63: 200 | F63: =F64 -> 337 | G63: 337 | H63: 364 | I63: 364 | J63: 385 | K63: 385
A64: Иные закупки товаров, работ и услуг для обеспечения государственных (муниципальных) нужд | B64: 01 | C64: 04 | D64: 04 5 03 60680 | E64: 240 | F64: ='ведом. 2022-2024'!AD39 -> 337 | G64: =F64 -> 337 | H64: ='ведом. 2022-2024'!AE39 -> 364 | I64: =H64 -> 364 | J64: ='ведом. 2022-2024'!AF39 -> 385 | K64: =J64 -> 385
A65: Подпрограмма "Обеспечение доступности для инвалидов и маломобильных групп населения объектов инфраструктуры и услуг" | B65: 01 | C65: 04 | D65: 04 7 00 00000 | F65: =F66 -> 430 | H65: =H66 -> 70 | J65: 70
A66: Основное мероприятие "Обеспечение доступности для инвалидов и маломобильных групп населения объектов инфраструктуры (за исключением сфер культуры, образования, спорта)" | B66: 01 | C66: 04 | D66: 04 7 01 00000 | F66: =F67 -> 430 | H66: 70 | J66: 70
A67: Обеспечение доступности для инвалидов и маломобильных групп населения объектов инфраструктуры (за исключением сфер культуры, образования, спорта) | B67: 01 | C67: 04 | D67: 04 7 01 01770 | F67: =F68 -> 430 | H67: 70 | J67: 70
A68: Закупка товаров, работ и услуг для обеспечения государственных (муниципальных) нужд | B68: 01 | C68: 04 | D68: 04 7 01 01770 | E68: 200 | F68: =F69 -> 430 | H68: 70 | J68: 70
A69: Иные закупки товаров, работ и услуг для обеспечения государственных (муниципальных) нужд | B69: 01 | C69: 04 | D69: 04 7 01 01770 | E69: 240 | F69: ='ведом. 2022-2024'!AD44 -> 430 | H69: ='ведом. 2022-2024'!AE44 -> 70 | J69: ='ведом. 2022-2024'!AF44 -> 70
A70: Муниципальная программа «Управление имуществом и муниципальными финансами» | B70: 01 | C70: 04 | D70: 12 0 00 00000 | F70: =F71 -> 82222 | H70: =H71 -> 82222 | J70: 82222
A71: Обеспечивающая подпрограмма | B71: 01 | C71: 04 | D71: 12 5 00 00000 | F71: =F72+F83 -> 82222 | H71: =H72+H83 -> 82222 | J71: =J72+J83 -> 82222
A72: Основное мероприятие «Создание условий для реализации полномочий органов местного самоуправления» | B72: 01 | C72: 04 | D72: 12 5 01 00000 | F72: =F73 -> 82172 | H72: =H73 -> 82172 | J72: =J73 -> 82172
A73: Обеспечение деятельности администрации | B73: 01 | C73: 04 | D73: 12 5 01 00120 | F73: =F74+F77+F80 -> 82172 | H73: =H74+H77+H80 -> 82172 | J73: =J74+J77+J80 -> 82172
A74: Обеспечение деятельности администрации (расходы на обеспечение деятельности органов местного самоуправления) | B74: 01 | C74: 04 | D74: 12 5 01 00121 | F74: =F75 -> 8226.8 | H74: =H75 -> 8226.8 | J74: 8226.8
A75: Закупка товаров, работ и услуг для обеспечения государственных (муниципальных) нужд | B75: 01 | C75: 04 | D75: 12 5 01 00121 | E75: 200 | F75: =F76 -> 8226.8 | H75: =H76 -> 8226.8 | J75: =J76 -> 8226.8
A76: Иные закупки товаров, работ и услуг для обеспечения государственных (муниципальных) нужд | B76: 01 | C76: 04 | D76: 12 5 01 00121 | E76: 240 | F76: ='ведом. 2022-2024'!AD51 -> 8226.8 | H76: ='ведом. 2022-2024'!AE51 -> 8226.8 | J76: ='ведом. 2022-2024'!AF51 -> 8226.8
A77: Обеспечение деятельности администрации (расходы на содержание лиц, замещающих должности, не являющиеся должностями муниципальной службы) | B77: 01 | C77: 04 | D77: 12 5 01 00122 | F77: =F78 -> 25933.7 | H77: =H78 -> 25933.7 | J77: =J78 -> 25933.7
A78: Расходы на выплаты персоналу в целях обеспечения выполнения функций государственными (муниципальными) органами, казенными учреждениями, органами управления государственными внебюджетными фондами | B78: 01 | C78: 04 | D78: 12 5 01 00122 | E78: 100 | F78: =F79 -> 25933.7 | H78: =H79 -> 25933.7 | J78: =J79 -> 25933.7
A79: Расходы на выплаты персоналу государственных (муниципальных) органов | B79: 01 | C79: 04 | D79: 12 5 01 00122 | E79: 120 | F79: ='ведом. 2022-2024'!AD54 -> 25933.7 | H79: ='ведом. 2022-2024'!AE54 -> 25933.7 | J79: ='ведом. 2022-2024'!AF54 -> 25933.7
A80: Обеспечение деятельности администрации (расходы на содержание лиц, замещающих должности муниципальной службы) | B80: 01 | C80: 04 | D80: 12 5 01 00123 | F80: =F81 -> 48011.5 | H80: =H81 -> 48011.5 | J80: =J81 -> 48011.5
A81: Расходы на выплаты персоналу в целях обеспечения выполнения функций государственными (муниципальными) органами, казенными учреждениями, органами управления государственными внебюджетными фондами | B81: 01 | C81: 04 | D81: 12 5 01 00123 | E81: 100 | F81: =F82 -> 48011.5 | H81: =H82 -> 48011.5 | J81: =J82 -> 48011.5
A82: Расходы на выплаты персоналу государственных (муниципальных) органов | B82: 01 | C82: 04 | D82: 12 5 01 00123 | E82: 120 | F82: ='ведом. 2022-2024'!AD57 -> 48011.5 | H82: ='ведом. 2022-2024'!AE57 -> 48011.5 | J82: ='ведом. 2022-2024'!AF57 -> 48011.5
A83: Основное мероприятие "Мероприятия, реализуемые в целях создания условий для реализации полномочий органов местного самоуправления" | B83: 01 | C83: 04 | D83: 12 5 03 00000 | F83: =F84 -> 50 | H83: =H84 -> 50 | J83: 50
A84: Организация профессионального образования и дополнительного профессионального образования выборных должностных лиц местного самоуправления, членов выборных органов местного самоуправления, депутатов представительных органов муниципальных образований, муниципальных служащих и работников муниципальных учреждений, организация подготовки кадров для муниципальной службы | B84: 01 | C84: 04 | D84: 12 5 03 00830 | F84: =F85 -> 50 | H84: 50 | J84: 50
A85: Закупка товаров, работ и услуг для обеспечения государственных (муниципальных) нужд | B85: 01 | C85: 04 | D85: 12 5 03 00830 | E85: 200 | F85: =F86 -> 50 | H85: =H86 -> 50 | J85: =J86 -> 50
A86: Иные закупки товаров, работ и услуг для обеспечения государственных (муниципальных) нужд | B86: 01 | C86: 04 | D86: 12 5 03 00830 | E86: 240 | F86: ='ведом. 2022-2024'!AD61 -> 50 | H86: ='ведом. 2022-2024'!AE61 -> 50 | J86: ='ведом. 2022-2024'!AF61 -> 50
A87: Муниципальная программа «Развитие институтов гражданского общества, повышение эффективности местного самоуправления и реализации молодежной политики» | B87: 01 | C87: 04 | D87: 13 0 00 00000 | F87: =F88 -> 6252 | H87: =H88 -> 6252 | J87: =J88 -> 6252
A88: Подпрограмма «Развитие системы информирования населения о деятельности органов местного самоуправления Московской области, создание доступной современной медиасреды» | B88: 01 | C88: 04 | D88: 13 1 00 00000 | F88: =F89 -> 6252 | H88: =H89 -> 6252 | J88: =J89 -> 6252
A89: Основное мероприятие «Информирование населения об основных событиях социально-экономического развития и общественно-политической жизни» | B89: 01 | C89: 04 | D89: 13 1 01 00000 | F89: =F90 -> 6252 | H89: =H90 -> 6252 | J89: =J90 -> 6252
A90: Информирование населения о деятельности, о положении дел на территории муниципального образования, опубликование муниципальных правовых актов, обсуждение проектов муниципальных правовых актов по вопросам местного значения, доведение до сведения жителей муниципального образования официальной информации о социально-экономическом и культурном развитии муниципального образования, о развитии его общественной инфраструктуры и иной официальной информации | B90: 01 | C90: 04 | D90: 13 1 01 00820 | F90: =F91 -> 6252 | H90: =H91 -> 6252 | J90: =J91 -> 6252
A91: Закупка товаров, работ и услуг для обеспечения государственных (муниципальных) нужд | B91: 01 | C91: 04 | D91: 13 1 01 00820 | E91: 200 | F91: =F92 -> 6252 | H91: =H92 -> 6252 | J91: =J92 -> 6252
A92: Иные закупки товаров, работ и услуг для обеспечения государственных (муниципальных) нужд | B92: 01 | C92: 04 | D92: 13 1 01 00820 | E92: 240 | F92: ='ведом. 2022-2024'!AD67 -> 6252 | H92: ='ведом. 2022-2024'!AE67 -> 6252 | J92: ='ведом. 2022-2024'!AF67 -> 6252
A93: Муниципальная программа «Архитектура и градостроительство» | B93: 01 | C93: 04 | D93: 16 0 00 00000 | F93: =F94 -> 199 | G93: =G94 -> 199 | H93: 199 | I93: 199 | J93: 199 | K93: 199
A94: Подпрограмма «Реализация политики пространственного развития городского округа» | B94: 01 | C94: 04 | D94: 16 2 00 00000 | F94: =F95 -> 199 | G94: =G95 -> 199 | H94: 199 | I94: 199 | J94: 199 | K94: 199
A95: Основное мероприятие "Финансовое обеспечение выполнения отдельных государственных полномочий в сфере архитектуры и градостроительства, переданных органам местного самоуправления муниципальных образований" | B95: 01 | C95: 04 | D95: 16 2 04 00000 | F95: =F96 -> 199 | G95: =G96 -> 199 | H95: 199 | I95: 199 | J95: 199 | K95: 199
A96: Осуществление отдельных государственных полномочий в части присвоения адресов объектам адресации и согласования перепланировки помещений в многоквартирном доме | B96: 01 | C96: 04 | D96: 16 2 04 60700 | F96: =F97+F99 -> 199 | G96: =G97+G99 -> 199 | H96: 199 | I96: 199 | J96: 199 | K96: 199
A97: Расходы на выплаты персоналу в целях обеспечения выполнения функций государственными (муниципальными) органами, казенными учреждениями, органами управления государственными внебюджетными фондами | B97: 01 | C97: 04 | D97: 16 2 04 60700 | E97: 100 | F97: =F98 -> 158.3 | G97: =G98 -> 158.3 | H97: 158.3 | I97: 158.3 | J97: 158.3 | K97: 158.3
A98: Расходы на выплаты персоналу государственных (муниципальных) органов | B98: 01 | C98: 04 | D98: 16 2 04 60700 | E98: 120 | F98: ='ведом. 2022-2024'!AD73 -> 158.3 | G98: =F98 -> 158.3 | H98: ='ведом. 2022-2024'!AF73 -> 158.3 | I98: =H98 -> 158.3 | J98: =I98 -> 158.3 | K98: 158.3
A99: Закупка товаров, работ и услуг для обеспечения государственных (муниципальных) нужд | B99: 01 | C99: 04 | D99: 16 2 04 60700 | E99: 200 | F99: =F100 -> 40.7 | G99: =G100 -> 40.7 | H99: 40.7 | I99: 40.7 | J99: 40.7 | K99: 40.7
A100: Иные закупки товаров, работ и услуг для обеспечения государственных (муниципальных) нужд | B100: 01 | C100: 04 | D100: 16 2 04 60700 | E100: 240 | F100: ='ведом. 2022-2024'!AD75 -> 40.7 | G100: =F100 -> 40.7 | H100: ='ведом. 2022-2024'!AE75 -> 40.7 | I100: =H100 -> 40.7 | J100: ='ведом. 2022-2024'!AF75 -> 40.7 | K100: =J100 -> 40.7
A101: Обеспечение деятельности финансовых, налоговых и таможенных органов и органов финансового (финансово-бюджетного) надзора | B101: 01 | C101: 06 | F101: =F108+F121+F102 -> 35457 | H101: =H108+H121+H102 -> 35547 | J101: 35457
A102: Муниципальная программа «Культура и туризм» | B102: 01 | C102: 06 | D102: 02 0 00 00000 | F102: =F103 -> 0 | H102: 90 | J102: =J103 -> 0
A103: Подпрограмма «Развитие архивного дела» | B103: 01 | C103: 06 | D103: 02 9 00 00000 | F103: 0 | H103: 90 | J103: =J104 -> 0
A104: Основное мероприятие «Хранение, комплектование, учет и использование архивных документов в муниципальных архивах» | B104: 01 | C104: 06 | D104: 02 9 01 00000 | F104: 0 | H104: 90 | J104: =J105 -> 0
A105: Расходы на обеспечение деятельности (оказание услуг) муниципальных архивов | B105: 01 | C105: 06 | D105: 02 9 01 06160 | F105: 0 | H105: 90 | J105: =J106 -> 0
A106: Закупка товаров, работ и услуг для обеспечения государственных (муниципальных) нужд | B106: 01 | C106: 06 | D106: 02 9 01 06160 | E106: 200 | F106: 0 | H106: 90 | J106: =J107 -> 0
A107: Иные закупки товаров, работ и услуг для обеспечения государственных (муниципальных) нужд | B107: 01 | C107: 06 | D107: 02 9 01 06160 | E107: 240 | F107: ='ведом. 2022-2024'!AD486 -> 0 | H107: ='ведом. 2022-2024'!AE486 -> 90 | J107: ='ведом. 2022-2024'!AF486 -> 0
A108: Муниципальная программа «Управление имуществом и муниципальными финансами» | B108: 01 | C108: 06 | D108: 12 0 00 00000 | F108: =F109 -> 25455.8 | H108: =H109 -> 25455.8 | J108: =J109 -> 25455.8
A109: Обеспечивающая подпрограмма | B109: 01 | C109: 06 | D109: 12 5 00 00000 | F109: =F110 -> 25455.8 | H109: =H110 -> 25455.8 | J109: =J110 -> 25455.8
A110: Основное мероприятие «Создание условий для реализации полномочий органов местного самоуправления» | B110: 01 | C110: 06 | D110: 12 5 01 00000 | F110: =F111 -> 25455.8 | H110: =H111 -> 25455.8 | J110: =J111 -> 25455.8
A111: Обеспечение деятельности финансового органа | B111: 01 | C111: 06 | D111: 12 5 01 00160 | F111: =F112+F115+F118 -> 25455.8 | H111: =H112+H115+H118 -> 25455.8 | J111: =J112+J115+J118 -> 25455.8
A112: Обеспечение деятельности финансового органа (расходы на обеспечение деятельности органов местного самоуправления) | B112: 01 | C112: 06 | D112: 12 5 01 00161 | F112: =F113 -> 3279.7 | H112: =H113 -> 3279.7 | J112: 3279.7
A113: Закупка товаров, работ и услуг для обеспечения государственных (муниципальных) нужд | B113: 01 | C113: 06 | D113: 12 5 01 00161 | E113: 200 | F113: =F114 -> 3279.7 | H113: =H114 -> 3279.7 | J113: =J114 -> 3279.7
A114: Иные закупки товаров, работ и услуг для обеспечения государственных (муниципальных) нужд | B114: 01 | C114: 06 | D114: 12 5 01 00161 | E114: 240 | F114: ='ведом. 2022-2024'!AD493 -> 3279.7 | H114: ='ведом. 2022-2024'!AE493 -> 3279.7 | J114: ='ведом. 2022-2024'!AF493 -> 3279.7
A115: Обеспечение деятельности финансового органа (расходы на содержание лиц, замещающих должности, не являющиеся должностями муниципальной службы) | B115: 01 | C115: 06 | D115: =D116 -> 12 5 01 00162 | F115: =F117 -> 13550.9 | H115: =H117 -> 13550.9 | J115: =J117 -> 13550.9
A116: Расходы на выплаты персоналу в целях обеспечения выполнения функций государственными (муниципальными) органами, казенными учреждениями, органами управления государственными внебюджетными фондами | B116: 01 | C116: 06 | D116: =D117 -> 12 5 01 00162 | E116: 100 | F116: =F117 -> 13550.9 | H116: =H117 -> 13550.9 | J116: =J117 -> 13550.9
A117: Расходы на выплаты персоналу государственных (муниципальных) органов | B117: 01 | C117: 06 | D117: 12 5 01 00162 | E117: 120 | F117: ='ведом. 2022-2024'!AD496 -> 13550.9 | H117: ='ведом. 2022-2024'!AE496 -> 13550.9 | J117: ='ведом. 2022-2024'!AF496 -> 13550.9
A118: Обеспечение деятельности финансового органа (расходы на содержание лиц, замещающих должности муниципальной службы) | B118: 01 | C118: 06 | D118: =D119 -> 12 5 01 00163 | F118: =F119 -> 8625.2 | H118: =H119 -> 8625.2 | J118: =J119 -> 8625.2
A119: Расходы на выплаты персоналу в целях обеспечения выполнения функций государственными (муниципальными) органами, казенными учреждениями, органами управления государственными внебюджетными фондами | B119: 01 | C119: 06 | D119: =D120 -> 12 5 01 00163 | E119: 100 | F119: =F120 -> 8625.2 | H119: =H120 -> 8625.2 | J119: =J120 -> 8625.2
A120: Расходы на выплаты персоналу государственных (муниципальных) органов | B120: 01 | C120: 06 | D120: 12 5 01 00163 | E120: 120 | F120: ='ведом. 2022-2024'!AD499 -> 8625.2 | H120: ='ведом. 2022-2024'!AE499 -> 8625.2 | J120: ='ведом. 2022-2024'!AF499 -> 8625.2
A121: Руководство и управление в сфере установленных функций органов местного самоуправления | B121: 01 | C121: 06 | D121: 95 0 00 00000 | F121: =F122 -> 10001.2 | H121: =H122 -> 10001.2 | J121: 10001.2
A122: Обеспечение деятельности контрольно-счетной палаты | B122: 01 | C122: 06 | D122: 95 0 00 00150 | F122: =F123+F126+F129+F132 -> 10001.2 | H122: =H123+H126+H129+H132 -> 10001.2 | J122: =J123+J126+J129+J132 -> 10001.2
A123: Обеспечение деятельности контрольно-счетной палаты (обеспечение деятельности) | B123: 01 | C123: 06 | D123: 95 0 00 00151 | F123: =F124 -> 1041 | H123: =H124 -> 1041 | J123: 1041
A124: Закупка товаров, работ и услуг для обеспечения государственных (муниципальных) нужд | B124: 01 | C124: 06 | D124: 95 0 00 00151 | E124: 200 | F124: =F125 -> 1041 | H124: =H125 -> 1041 | J124: =J125 -> 1041
A125: Иные закупки товаров, работ и услуг для обеспечения государственных (муниципальных) нужд | B125: 01 | C125: 06 | D125: 95 0 00 00151 | E125: 240 | F125: ='ведом. 2022-2024'!AD899 -> 1041 | H125: ='ведом. 2022-2024'!AE899 -> 1041 | J125: ='ведом. 2022-2024'!AF899 -> 1041
A126: Обеспечение деятельности контрольно-счетной палаты(расходы на содержание лиц, замещающих должности, не являющиеся должностями муниципальной службы) | B126: 01 | C126: 06 | D126: 95 0 00 00152 | F126: =F127 -> 2131.9 | H126: =H127 -> 2131.9 | J126: =J127 -> 2131.9
A127: Расходы на выплаты персоналу в целях обеспечения выполнения функций государственными (муниципальными) органами, казенными учреждениями, органами управления государственными внебюджетными фондами | B127: 01 | C127: 06 | D127: 95 0 00 00152 | E127: 100 | F127: =F128 -> 2131.9 | H127: =H128 -> 2131.9 | J127: =J128 -> 2131.9
A128: Расходы на выплаты персоналу государственных (муниципальных) органов | B128: 01 | C128: 06 | D128: 95 0 00 00152 | E128: 120 | F128: ='ведом. 2022-2024'!AD902 -> 2131.9 | H128: ='ведом. 2022-2024'!AE902 -> 2131.9 | J128: ='ведом. 2022-2024'!AF902 -> 2131.9
A129: Обеспечение деятельности контрольно-счетной палаты (расходы на содержание лиц, замещающих должности муниципальной службы) | B129: 01 | C129: 06 | D129: 95 0 00 00153 | F129: =F130 -> 2647.4 | H129: =H130 -> 2647.4 | J129: =J130 -> 2647.4
A130: Расходы на выплаты персоналу в целях обеспечения выполнения функций государственными (муниципальными) органами, казенными учреждениями, органами управления государственными внебюджетными фондами | B130: 01 | C130: 06 | D130: 95 0 00 00153 | E130: 100 | F130: =F131 -> 2647.4 | H130: =H131 -> 2647.4 | J130: =J131 -> 2647.4
A131: Расходы на выплаты персоналу государственных (муниципальных) органов | B131: 01 | C131: 06 | D131: 95 0 00 00153 | E131: 120 | F131: ='ведом. 2022-2024'!AD905 -> 2647.4 | H131: ='ведом. 2022-2024'!AE905 -> 2647.4 | J131: ='ведом. 2022-2024'!AF905 -> 2647.4
A132: Обеспечение деятельности контрольно-счетной палаты (расходы на содержание лиц, замещающих муниципальные должности ) | B132: 01 | C132: 06 | D132: 95 0 00 00154 | F132: =F133 -> 4180.9 | H132: =H133 -> 4180.9 | J132: 4180.9
A133: Расходы на выплаты персоналу в целях обеспечения выполнения функций государственными (муниципальными) органами, казенными учреждениями, органами управления государственными внебюджетными фондами | B133: 01 | C133: 06 | D133: 95 0 00 00154 | E133: 100 | F133: =F134 -> 4180.9 | H133: =H134 -> 4180.9 | J133: 4180.9
A134: Расходы на выплаты персоналу государственных (муниципальных) органов | B134: 01 | C134: 06 | D134: 95 0 00 00154 | E134: 120 | F134: ='ведом. 2022-2024'!AD908 -> 4180.9 | H134: ='ведом. 2022-2024'!AE908 -> 4180.9 | J134: ='ведом. 2022-2024'!AF908 -> 4180.9
A135: Резервные фонды | B135: 01 | C135: 11 | F135: =F136 -> 3530.5 | H135: =H136 -> 4571.6 | J135: =J136 -> 3697.9
A136: Непрограммные расходы | B136: 01 | C136: 11 | D136: 99 0 00 00000 | F136: =F137+F140 -> 3530.5 | H136: =H137+H140 -> 4571.6 | J136: =J137+J140 -> 3697.9
A137: Резервный фонд администрации | B137: 01 | C137: 11 | D137: 99 0 00 00060 | F137: =F138 -> 2530.5 | H137: =H138 -> 3571.6 | J137: =J138 -> 2697.9
A138: Иные бюджетные ассигнования | B138: 01 | C138: 11 | D138: 99 0 00 00060 | E138: 800 | F138: =F139 -> 2530.5 | H138: =H139 -> 3571.6 | J138: =J139 -> 2697.9
A139: Резервные средства | B139: 01 | C139: 11 | D139: 99 0 00 00060 | E139: 870 | F139: ='ведом. 2022-2024'!AD80 -> 2530.5 | H139: ='ведом. 2022-2024'!AE80 -> 3571.6 | J139: ='ведом. 2022-2024'!AF80 -> 2697.9
A140: Резервный фонд на предупреждение и ликвидацию чрезвычайных ситуаций и последствий стихийных бедствий | B140: 01 | C140: 11 | D140: 99 0 00 00070 | F140: =F141 -> 1000 | H140: =H141 -> 1000 | J140: =J141 -> 1000
A141: Иные бюджетные ассигнования | B141: 01 | C141: 11 | D141: 99 0 00 00070 | E141: 800 | F141: =F142 -> 1000 | H141: =H142 -> 1000 | J141: =J142 -> 1000
A142: Резервные средства | B142: 01 | C142: 11 | D142: 99 0 00 00070 | E142: 870 | F142: ='ведом. 2022-2024'!AD83 -> 1000 | H142: ='ведом. 2022-2024'!AE83 -> 1000 | J142: ='ведом. 2022-2024'!AF83 -> 1000
A143: Другие общегосударственные вопросы | B143: 01 | C143: 13 | F143: =F150+F201+F207+F218+F144 -> 186565.1 | G143: 1698.1 | H143: 168513.1 | I143: 1698.1 | J143: 148302.9 | K143: 1697.9
A144: Муниципальная программа «Культура и туризм» | B144: 01 | C144: 13 | D144: 02 0 00 00000 | F144: =F145 -> 0 | H144: =H145 -> 210 | J144: =J145 -> 0
A145: Подпрограмма «Развитие архивного дела» | B145: 01 | C145: 13 | D145: 02 9 00 00000 | F145: =F146 -> 0 | H145: =H146 -> 210 | J145: =J146 -> 0
A146: Основное мероприятие «Хранение, комплектование, учет и использование архивных документов в муниципальных архивах» | B146: 01 | C146: 13 | D146: 02 9 01 00000 | F146: =F147 -> 0 | H146: =H147 -> 210 | J146: =J147 -> 0
A147: Расходы на обеспечение деятельности (оказание услуг) муниципальных архивов | B147: 01 | C147: 13 | D147: 02 9 01 06160 | F147: =F148 -> 0 | H147: =H148 -> 210 | J147: =J148 -> 0
A148: Закупка товаров, работ и услуг для обеспечения государственных (муниципальных) нужд | B148: 01 | C148: 13 | D148: 02 9 01 06160 | E148: 200 | F148: =F149 -> 0 | H148: =H149 -> 210 | J148: =J149 -> 0
A149: Иные закупки товаров, работ и услуг для обеспечения государственных (муниципальных) нужд | B149: 01 | C149: 13 | D149: 02 9 01 06160 | E149: 240 | F149: 0 | H149: ='ведом. 2022-2024'!AE516 -> 210 | J149: ='ведом. 2022-2024'!AF516 -> 0
A150: Муниципальная программа «Управление имуществом и муниципальными финансами» | B150: 01 | C150: 13 | D150: 12 0 00 00000 | F150: =F151+F177 -> 134101.9 | G150: 1031 | H150: 115839.9 | I150: 1031 | J150: 105839.9 | K150: 1031
A151: Подпрограмма «Эффективное управление имущественным комплексом» | B151: 01 | C151: 13 | D151: 12 1 00 00000 | F151: =F152+F160+F166 -> 36602.8 | G151: 1031 | H151: 36602.8 | I151: 1031 | J151: 36602.8 | K151: 1031
A152: Основное мероприятие «Управление имуществом, находящимся в муниципальной собственности, и выполнение кадастровых работ» | B152: 01 | C152: 13 | D152: 12 1 02 00000 | F152: =F153 -> 12554 | H152: =H153 -> 12554 | J152: =J153 -> 12554
A153: Владение, пользование и распоряжение имуществом, находящимся в муниципальной собственности городского округа | B153: 01 | C153: 13 | D153: 12 1 02 00170 | F153: =F154+F158+F156 -> 12554 | H153: =H154+H158+H156 -> 12554 | J153: =J154+J158+J156 -> 12554
A154: Закупка товаров, работ и услуг для обеспечения государственных (муниципальных) нужд | B154: 01 | C154: 13 | D154: 12 1 02 00170 | E154: 200 | F154: =F155 -> 1560 | H154: =H155 -> 1560 | J154: =J155 -> 1560
A155: Иные закупки товаров, работ и услуг для обеспечения государственных (муниципальных) нужд | B155: 01 | C155: 13 | D155: 12 1 02 00170 | E155: 240 | F155: ='ведом. 2022-2024'!AD90+'ведом. 2022-2024'!AD522 -> 1560 | H155: ='ведом. 2022-2024'!AE90+'ведом. 2022-2024'!AE522 -> 1560 | J155: ='ведом. 2022-2024'!AF90+'ведом. 2022-2024'!AF522 -> 1560
A156: Социальное обеспечение и иные выплаты населению | B156: 01 | C156: 13 | D156: 12 1 02 00170 | E156: 300 | F156: =F157 -> 1994 | H156: =H157 -> 1994 | J156: =J157 -> 1994
A157: Иные выплаты населению | B157: 01 | C157: 13 | D157: 12 1 02 00170 | E157: 360 | F157: ='ведом. 2022-2024'!AD92 -> 1994 | H157: ='ведом. 2022-2024'!AE92 -> 1994 | J157: ='ведом. 2022-2024'!AF92 -> 1994
A158: Предоставление субсидий бюджетным, автономным учреждениям и иным некоммерческим организациям | B158: 01 | C158: 13 | D158: 12 1 02 00170 | E158: 600 | F158: =F159 -> 9000 | H158: =H159 -> 9000 | J158: =J159 -> 9000
A159: Субсидии бюджетным учреждениям | B159: 01 | C159: 13 | D159: 12 1 02 00170 | E159: 610 | F159: ='ведом. 2022-2024'!AD94 -> 9000 | H159: ='ведом. 2022-2024'!AE94 -> 9000 | J159: ='ведом. 2022-2024'!AF94 -> 9000
A160: Основное мероприятие «Создание условий для реализации государственных полномочий в области земельных отношений» | B160: 01 | C160: 13 | D160: 12 1 03 00000 | F160: =F161 -> 1031 | G160: 1031 | H160: 1031 | I160: 1031 | J160: 1031 | K160: 1031
A161: Осуществление государственных полномочий Московской области в области земельных отношений | B161: 01 | C161: 13 | D161: 12 1 03 60830 | F161: =F162+F164 -> 1031 | G161: 1031 | H161: 1031 | I161: 1031 | J161: 1031 | K161: 1031
A162: Расходы на выплаты персоналу в целях обеспечения выполнения функций государственными (муниципальными) органами, казенными учреждениями, органами управления государственными внебюджетными фондами | B162: 01 | C162: 13 | D162: 12 1 03 60830 | E162: 100 | F162: =F163 -> 928 | G162: 928 | H162: 928 | I162: 928 | J162: 928 | K162: 928
A163: Расходы на выплаты персоналу государственных (муниципальных) органов | B163: 01 | C163: 13 | D163: 12 1 03 60830 | E163: 120 | F163: ='ведом. 2022-2024'!AD526 -> 928 | G163: =F163 -> 928 | H163: ='ведом. 2022-2024'!AE526 -> 928 | I163: =H163 -> 928 | J163: ='ведом. 2022-2024'!AF526 -> 928 | K163: =J163 -> 928
A164: Закупка товаров, работ и услуг для обеспечения государственных (муниципальных) нужд | B164: 01 | C164: 13 | D164: 12 1 03 60830 | E164: 200 | F164: =F165 -> 103 | G164: 103 | H164: 103 | I164: 103 | J164: 103 | K164: 103
A165: Иные закупки товаров, работ и услуг для обеспечения государственных (муниципальных) нужд | B165: 01 | C165: 13 | D165: 12 1 03 60830 | E165: 240 | F165: ='ведом. 2022-2024'!AD528 -> 103 | G165: =F165 -> 103 | H165: ='ведом. 2022-2024'!AE528 -> 103 | I165: =H165 -> 103 | J165: ='ведом. 2022-2024'!AF528 -> 103 | K165: =J165 -> 103
A166: Основное мероприятие "Создание условий для реализации полномочий органов местного самоуправления" | B166: 01 | C166: 13 | D166: 12 1 04 00000 | F166: =F167 -> 23017.8 | H166: =H167 -> 23017.8 | J166: =J167 -> 23017.8
A167: Обеспечение деятельности органов местного самоуправления | B167: 01 | C167: 13 | D167: 12 1 04 00130 | F167: =F168+F171+F174 -> 23017.8 | H167: =H168+H171+H174 -> 23017.8 | J167: =J168+J171+J174 -> 23017.8
A168: Обеспечение деятельности органов местного самоуправления (расходы на обеспечение деятельности органов местного самоуправления) | B168: 01 | C168: 13 | D168: 12 1 04 00131 | F168: =F169 -> 1576.1 | H168: =H169 -> 1576.1 | J168: 1576.1
A169: Закупка товаров, работ и услуг для обеспечения государственных (муниципальных) нужд | B169: 01 | C169: 13 | D169: 12 1 04 00131 | E169: 200 | F169: =F170 -> 1576.1 | H169: =H170 -> 1576.1 | J169: =J170 -> 1576.1
A170: Иные закупки товаров, работ и услуг для обеспечения государственных (муниципальных) нужд | B170: 01 | C170: 13 | D170: 12 1 04 00131 | E170: 240 | F170: ='ведом. 2022-2024'!AD533 -> 1576.1 | H170: ='ведом. 2022-2024'!AE533 -> 1576.1 | J170: ='ведом. 2022-2024'!AF533 -> 1576.1
A171: Обеспечение деятельности органов местного самоуправления (расходы на содержание лиц, замещающих должности, не являющиеся должностями муниципальной службы) | B171: 01 | C171: 13 | D171: =D172 -> 12 1 04 00132 | F171: =F172 -> 7242.7 | H171: =H172 -> 7242.7 | J171: 7242.7
A172: Расходы на выплаты персоналу в целях обеспечения выполнения функций государственными (муниципальными) органами, казенными учреждениями, органами управления государственными внебюджетными фондами | B172: 01 | C172: 13 | D172: =D173 -> 12 1 04 00132 | E172: 100 | F172: =F173 -> 7242.7 | H172: =H173 -> 7242.7 | J172: =J173 -> 7242.7
A173: Расходы на выплаты персоналу государственных (муниципальных) органов | B173: 01 | C173: 13 | D173: 12 1 04 00132 | E173: 120 | F173: ='ведом. 2022-2024'!AD536 -> 7242.7 | H173: ='ведом. 2022-2024'!AE536 -> 7242.7 | J173: ='ведом. 2022-2024'!AF536 -> 7242.7
A174: Обеспечение деятельности органов местного самоуправления (расходы на содержание лиц, замещающих должности муниципальной службы) | B174: 01 | C174: 13 | D174: =D175 -> 12 1 04 00133 | F174: =F175 -> 14199 | H174: =H175 -> 14199 | J174: =J175 -> 14199
A175: Расходы на выплаты персоналу в целях обеспечения выполнения функций государственными (муниципальными) органами, казенными учреждениями, органами управления государственными внебюджетными фондами | B175: 01 | C175: 13 | D175: =D176 -> 12 1 04 00133 | E175: 100 | F175: =F176 -> 14199 | H175: =H176 -> 14199 | J175: =J176 -> 14199
A176: Расходы на выплаты персоналу государственных (муниципальных) органов | B176: 01 | C176: 13 | D176: 12 1 04 00133 | E176: 120 | F176: ='ведом. 2022-2024'!AD539 -> 14199 | H176: ='ведом. 2022-2024'!AE539 -> 14199 | J176: ='ведом. 2022-2024'!AF539 -> 14199
A177: Обеспечивающая подпрограмма | B177: 01 | C177: 13 | D177: 12 5 00 00000 | F177: =F178 -> 97499.1 | H177: =H178 -> 79237.1 | J177: =J178 -> 69237.1
A178: Основное мероприятие «Создание условий для реализации полномочий органов местного самоуправления» | B178: 01 | C178: 13 | D178: 12 5 01 00000 | F178: =F179+F187+F190+F182 -> 97499.1 | H178: =H179+H187+H190+H182 -> 79237.1 | J178: 69237.1
A179: Взносы в общественные организации | B179: 01 | C179: 13 | D179: 12 5 01 00870 | F179: =F180 -> 144 | H179: =H180 -> 144 | J179: =J180 -> 144
A180: Иные бюджетные ассигнования | B180: 01 | C180: 13 | D180: 12 5 01 00870 | E180: 800 | F180: =F181 -> 144 | H180: =H181 -> 144 | J180: =J181 -> 144
A181: Уплата налогов, сборов и иных платежей | B181: 01 | C181: 13 | D181: 12 5 01 00870 | E181: 850 | F181: ='ведом. 2022-2024'!AD99 -> 144 | H181: ='ведом. 2022-2024'!AE99 -> 144 | J181: ='ведом. 2022-2024'!AF99 -> 144
A182: Обеспечение деятельности муниципальных казенных учреждений в сфере закупок товаров, работ, услуг | B182: 01 | C182: 13 | D182: 12 5 01 01680 | F182: =F183+F185 -> 12197.8 | H182: =H183+H185 -> 10600 | J182: 10600
A183: Расходы на выплаты персоналу в целях обеспечения выполнения функций государственными (муниципальными) органами, казенными учреждениями, органами управления государственными внебюджетными фондами | B183: 01 | C183: 13 | D183: 12 5 01 01680 | E183: 100 | F183: =F184 -> 11391.2 | H183: =H184 -> 9793.4 | J183: 9793.4
A184: Расходы на выплаты персоналу казенных учреждений | B184: 01 | C184: 13 | D184: 12 5 01 01680 | E184: 110 | F184: ='ведом. 2022-2024'!AD102 -> 11391.2 | H184: ='ведом. 2022-2024'!AE102 -> 9793.4 | J184: ='ведом. 2022-2024'!AF102 -> 9793.4
A185: Закупка товаров, работ и услуг для обеспечения государственных (муниципальных) нужд | B185: 01 | C185: 13 | D185: 12 5 01 01680 | E185: 200 | F185: =F186 -> 806.6 | H185: =H186 -> 806.6 | J185: 806.6
A186: Иные закупки товаров, работ и услуг для обеспечения государственных (муниципальных) нужд | B186: 01 | C186: 13 | D186: 12 5 01 01680 | E186: 240 | F186: ='ведом. 2022-2024'!AD104 -> 806.6 | H186: ='ведом. 2022-2024'!AF104 -> 806.6 | J186: ='ведом. 2022-2024'!AF104 -> 806.6
A187: Расходы на обеспечение деятельности (оказание услуг) муниципальных учреждений - централизованная бухгалтерия муниципального образования | B187: 01 | C187: 13 | D187: 12 5 01 06070 | F187: =F188 -> 23220.5 | H187: =H188 -> 23220.5 | J187: =J188 -> 23220.5
A188: Предоставление субсидий бюджетным, автономным учреждениям и иным некоммерческим организациям | B188: 01 | C188: 13 | D188: 12 5 01 06070 | E188: 600 | F188: =F189 -> 23220.5 | H188: =H189 -> 23220.5 | J188: =J189 -> 23220.5
A189: Субсидии бюджетным учреждениям | B189: 01 | C189: 13 | D189: 12 5 01 06070 | E189: 610 | F189: ='ведом. 2022-2024'!AD563 -> 23220.5 | H189: ='ведом. 2022-2024'!AE563 -> 23220.5 | J189: ='ведом. 2022-2024'!AF563 -> 23220.5
A190: Расходы на обеспечение деятельности (оказание услуг) муниципальных учреждений - обеспечение деятельности органов местного самоуправления | B190: 01 | C190: 13 | D190: 12 5 01 06090 | F190: =F191+F196 -> 61936.8 | H190: =H191+H196 -> 45272.6 | J190: 35272.6
A191: Расходы на обеспечение деятельности (оказание услуг) муниципальных учреждений - обеспечение деятельности органов местного самоуправления( "Управление обеспечения деятельности Администрации города Лыткарино") | B191: 01 | C191: 13 | D191: 12 5 01 06092 | F191: =F192+F194 -> 55272.6 | H191: =H192+H194 -> 45272.6 | J191: 35272.6
A192: Расходы на выплаты персоналу в целях обеспечения выполнения функций государственными (муниципальными) органами, казенными учреждениями, органами управления государственными внебюджетными фондами | B192: 01 | C192: 13 | D192: 12 5 01 06092 | E192: 100 | F192: =F193 -> 54604.1 | H192: =H193 -> 44604.1 | J192: ='ведом. 2022-2024'!AF107 -> 34604.1
A193: Расходы на выплаты персоналу казенных учреждений | B193: 01 | C193: 13 | D193: 12 5 01 06092 | E193: 110 | F193: ='ведом. 2022-2024'!AD108 -> 54604.1 | H193: ='ведом. 2022-2024'!AE108 -> 44604.1 | J193: ='ведом. 2022-2024'!AF108 -> 34604.1
A194: Закупка товаров, работ и услуг для обеспечения государственных (муниципальных) нужд | B194: 01 | C194: 13 | D194: 12 5 01 06092 | E194: 200 | F194: =F195 -> 668.5 | H194: =H195 -> 668.5 | J194: ='ведом. 2022-2024'!AF109 -> 668.5
A195: Иные закупки товаров, работ и услуг для обеспечения государственных (муниципальных) нужд | B195: 01 | C195: 13 | D195: 12 5 01 06092 | E195: 240 | F195: ='ведом. 2022-2024'!AD110 -> 668.5 | H195: ='ведом. 2022-2024'!AE110 -> 668.5 | J195: ='ведом. 2022-2024'!AF110 -> 668.5
A196: Расходы на обеспечение деятельности (оказание услуг) муниципальных учреждений - обеспечение деятельности органов местного самоуправления ("Комитет по делам культуры, молодежи,спорта и туризма г.Лыткарино") | B196: 01 | C196: 13 | D196: 12 5 01 06093 | F196: =F197+F199 -> 6664.2 | H196: =H197+H199 -> 0 | J196: 0
A197: Расходы на выплаты персоналу в целях обеспечения выполнения функций государственными (муниципальными) органами, казенными учреждениями, органами управления государственными внебюджетными фондами | B197: 01 | C197: 13 | D197: 12 5 01 06093 | E197: 100 | F197: =F198 -> 6057.3 | H197: =H198 -> 0 | J197: =J198 -> 0
A198: Расходы на выплаты персоналу казенных учреждений | B198: 01 | C198: 13 | D198: 12 5 01 06093 | E198: 110 | F198: ='ведом. 2022-2024'!AD113 -> 6057.3 | H198: ='ведом. 2022-2024'!AE113 -> 0 | J198: ='ведом. 2022-2024'!AF113 -> 0
A199: Закупка товаров, работ и услуг для обеспечения государственных (муниципальных) нужд | B199: 01 | C199: 13 | D199: 12 5 01 06093 | E199: 200 | F199: =F200 -> 606.9 | H199: =H200 -> 0 | J199: =J200 -> 0
A200: Иные закупки товаров, работ и услуг для обеспечения государственных (муниципальных) нужд | B200: 01 | C200: 13 | D200: 12 5 01 06093 | E200: 240 | F200: ='ведом. 2022-2024'!AD115 -> 606.9 | H200: ='ведом. 2022-2024'!AE115 -> 0 | J200: ='ведом. 2022-2024'!AF115 -> 0
A201: Муниципальная программа «Развитие институтов гражданского общества, повышение эффективности местного самоуправления и реализации молодежной политики» | B201: 01 | C201: 13 | D201: 13 0 00 00000 | F201: =F202 -> 2.1 | G201: 2.1 | H201: 2.1 | I201: 2.1 | J201: 1.9 | K201: 1.9
A202: Обеспечивающая подпрограмма | B202: 01 | C202: 13 | D202: 13 6 00 00000 | F202: =F203 -> 2.1 | G202: =G203 -> 2.1 | H202: 2.1 | I202: 2.1 | J202: 1.9 | K202: 1.9
A203: Основное мероприятие «Корректировка списков кандидатов в присяжные заседатели федеральных судов общей юрисдикции в Российской Федерации» | B203: 01 | C203: 13 | D203: 13 6 04 00000 | F203: =F204 -> 2.1 | G203: 2.1 | H203: 2.1 | I203: 2.1 | J203: ='ведом. 2022-2024'!AF118 -> 1.9 | K203: 1.9
A204: Осуществление полномочий по составлению (изменению) списков кандидатов в присяжные заседатели федеральных судов общей юрисдикции в Российской Федерации | B204: 01 | C204: 13 | D204: 13 6 04 51200 | F204: 2.1 | G204: 2.1 | H204: 2.1 | I204: 2.1 | J204: ='ведом. 2022-2024'!AF119 -> 1.9 | K204: 1.9
... 602 more rows

Sheet Целевые 2022-2024
A2: Приложение к распоряжению начальника Финансового управления г.Лыткарино от 10.11.2022 № 56 "Об утверждении Перечня и кодов целевых статей расходов бюджета городского округа Лыткарино на 2023 год и плановый период 2024 и 2025 годов"
A3: Перечень и коды целевых статей расходов бюджета городского округа Лыткарино на 2023 год и плановый период 2024 и 2025 годов
A5: Наименования | B5: ЦСР
A6: 1 | B6: 2
A7: Муниципальная программа «Культура и туризм» | B7: 02 0 00 00000
A8: Подпрограмма «Развитие музейного дела» | B8: 02 2 00 00000
A9: Основное мероприятие «Обеспечение выполнения функций муниципальных музеев» | B9: 02 2 01 00000
A10: Расходы на обеспечение деятельности (оказание услуг) муниципальных учреждений - музеи, галереи | B10: 02 2 01 06130
A11: Подпрограмма «Развитие библиотечного дела» | B11: 02 3 00 00000
A12: Основное мероприятие «Организация библиотечного обслуживания населения муниципальными библиотеками Московской области» | B12: 02 3 01 00000
A13: Организация библиотечного обслуживания населения, комплектование и обеспечение сохранности библиотечных фондов библиотек городского округа | B13: 02 3 01 00450
A14: Расходы на обеспечение деятельности (оказание услуг) муниципальных учреждений - библиотеки | B14: 02 3 01 06100
A15: Государственная поддержка отрасли культуры (модернизация библиотек в части комплектования книжных фондов муниципальных общедоступных библиотек) | B15: 02 3 01 L5198
A16: Подпрограмма «Развитие профессионального искусства, гастрольно-концертной и культурно-досуговой деятельности, кинематографии» | B16: 02 4 00 00000
A17: Основное мероприятие "Обеспечение функций культурно-досуговых учреждений" | B17: 02 4 0400000
A18: Мероприятия в сфере культуры | B18: 02 4 04 00500
A19: Мероприятия в сфере культуры (проведение культурно-массовых и праздничных мероприятий в сфере культуры в городе Лыткарино) | B19: 02 4 04 00501
A20: Мероприятия в сфере культуры (проведение мероприятий по духовно-нравственному воспитанию) | B20: 02 4 04 00502
A21: Расходы на обеспечение деятельности(оказание услуг) муниципальных учреждений-культурно-досуговые учреждения | B21: 02 4 04 06110
A22: ='Функц. 2022-2024'!A720 -> Расходы на обеспечение деятельности (оказание услуг) муниципальных учреждений - культурно-досуговые учреждения (Расходы на выполнение муниципального задания муниципальных учреждений- МУ ДК "Мир") | B22: 02 4 04 06111
A23: ='Функц. 2022-2024'!A723 -> Расходы на обеспечение деятельности (оказание услуг) муниципальных учреждений - культурно-досуговые учреждения (Расходы на выполнение муниципального задания муниципальных учреждений- МУ ДК "Центр молодежи") | B23: 02 4 04 06112
A24: Подпрограмма «Укрепление материально-технической базы муниципальных учреждений культуры» | B24: 02 5 00 00000
A25: Основное мероприятие «Создание доступной среды» | B25: 02 5 01 00000
A26: Создание доступной среды в муниципальных учреждениях культуры | B26: 02 5 01 S3960
A27: Подпрограмма "Развитие образования в сфере культуры" | B27: 02 6 00 00000
A28: Основное мероприятие "Обеспечение функций муниципальных учреждений дополнительного образования сферы культуры" | B28: 02 6 01 00000
A29: Расходы на обеспечение деятельности (оказание услуг) муниципальных организаций дополнительного образования сферы культуры | B29: 02 6 01 06260
A30: Основное мероприятие "Обеспечение пожарной безопасности и создание доступной среды" | B30: 02 6 04 00000
A31: Создание доступной среды в муниципальных учреждениях дополнительного образования сферы культуры | B31: 02 6 04 S3970
A32: Подпрограмма «Развитие архивного дела» | B32: 02 9 00 00000
A33: Основное мероприятие «Хранение, комплектование, учет и использование архивных документов в муниципальных архивах» | B33: 02 9 01 00000
A34: Расходы на обеспечение деятельности (оказание услуг) муниципальных архивов | B34: 02 9 01 06160
A35: Основное мероприятие «Временное хранение, комплектование, учет и использование архивных документов, относящихся к собственности Московской области и временно хранящихся в муниципальных архивах» | B35: 02 9 02 00000
A36: Обеспечение переданных полномочий по временному хранению, комплектованию, учету и использованию архивных документов, относящихся к собственности Московской области и временно хранящихся в муниципальных архивах | B36: 02 9 02 60690
A37: Муниципальная программа «Образование» | B37: 03 0 00 00000
A38: Подпрограмма "Общее образование" | B38: 03 1 00 00000
A39: Основное мероприятие "Финансовое обеспечение деятельности образовательных организаций" | B39: 03 1 01 00000
A40: Расходы на обеспечение деятельности (оказание услуг) муниципальных учреждений - дошкольные образовательные организации | B40: 03 1 01 06040
A41: Расходы на обеспечение деятельности (оказание услуг) муниципальных учреждений - дошкольные образовательные организации (выполнение муниципального задания) | B41: 03 1 01 06041
A42: Расходы на обеспечение деятельности (оказание услуг) муниципальных учреждений - дошкольные образовательные организации (мероприятия в сфере образования) | B42: 03 1 01 06042
A43: Выплата компенсации родительской платы за присмотр и уход за детьми, осваивающими образовательные программы дошкольного образования в организациях Московской области, осуществляющих образовательную деятельность | B43: 03 1 01 62140
A44: Расходы на обеспечение деятельности (оказание услуг) муниципальных учреждений - общеобразовательные организации, оказывающие услуги дошкольного, начального общего, основного общего, среднего общего образования | B44: 03 1 01 06050
A45: Расходы на обеспечение деятельности (оказание услуг) муниципальных учреждений - общеобразовательные организации, оказывающие услуги дошкольного, начального общего, основного общего, среднего общего образования (выполнение муниципального задания) | B45: 03 1 01 06051
A46: Расходы на обеспечение деятельности (оказание услуг) муниципальных учреждений - общеобразовательные организации, оказывающие услуги дошкольного, начального общего, основного общего, среднего общего образования (мероприятия в сфере образования) | B46: 03 1 01 06052
A47: Ежемесячное денежное вознаграждение за классное руководство педагогическим работникам государственных и муниципальных общеобразовательных организаций (Финансовое обеспечение государственных гарантий реализации прав на получение общедоступного и бесплатного дошкольного образования в муниципальных дошкольных образовательных организациях, общедоступного и бесплатного дошкольного, начального общего, основного общего, среднего общего образования в муниципальных общеобразовательных организациях, обеспечение дополнительного образования детей в муниципальных общеобразовательных организациях, включая расходы на оплату труда, приобретение учебников и учебных пособий, средств обучения, игр, игрушек (за исключением расходов на содержание зданий и оплату коммунальных услуг) | B47: 03 1 01 53031
A48: Финансовое обеспечение государственных гарантий реализации прав на получение общедоступного и бесплатного дошкольного образования в муниципальных дошкольных образовательных организациях, общедоступного и бесплатного дошкольного, начального общего, основного общего, среднего общего образования в муниципальных общеобразовательных организациях, обеспечение дополнительного образования детей в муниципальных общеобразовательных организациях, включая расходы на оплату труда, приобретение учебников и учебных пособий, средств обучения, игр, игрушек (за исключением расходов на содержание зданий и оплату коммунальных услуг) | B48: 03 1 01 62010
A49: Основное мероприятие "Реализация федеральных государственных образовательных стандартов общего образования, в том числе мероприятий по нормативному правовому и методическому сопровождению, обновлению содержания и технологий образования" | B49: 03 1 02 00000
A50: Компенсация проезда к месту учебы и обратно отдельным категориям обучающихся по очной форме обучения муниципальных общеобразовательных организаций | B50: 03 1 02 62230
A51: Организация бесплатного горячего питания обучающихся, получающих начальное общее образование в муниципальных образовательных организациях | B51: 03 1 02 L3040
A52: Организация питания обучающихся, получающих основное и среднее общее образование, и отдельных категорий обучающихся, получающих начальное общее образование, в муниципальных общеобразовательных организациях | B52: 03 1 02 S2870
A53: Основное мероприятие «Обеспечение и проведение государственной итоговой аттестации обучающихся, освоивших образовательные программы основного общего и среднего общего образования, в том числе в форме единого государственного экзамена» | B53: 03 1 04 00000
A54: Расходы на обеспечение деятельности (оказание услуг) муниципальных учреждений - общеобразовательные организации, оказывающие услуги дошкольного, начального общего, основного общего, среднего общего образования | B54: 03 1 04 06050
A55: Основное мероприятие «Модернизация школьных систем образования в рамках государственной программы Российской Федерации «Развитие образования» | B55: 03 1 08 00000
A56: Реализация мероприятий по модернизации школьных систем образования (проведение работ по капитальному ремонту зданий региональных (муниципальных) общеобразовательных организаций) | B56: 03 1 08 L7501
A57: Реализация мероприятий по модернизации школьных систем образования (оснащение отремонтированных зданий общеобразовательных организаций средствами обучения и воспитания) | B57: 03 1 08 L7502
A58: Благоустройство территорий муниципальных общеобразовательных организаций, в зданиях которых выполнен капитальный ремонт | B58: 03 1 08 S2950
A59: Разработка проектно-сметной документации на проведение капитального ремонта зданий муниципальных общеобразовательных организаций | B59: 03 1 08 S3800
A60: Федеральный проект «Современная школа» | B60: 03 1 E1 00000
A61: Создание и обеспечение функционирования центров образования естественно-научной и технологической направленностей в общеобразовательных организациях, расположенных в сельской местности и малых городах | B61: 03 1 E1 51690
A62: Обновление материально-технической базы в организациях, осуществляющих образовательную деятельность исключительно по адаптированным основным общеобразовательным программам | B62: 03 1 E1 51870
A63: Подпрограмма "Дополнительное образование, воспитание и психолого-социальное сопровождение детей" | B63: 03 2 00 00000
A64: Основное мероприятие "Финансовое обеспечение деятельности организаций дополнительного образования" | B64: 03 2 02 00000
A65: Расходы на обеспечение деятельности (оказание услуг) муниципальных учреждений - организации дополнительного образования | B65: 03 2 02 06060
A66: Расходы на обеспечение деятельности (оказание услуг) муниципальных учреждений - организации дополнительного образования (выполнение муниципального задания ) | B66: 03 2 02 06061
A67: Расходы на обеспечение деятельности (оказание услуг) муниципальных учреждений - организации дополнительного образования (мероприятия в сфере образования) | B67: 03 2 02 06062
A68: Основное мероприятие "Обеспечение функционирования модели персонифицированного финансирования дополнительного образования детей" | B68: 03 2 04 00000
A69: Внедрение и обеспечение функционирования модели персонифицированного финансирования дополнительного образования детей | B69: 03 2 04 00940
A70: Федеральный проект «Патриотическое воспитание граждан Российской Федерации» | B70: 03 2 EВ 00000
A71: Обеспечение оснащения муниципальных общеобразовательных организаций, в том числе структурных подразделений указанных организаций, государственными символами Российской Федерации | B71: 03 2 EВ 57860
A72: Подпрограмма "Обеспечивающая подпрограмма" | B72: 03 4 00 00000
A73: Основное мероприятие «Создание условий для реализации полномочий органов местного самоуправления» | B73: 03 4 01 00000
A74: Обеспечение деятельности органов местного самоуправления | B74: 03 4 01 00130
A75: Обеспечение деятельности органов местного самоуправления (расходы на обеспечение деятельности органов местного самоуправления) | B75: 03 4 01 00131
A76: Обеспечение деятельности органов местного самоуправления (расходы на содержание лиц, замещающих должности не являющиеся должностями муниципальной службы) | B76: 03 4 01 00132
A77: Обеспечение деятельности органов местного самоуправления (расходы на содержание лиц, замещающих должности муниципальной службы) | B77: 03 4 01 00133
A78: Мероприятия в сфере образования | B78: 03 4 01 00950
A79: Муниципальная программа «Социальная защита населения» | B79: 04 0 00 00000
A80: Подпрограмма «Социальная поддержка граждан» | B80: 04 1 00 00000
A81: Основное мероприятие "Предоставление государственных гарантий муниципальным служащим, поощрение за муниципальную службу" | B81: 04 1 15 00000
A82: Предоставление доплаты за выслугу лет к трудовой пенсии муниципальным служащим за счет средств местного бюджета | B82: 04 1 15 00840
A83: Подпрограмма «Развитие системы отдыха и оздоровления детей» | B83: 04 2 00 00000
A84: Основное мероприятие "Мероприятия по организации отдыха детей в каникулярное время" | B84: 04 2 03 00000
A85: Мероприятия по организации отдыха детей в каникулярное время | B85: 04 2 03 S2190
A86: Мероприятия по организации отдыха детей в каникулярное время (организация отдыха детей и подростков в санаторно-курортных учреждениях и загородных оздоровительных лагерях) | B86: 04 2 03 S2191
A87: Мероприятия по организации отдыха детей в каникулярное время (организация отдыха детей и подростков в лагерях с дневным пребыванием) | B87: 04 2 03 S2192
A88: Обеспечивающая подпрограмма | B88: 04 5 00 00000
A89: Основное мероприятие «Иные мероприятия, реализуемые в целях создания условий для реализации полномочий органов государственной власти Московской области и государственных органов Московской области» | B89: 04 5 03 00000
A90: Обеспечение переданного государственного полномочия Московской области по созданию комиссий по делам несовершеннолетних и защите их прав муниципальных образований Московской области | B90: 04 5 03 60680
A91: Подпрограмма «Развитие и поддержка социально ориентированных некоммерческих организаций" | B91: 04 6 00 00000
A92: Основное мероприятие «Развитие негосударственного сектора социального обслуживания» | B92: 04 6 01 00000
A93: Оказание поддержки общественным объединениям инвалидов, а также территориальным подразделениям, созданным общероссийскими общественными объединениями инвалидов | B93: 04 6 01 00880
A94: Подпрограмма "Обеспечение доступности для инвалидов и маломобильных групп населения объектов инфраструктуры и услуг" | B94: 04 7 00 00000
A95: Основное мероприятие "Обеспечение доступности для инвалидов и маломобильных групп населения объектов инфраструктуры (за исключением сфер культуры, образования, спорта)" | B95: 04 7 01 00000
A96: Обеспечение доступности для инвалидов и маломобильных групп населения объектов инфраструктуры (за исключением сфер культуры, образования, спорта) | B96: 04 7 01 01770
A97: Муниципальная программа «Спорт» | B97: 05 0 00 00000
A98: Подпрограмма «Развитие физической культуры и спорта» | B98: 05 1 00 00000
A99: Основное мероприятие «Обеспечение условий для развития на территории городского округа физической культуры, школьного спорта и массового спорта» | B99: 05 1 01 00000
A100: Организация и проведение официальных физкультурно-оздоровительных и спортивных мероприятий | B100: 05 1 01 00570
A101: Расходы на обеспечение деятельности (оказание услуг) муниципальных учреждений в сфере физической культуры и спорта | B101: 05 1 01 06140
A102: Основное мероприятие "Модернизация и материально-техническое обеспечение объектов физической культуры и спорта, находящихся в собственности муниципальных образований Московской области" | B102: 05 1 03 00000
A103: Проведение капитального ремонта муниципальных объектов физической культуры и спорта | B103: 05 1 03 S0770
A104: Укрепление материально-технической базы общеобразовательных организаций, команды которых заняли 1-5 места на соревнованиях «Веселые старты» | B104: 05 1 03 S2150
A105: Муниципальная программа «Развитие сельского хозяйства» | B105: 06 0 00 00000
A106: Подпрограмма "Обеспечение эпизоотического и ветеринарно-санитарного благополучия и развитие государственной ветеринарной службы" | B106: 06 4 00 00000
A107: Основное мероприятие "Сохранение ветеринарно-санитарного благополучия" | B107: 06 4 01 00000
A108: Осуществление переданных полномочий Московской области по организации мероприятий при осуществлении деятельности по обращению с собаками без владельцев | B108: 06 4 01 60870
A109: Муниципальная программа "Экология и окружающая среда" | B109: 07 0 00 00000
A110: Подпрограмма "Охрана окружающей среды" | B110: 07 1 00 00000
A111: Основное мероприятие "Проведение обследований состояния окружающей среды" | B111: 07 1 01 00000
A112: Организация мероприятий по охране окружающей среды в границах городского округа | B112: 07 1 01 00370
A113: Муниципальная программа «Безопасность и обеспечение безопасности жизнедеятельности населения» | B113: 08 0 00 00000
A114: Подпрограмма «Профилактика преступлений и иных правонарушений» | B114: 08 1 00 00000
A115: Основное мероприятие «Обеспечение деятельности общественных объединений правоохранительной направленности» | B115: 08 1 02 00000
A116: Оказание поддержки гражданам и их объединениям, участвующим в охране общественного порядка, создание условий для деятельности народных дружин | B116: 08 1 02 00780
A117: Основное мероприятие «Реализация мероприятий по обеспечению общественного порядка и общественной безопасности, профилактике проявлений экстремизма» | B117: 08 1 03 00000
A118: Участие в профилактике терроризма и экстремизма, а также в минимизации и (или) ликвидации последствий проявлений терроризма и экстремизма в границах городского округа | B118: 08 1 03 00300
A119: Основное мероприятие «Развертывание элементов системы технологического обеспечения региональной общественной безопасности и оперативного управления «Безопасный регион» | B119: 08 1 04 00000
A120: Осуществление мероприятий в сфере профилактики правонарушений | B120: 08 1 04 00900
A121: Основное мероприятие "Развитие похоронного дела" | B121: 08 1 07 00000
A122: Организация ритуальных услуг | B122: 08 1 07 00480
A123: Содержание мест захоронения | B123: 08 1 07 00590
A124: Расходы на обеспечение деятельности (оказание услуг) муниципальных учреждений в сфере похоронного дела | B124: 08 1 07 06250
A125: Осуществление переданных полномочий Московской области по транспортировке в морг, включая погрузоразгрузочные работы, с мест обнаружения или происшествия умерших для производства судебно-медицинской экспертизы | B125: 08 1 07 62820
A126: Подпрограмма "Обеспечение мероприятий по защите населения и территории от чрезвычайных ситуаций" | B126: 08 2 00 00000
A127: Основное мероприятие "Развитие и эксплуатация Системы-112 на территории Московской области" | B127: 08 2 01 00000
A128: Содержание и развитие Системы-112, ЕДДС | B128: 08 2 01 01850
A129: Основное мероприятие "Создание резервов материальных ресурсов для ликвидации чрезвычайных ситуаций" | B129: 08 2 02 00000
A130: Участие в предупреждении и ликвидации последствий чрезвычайных ситуаций в границах городского округа | B130: 08 2 02 00340
A131: Основное мероприятие "Реализация мероприятий по подготовке населения и специалистов и должностных лиц в области гражданской обороны, защиты населения и территории от чрезвычайных ситуаций природного и техногенного характера" | B131: 08 2 03 00000
A132: Участие в предупреждении и ликвидации последствий чрезвычайных ситуаций в границах городского округа | B132: 08 2 03 00340
A133: Подпрограмма "Обеспечение мероприятий гражданской обороны на территории муниципального образования Московской области" | B133: 08 3 00 00000
A134: Основное мероприятие «Создание, развитие и поддержание в постоянной готовности систем оповещения населения об опасностях, возникающих при военных конфликтах или вследствие этих конфликтов, а также при чрезвычайных ситуациях природного и техногенного характера (происшествий) на территории муниципального образования Московской области» | B134: 08 3 01 00000
A135: Поддержка в состоянии постоянной готовности к использованию систем оповещения населения об опасности, объектов гражданской обороны | B135: 08 3 01 00690
A136: Основное мероприятие «Развитие и совершенствование материально-технической базы учреждений в сфере гражданской обороны и защиты населения и территорий от чрезвычайных ситуаций» | B136: 08 3 03 00000
A137: Организация и осуществление мероприятий по территориальной обороне и гражданской обороне | B137: 08 3 03 00670
A138: Подпрограмма «Обеспечение пожарной безопасности на территории муниципального образования Московской области» | B138: 08 4 00 00000
A139: Основное мероприятие "Повышение степени пожарной безопасности на территории муниципального образования Московской области" | B139: 08 4 01 00000
A140: Обеспечение первичных мер пожарной безопасности в границах городского округа | B140: 08 4 01 00360
A141: Подпрограмма "Обеспечение безопасности населения на водных объектах, расположенных на территории муниципального образования Московской области" | B141: 08 5 00 00000
A142: Основное мероприятие "Выполнение мероприятий по безопасности населения на водных объектах, расположенных на территории Московской области" | B142: 08 5 01 00000
A143: Осуществление мероприятий по обеспечению безопасности людей на водных объектах, охране их жизни и здоровья | B143: 08 5 01 00730
A144: Обеспечивающая подпрограмма | B144: 08 6 00 00000
A145: Основное мероприятие «Создание условий для реализации полномочий органов местного самоуправления» | B145: 08 6 01 00000
A146: Содержание и развитие муниципальных экстренных оперативных служб | B146: 08 6 01 01020
A147: Создание, оснащение, модернизация, развитие и эксплуатация имущества экстренных оперативных служб (ЕДДС и системы 112) | B147: 08 6 01 01820
A148: Муниципальная программа «Жилище» | B148: 09 0 00 00000
A149: Подпрограмма «Обеспечение жильем молодых семей» | B149: 09 2 00 00000
A150: Основное мероприятие "Оказание государственной поддержки молодым семьям в виде социальных выплат на приобретение жилого помещения или создание объекта индивидуального жилищного строительства" | B150: 09 2 01 00000
A151: Реализация мероприятий по обеспечению жильем молодых семей | B151: 09 2 01 L4970
A152: Подпрограмма "Обеспечение жильем детей-сирот и детей, оставшихся без попечения родителей, лиц из числа детей-сирот и детей, оставшихся без попечения родителей" | B152: 09 3 00 00000
A153: Основное мероприятие "Оказание государственной поддержки в решении жилищной проблемы детей-сирот и детей, оставшихся без попечения родителей, лиц из числа детей-сирот и детей, оставшихся без попечения родителей" | B153: 09 3 01 00000
A154: Предоставление жилых помещений детям-сиротам и детям, оставшимся без попечения родителей, лицам из числа детей-сирот и детей, оставшихся без попечения родителей, по договорам найма специализированных жилых помещений | B154: 09 3 01 60820
A155: Подпрограмма "Обеспечение жильем отдельных категорий граждан за счет средств федерального бюджета" | B155: 09 6 00 00000
A156: Основное мероприятие "Оказание государственной поддержки по обеспечению жильем отдельных категорий граждан, установленных федеральными законами от 12 января 1995 года № 5-ФЗ "О ветеранах" и от 24 ноября 1995 года № 181-ФЗ "О социальной защите инвалидов в Российской Федерации" | B156: 09 6 02 00000
A157: Осуществление полномочий по обеспечению жильем отдельных категорий граждан, установленных Федеральным законом от 24 ноября 1995 года № 181-ФЗ "О социальной защите инвалидов в Российской Федерации" | B157: 09 6 02 51760
A158: Муниципальная программа «Развитие инженерной инфраструктуры, энергоэффективности и отрасли обращения с отходами» | B158: 10 0 00 00000
A159: Подпрограмма "Объекты теплоснабжения, инженерные коммуникации" | B159: 10 3 00 00000
A160: Основное мероприятие «Строительство, реконструкция, капитальный ремонт объектов теплоснабжения на территории муниципальных образований Московской области» | B160: 10 3 01 00000
A161: Строительство и реконструкция объектов теплоснабжения за счет средств местного бюджета | B161: 10 3 01 74730
A162: Строительство и реконструкция объектов теплоснабжения за счет средств местного бюджета (Реконструкция котельной № 1 г.Лыткарино (в т.ч. ПИР) | B162: 10 3 01 74731
A163: Строительство и реконструкция объектов теплоснабжения | B163: 10 3 01 S4730
A164: Строительство и реконструкция объектов теплоснабжения (Реконструкция котельной № 1 г.Лыткарино (в т.ч. ПИР) | B164: 10 3 01 S4731
A165: Подпрограмма "Реализация полномочий в сфере жилищно-коммунального хозяйства" | B165: 10 8 00 00000
A166: Основное мероприятие "Создание экономических условий для повышения эффективности работы организаций жилищно-коммунального хозяйства Московской области" | B166: 10 8 01 00000
A167: Реализация отдельных мероприятий муниципальных программ | B167: 10 8 01 61430
A168: Основное мероприятие "Финансовое обеспечение расходов, направленных на осуществление полномочий в сфере жилищно-коммунального хозяйства" | B168: 10 8 02 00000
A169: Осуществление переданных органам местного самоуправления полномочий по региональному государственному жилищному контролю (надзору) за соблюдением гражданами требований правил пользования газом | B169: 10 8 02 61930
A170: Муниципальная программа «Управление имуществом и муниципальными финансами» | B170: 12 0 00 00000
A171: Подпрограмма «Эффективное управление имущественным комплексом» | B171: 12 1 00 00000
A172: Основное мероприятие «Управление имуществом, находящимся в муниципальной собственности, и выполнение кадастровых работ» | B172: 12 1 02 00000
A173: Владение, пользование и распоряжение имуществом, находящимся в муниципальной собственности городского округа | B173: 12 1 02 00170
A174: Взносы на капитальный ремонт общего имущества многоквартирных домов | B174: 12 1 02 00180
A175: Основное мероприятие «Создание условий для реализации государственных полномочий в области земельных отношений» | B175: 12 1 03 00000
A176: Осуществление государственных полномочий Московской области в области земельных отношений | B176: 12 1 03 60830
A177: Основное мероприятие "Создание условий для реализации полномочий органов местного самоуправления" | B177: 12 1 04 00000
A178: Обеспечение деятельности органов местного самоуправления | B178: 12 1 04 00130
A179: Обеспечение деятельности органов местного самоуправления (расходы на обеспечение деятельности органов местного самоуправления) | B179: 12 1 04 00131
A180: Обеспечение деятельности органов местного самоуправления (расходы на содержание лиц, замещающих должности, не являющиеся должностями муниципальной службы) | B180: 12 1 04 00132
A181: Обеспечение деятельности органов местного самоуправления (расходы на содержание лиц, замещающих должности муниципальной службы) | B181: 12 1 04 00133
A182: Подпрограмма «Управление муниципальным долгом» | B182: 12 3 00 00000
A183: Основное мероприятие «Реализация мероприятий в рамках управления муниципальным долгом» | B183: 12 3 01 00000
A184: Обслуживание муниципального долга | B184: 12 3 01 00800
A185: Обеспечивающая подпрограмма | B185: 12 5 00 00000
A186: Основное мероприятие «Создание условий для реализации полномочий органов местного самоуправления» | B186: 12 5 01 00000
A187: Функционирование высшего должностного лица | B187: 12 5 01 00110
A188: Обеспечение деятельности администрации | B188: 12 5 01 00120
A189: Обеспечение деятельности администрации (расходы на обеспечение деятельности органов местного самоуправления) | B189: 12 5 01 00121
A190: Обеспечение деятельности администрации (расходы на содержание лиц, замещающих должности, не являющиеся должностями муниципальной службы) | B190: 12 5 01 00122
A191: Обеспечение деятельности администрации (расходы на содержание лиц, замещающих должности муниципальной службы) | B191: 12 5 01 00123
A192: Обеспечение деятельности финансового органа | B192: 12 5 01 00160
A193: Обеспечение деятельности финансового органа (расходы на обеспечение деятельности органов местного самоуправления) | B193: 12 5 01 00161
A194: Обеспечение деятельности финансового органа (расходы на содержание лиц, замещающих должности, не являющиеся должностями муниципальной службы) | B194: 12 5 01 00162
A195: Обеспечение деятельности финансового органа (расходы на содержание лиц, замещающих должности муниципальной службы) | B195: 12 5 01 00163
A196: Организация и осуществление мероприятий по мобилизационной подготовке | B196: 12 5 01 00720
A197: Взносы в общественные организации | B197: 12 5 01 00870
A198: Расходы на обеспечение деятельности (оказание услуг) муниципальных учреждений - централизованная бухгалтерия муниципального образования | B198: 12 5 01 06070
A199: Расходы на обеспечение деятельности (оказание услуг) муниципальных учреждений - обеспечение деятельности органов местного самоуправления | B199: 12 5 01 06090
A200: Расходы на обеспечение деятельности (оказание услуг) муниципальных учреждений - обеспечение деятельности органов местного самоуправления( "Управление обеспечения деятельности Администрации города Лыткарино") | B200: 12 5 01 06092
A201: Расходы на обеспечение деятельности (оказание услуг) муниципальных учреждений - обеспечение деятельности органов местного самоуправления ("Комитет по делам культуры, молодежи,спорта и туризма г.Лыткарино") | B201: 12 5 01 06093
A202: Расходы на обеспечение деятельности (оказание услуг) муниципальных учреждений - обеспечение деятельности органов местного самоуправления( МБУ"ЛАТП- автотранспортное обслуживание") | B202: 12 5 01 06094
... 112 more rows

Sheet Р., Пр.2022-2024
B2: Приложение 5
B3: к бюджету городского округа Лыткарино на 2023 год
B4: и на плановый период 2024 и 2025 годов
A7: Расходы бюджета городского округа Лыткарино по разделам и подразделам классификации расходов бюджетов на 2023 год и плановый период 2024 и 2025 годов
F9: (тыс.руб.)
A10: Наименования | B10: Рз | C10: ПР | D10: Сумма на 2023 год | E10: Сумма на 2024 год | F10: Сумма на 2025 год
A12: 1 | B12: 2 | C12: 3 | D12: 4 | E12: 5 | F12: 6
A13: Общегосударственные вопросы | B13: 01 | D13: =D14+D15+D16+D17+D18+D19 -> 338500 | E13: =E14+E15+E16+E17+E18+E19 -> 320950.1 | F13: 300099.2
A14: Функционирование высшего должностного лица субъекта Российской Федерации и муниципального образования | B14: 01 | C14: 02 | D14: ='Функц. 2022-2024'!F13 -> 3395.7 | E14: ='Функц. 2022-2024'!H13 -> 3395.7 | F14: ='Функц. 2022-2024'!J13 -> 3395.7
A15: Функционирование законодательных (представительных) органов государственной власти и представительных органов муниципальных образований | B15: 01 | C15: 03 | D15: ='Функц. 2022-2024'!F20 -> 16011.7 | E15: ='Функц. 2022-2024'!H20 -> 16011.7 | F15: ='Функц. 2022-2024'!J20 -> 16166.7
A16: Функционирование Правительства Российской Федерации, высших исполнительных органов государственной власти субъектов Российской Федерации, местных администраций | B16: 01 | C16: 04 | D16: ='Функц. 2022-2024'!F44 -> 93540 | E16: ='Функц. 2022-2024'!H44 -> 92911 | F16: ='Функц. 2022-2024'!J44 -> 93079
A17: Обеспечение деятельности финансовых,налоговых и таможенных органов и органов финансового (финансово-бюджетного) надзора | B17: 01 | C17: 06 | D17: ='Функц. 2022-2024'!F101 -> 35457 | E17: ='Функц. 2022-2024'!H101 -> 35547 | F17: ='Функц. 2022-2024'!J101 -> 35457
A18: Резервные фонды | B18: 01 | C18: 11 | D18: ='Функц. 2022-2024'!F135 -> 3530.5 | E18: ='Функц. 2022-2024'!H135 -> 4571.6 | F18: ='Функц. 2022-2024'!J135 -> 3697.9
A19: Другие общегосударственные вопросы | B19: 01 | C19: 13 | D19: ='Функц. 2022-2024'!F143 -> 186565.1 | E19: ='Функц. 2022-2024'!H143 -> 168513.1 | F19: ='Функц. 2022-2024'!J143 -> 148302.9
A20: Национальная оборона | B20: 02 | D20: =D21+D22 -> 4267.3 | E20: =E21+E22 -> 4313.2 | F20: =F21+F22 -> 4462.8
A21: Мобилизационная и вневойсковая подготовка | B21: 02 | C21: 03 | D21: ='Функц. 2022-2024'!F227 -> 4067.3 | E21: ='Функц. 2022-2024'!H227 -> 4249.2 | F21: ='Функц. 2022-2024'!J227 -> 4398.8
A22: Мобилизационная подготовка экономики | B22: 02 | C22: 04 | D22: ='Функц. 2022-2024'!F236 -> 200 | E22: ='Функц. 2022-2024'!H236 -> 64 | F22: ='Функц. 2022-2024'!J236 -> 64
A23: Национальная безопасность и правоохранительная деятельность | B23: 03 | D23: =D24+D26+D25 -> 41771.5 | E23: =E24+E26+E25 -> 30686.8 | F23: =F24+F26+F25 -> 31174.8
A24: Гражданская оборона | B24: 03 | C24: 09 | D24: ='Функц. 2022-2024'!F244 -> 1300 | E24: ='Функц. 2022-2024'!H244 -> 1300 | F24: ='Функц. 2022-2024'!J244 -> 1300
A25: Защита населения и территории от чрезвычайных ситуаций природного и техногенного характера,пожарная безопасность | B25: 03 | C25: 10 | D25: ='Функц. 2022-2024'!F255 -> 25033.3 | E25: ='Функц. 2022-2024'!H255 -> 21691 | F25: ='Функц. 2022-2024'!J255 -> 21691
A26: Другие вопросы в области национальной безопасности и правоохранительной деятельности | B26: 03 | C26: 14 | D26: ='Функц. 2022-2024'!F292 -> 15438.2 | E26: ='Функц. 2022-2024'!H292 -> 7695.8 | F26: ='Функц. 2022-2024'!J292 -> 8183.8
A27: Национальная экономика | B27: 04 | D27: =D29+D32+D30+D31+D28 -> 126971.4 | E27: =E29+E32+E30+E31+E28 -> 66082.5 | F27: 55514.5
A28: Сельское хозяйство и рыболовство | B28: 04 | C28: 05 | D28: ='Функц. 2022-2024'!F310 -> 1482 | E28: ='Функц. 2022-2024'!H304 -> 1482 | F28: ='Функц. 2022-2024'!J304 -> 1482
A29: Транспорт | B29: 04 | C29: 08 | D29: ='Функц. 2022-2024'!F311 -> 23132.6 | E29: ='Функц. 2022-2024'!H311 -> 18132.6 | F29: ='Функц. 2022-2024'!J311 -> 18132.6
A30: Дорожное хозяйство (дорожные фонды) | B30: 04 | C30: 09 | D30: ='Функц. 2022-2024'!F329 -> 100573.4 | E30: ='Функц. 2022-2024'!H329 -> 45184.5 | F30: ='Функц. 2022-2024'!J329 -> 34616.5
A31: Связь и информатика | B31: 04 | C31: 10 | D31: ='Функц. 2022-2024'!F360 -> 934.5 | E31: ='Функц. 2022-2024'!H360 -> 434.5 | F31: ='Функц. 2022-2024'!J360 -> 434.5
A32: Другие вопросы в области национальной экономики | B32: 04 | C32: 12 | D32: ='Функц. 2022-2024'!F375 -> 848.9 | E32: ='Функц. 2022-2024'!H375 -> 848.9 | F32: ='Функц. 2022-2024'!J375 -> 848.9
A33: Жилищно-коммунальное хозяйство | B33: 05 | D33: =D34+D36+D37+D35 -> 988787.6 | E33: =E34+E36+E37+E35 -> 361267.6 | F33: =F34+F36+F37+F35 -> 118063.9
A34: Жилищное хозяйство | B34: 05 | C34: 01 | D34: ='Функц. 2022-2024'!F386 -> 74211.8 | E34: ='Функц. 2022-2024'!H386 -> 17282 | F34: ='Функц. 2022-2024'!J386 -> 17186
A35: Коммунальное хозяйство | B35: 05 | C35: 02 | D35: ='Функц. 2022-2024'!F409 -> 48652 | E35: ='Функц. 2022-2024'!H409 -> 55122 | F35: ='Функц. 2022-2024'!J409 -> 50
A36: Благоустройство | B36: 05 | C36: 03 | D36: ='Функц. 2022-2024'!F426 -> 845020.9 | E36: ='Функц. 2022-2024'!H426 -> 267960.7 | F36: ='Функц. 2022-2024'!J426 -> 79925
A37: Другие вопросы в области жилищно-коммунального хозяйства | B37: 05 | C37: 05 | D37: ='Функц. 2022-2024'!F477 -> 20902.9 | E37: ='Функц. 2022-2024'!H477 -> 20902.9 | F37: ='Функц. 2022-2024'!J477 -> 20902.9
A38: 1 | B38: 2 | C38: 3 | D38: 4 | E38: 5 | F38: 6
A39: Охрана окружающей среды | B39: 06 | D39: =D40 -> 25 | E39: =E40 -> 25 | F39: 25
A40: Другие вопросы в области охраны окружающей среды | B40: 06 | C40: 05 | D40: ='Функц. 2022-2024'!F513 -> 25 | E40: ='Функц. 2022-2024'!H513 -> 25 | F40: ='Функц. 2022-2024'!J513 -> 25
A41: Образование | B41: 07 | D41: =D42+D43+D45+D46+D44 -> 1584637.5 | E41: =E42+E43+E45+E46+E44 -> 1419810.5 | F41: =F42+F43+F45+F46+F44 -> 1412869.8
A42: Дошкольное образование | B42: 07 | C42: 01 | D42: ='Функц. 2022-2024'!F515 -> 470203 | E42: ='Функц. 2022-2024'!H515 -> 470203 | F42: ='Функц. 2022-2024'!J515 -> 468203
A43: Общее образование | B43: 07 | C43: 02 | D43: ='Функц. 2022-2024'!F529 -> 959759.2 | E43: ='Функц. 2022-2024'!H529 -> 796636.8 | F43: ='Функц. 2022-2024'!J529 -> 794387.1
A44: Дополнительное образование детей | B44: 07 | C44: 03 | D44: ='Функц. 2022-2024'!F593 -> 121508.8 | E44: ='Функц. 2022-2024'!H593 -> 124147.8 | F44: ='Функц. 2022-2024'!J593 -> 120508.8
A45: Молодежная политика | B45: 07 | C45: 07 | D45: ='Функц. 2022-2024'!F627 -> 1566 | E45: ='Функц. 2022-2024'!H627 -> 1163.7 | F45: ='Функц. 2022-2024'!J627 -> 1163.7
A46: Другие вопросы в области образования | B46: 07 | C46: 09 | D46: ='Функц. 2022-2024'!F644 -> 31600.5 | E46: ='Функц. 2022-2024'!H644 -> 27659.2 | F46: ='Функц. 2022-2024'!J644 -> 28607.2
A47: Культура, кинематография | B47: 08 | D47: =D48 -> 113185.2 | E47: =E48 -> 106521 | F47: =F48 -> 108318
A48: Культура | B48: 08 | C48: 01 | D48: ='Функц. 2022-2024'!F690 -> 113185.2 | E48: ='Функц. 2022-2024'!H690 -> 106521 | F48: ='Функц. 2022-2024'!J690 -> 108318
A49: Социальная политика | B49: 10 | D49: =D50+D53+D52+D51 -> 49594.6 | E49: =E50+E53+E52+E51 -> 60972.2 | F49: 82893.4
A50: Пенсионное обеспечение | B50: 10 | C50: 01 | D50: ='Функц. 2022-2024'!F732 -> 7905.1 | E50: ='Функц. 2022-2024'!H732 -> 7905.1 | F50: ='Функц. 2022-2024'!J732 -> 7905.1
A51: Социальное обеспечение населения | B51: 10 | C51: 03 | D51: ='Функц. 2022-2024'!F745 -> 0 | E51: ='Функц. 2022-2024'!H745 -> 0 | F51: ='Функц. 2022-2024'!J745 -> 2430
A52: Охрана семьи и детства | B52: 10 | C52: 04 | D52: ='Функц. 2022-2024'!F746 -> 41619.5 | E52: ='Функц. 2022-2024'!H746 -> 52997.1 | F52: ='Функц. 2022-2024'!J746 -> 72488.3
A53: Другие вопросы в области социальной политики | B53: 10 | C53: 06 | D53: ='Функц. 2022-2024'!F768 -> 70 | E53: ='Функц. 2022-2024'!H768 -> 70 | F53: ='Функц. 2022-2024'!J768 -> 70
A54: Физическая культура и спорт | B54: 11 | D54: =D56+D55 -> 85831 | E54: =E56+E55 -> 190541 | F54: =F56+F55 -> 112009.7
A55: Физическая культура | B55: 11 | C55: 01 | D55: ='Функц. 2022-2024'!F776 -> 82501 | E55: ='Функц. 2022-2024'!H776 -> 82501 | F55: ='Функц. 2022-2024'!J776 -> 82501
A56: Массовый спорт | B56: 11 | C56: 02 | D56: ='Функц. 2022-2024'!F783 -> 3330 | E56: ='Функц. 2022-2024'!H783 -> 108040 | F56: ='Функц. 2022-2024'!J783 -> 29508.7
A57: Обслуживание государственного (муниципального) долга | B57: 13 | D57: =D58 -> 1200 | E57: =E58 -> 11505.1 | F57: =F58 -> 21749.8
A58: Обслуживание государственного (муниципального) внутреннего долга | B58: 13 | C58: 01 | D58: ='Функц. 2022-2024'!F799 -> 1200 | E58: ='Функц. 2022-2024'!H804 -> 11505.1 | F58: ='Функц. 2022-2024'!J804 -> 21749.8
A59: ВСЕГО | D59: =D57+D54+D49+D47+D41+D33+D27+D23+D20+D13+D39 -> 3334771.1 | E59: =E57+E54+E49+E47+E41+E33+E27+E23+E20+E13+E39 -> 2572675 | F59: =F57+F54+F49+F47+F41+F33+F27+F23+F20+F13+F39 -> 2247180.9

Sheet ведом. 2022-2024
AF2: Приложение 3
AD3: к бюджету городского округа Лыткарино на 2023 год
AB4: и на плановый период 2024 и 2025 годов
X6: Ведомственная структура расходов бюджета городского округа Лыткарино на 2023 год и плановый период 2024 и 2025 годов
X8: Наименования | Y8: Код главного распоря- дителя | Z8: Рз | AA8: ПР | AB8: ЦСР | AC8: ВР | AD8: Сумма на 2023 год | AE8: Сумма на 2024 год | AF8: Сумма на 2025 год
X9: 1 | Y9: 2 | Z9: 3 | AA9: 4 | AB9: 5 | AC9: 6 | AD9: 7 | AE9: 8 | AF9: 9
X10: Администрация городского округа Лыткарино | Y10: 001 | AD10: =AD11+AD141+AD158+AD218+AD269+AD322+AD361+AD403+AD418+AD436+AD314 -> 685351.4 | AE10: =AE11+AE141+AE158+AE218+AE269+AE322+AE361+AE403+AE418+AE436+AE314 -> 616536.3 | AF10: =AF11+AF141+AF158+AF218+AF269+AF322+AF361+AF403+AF418+AF436+AF314 -> 598774.7
X11: Общегосударственные вопросы | Y11: 001 | Z11: 01 | AD11: =AD12+AD19+AD76+AD84 -> 238262 | AE11: =AE12+AE19+AE76+AE84 -> 220412.1 | AF11: =AF12+AF19+AF76+AF84 -> 199706.2
X12: Функционирование высшего должностного лица субъекта Российской Федерации и муниципального образования | Y12: 001 | Z12: 01 | AA12: 02 | AD12: =AD13 -> 3395.7 | AE12: 3395.7 | AF12: 3395.7
X13: Муниципальная программа «Управление имуществом и муниципальными финансами» | Y13: 001 | Z13: 01 | AA13: 02 | AB13: 12 0 00 00000 | AD13: =AD14 -> 3395.7 | AE13: =AE14 -> 3395.7 | AF13: =AF14 -> 3395.7
X14: Обеспечивающая подпрограмма | Y14: 001 | Z14: 01 | AA14: 02 | AB14: 12 5 00 00000 | AD14: 3395.7 | AE14: 3395.7 | AF14: 3395.7
X15: Основное мероприятие «Создание условий для реализации полномочий органов местного самоуправления» | Y15: 001 | Z15: 01 | AA15: 02 | AB15: 12 5 01 00000 | AD15: 3395.7 | AE15: 3395.7 | AF15: 3395.7
X16: Функционирование высшего должностного лица | Y16: 001 | Z16: 01 | AA16: 02 | AB16: 12 5 01 00110 | AD16: =AD17 -> 3395.7 | AE16: 3395.7 | AF16: 3395.7
X17: Расходы на выплаты персоналу в целях обеспечения выполнения функций государственными (муниципальными) органами, казенными учреждениями, органами управления государственными внебюджетными фондами | Y17: 001 | Z17: 01 | AA17: 02 | AB17: 12 5 01 00110 | AC17: 100 | AD17: 3395.7 | AE17: 3395.7 | AF17: 3395.7
X18: Расходы на выплаты персоналу государственных (муниципальных) органов | Y18: 001 | Z18: 01 | AA18: 02 | AB18: 12 5 01 00110 | AC18: 120 | AD18: 3395.7 | AE18: 3395.7 | AF18: 3395.7
X19: Функционирование Правительства Российской Федерации, высших исполнительных органов государственной власти субъектов Российской Федерации, местных администраций | Y19: 001 | Z19: 01 | AA19: 04 | AD19: =AD20+AD32+AD45+AD62+AD68 -> 93540 | AE19: =AE20+AE32+AE45+AE62+AE68 -> 92911 | AF19: =AF20+AF32+AF45+AF62+AF68 -> 93079
X20: Муниципальная программа «Культура и туризм» | Y20: 001 | Z20: 01 | AA20: 04 | AB20: 02 0 00 00000 | AD20: =AD21 -> 2102 | AE20: =AE21 -> 1806 | AF20: =AF21 -> 1953
X21: Подпрограмма «Развитие архивного дела» | Y21: 001 | Z21: 01 | AA21: 04 | AB21: 02 9 00 00000 | AD21: =AD22+AD26 -> 2102 | AE21: =AE22+AE26 -> 1806 | AF21: =AF22+AF26 -> 1953
X22: Основное мероприятие «Хранение, комплектование, учет и использование архивных документов в муниципальных архивах» | Y22: 001 | Z22: 01 | AA22: 04 | AB22: 02 9 01 00000 | AD22: =AD23 -> 300 | AE22: 0 | AF22: 145
X23: Расходы на обеспечение деятельности (оказание услуг) муниципальных архивов | Y23: 001 | Z23: 01 | AA23: 04 | AB23: 02 9 01 06160 | AD23: 300 | AE23: 0 | AF23: 145
X24: Закупка товаров, работ и услуг для обеспечения государственных (муниципальных) нужд | Y24: 001 | Z24: 01 | AA24: 04 | AB24: 02 9 01 06160 | AC24: 200 | AD24: 300 | AE24: 0 | AF24: 145
X25: Иные закупки товаров, работ и услуг для обеспечения государственных (муниципальных) нужд | Y25: 001 | Z25: 01 | AA25: 04 | AB25: 02 9 01 06160 | AC25: 240 | AD25: 300 | AE25: 0 | AF25: 145
X26: Основное мероприятие «Временное хранение, комплектование, учет и использование архивных документов, относящихся к собственности Московской области и временно хранящихся в муниципальных архивах» | Y26: 001 | Z26: 01 | AA26: 04 | AB26: 02 9 02 00000 | AD26: =AD27 -> 1802 | AE26: =AE27 -> 1806 | AF26: =AF27 -> 1808
X27: Обеспечение переданных полномочий по временному хранению, комплектованию, учету и использованию архивных документов, относящихся к собственности Московской области и временно хранящихся в муниципальных архивах | Y27: 001 | Z27: 01 | AA27: 04 | AB27: 02 9 02 60690 | AD27: =AD28+AD30 -> 1802 | AE27: =AE28+AE30 -> 1806 | AF27: =AF28+AF30 -> 1808
X28: Расходы на выплаты персоналу в целях обеспечения выполнения функций государственными (муниципальными) органами, казенными учреждениями, органами управления государственными внебюджетными фондами | Y28: 001 | Z28: 01 | AA28: 04 | AB28: 02 9 02 60690 | AC28: 100 | AD28: =AD29 -> 1733 | AE28: =AE29 -> 1733 | AF28: =AF29 -> 1733
X29: Расходы на выплаты персоналу государственных (муниципальных) органов | Y29: 001 | Z29: 01 | AA29: 04 | AB29: 02 9 02 60690 | AC29: 120 | AD29: 1733 | AE29: 1733 | AF29: 1733
X30: Закупка товаров, работ и услуг для обеспечения государственных (муниципальных) нужд | Y30: 001 | Z30: 01 | AA30: 04 | AB30: 02 9 02 60690 | AC30: 200 | AD30: =AD31 -> 69 | AE30: =AE31 -> 73 | AF30: =AF31 -> 75
X31: Иные закупки товаров, работ и услуг для обеспечения государственных (муниципальных) нужд | Y31: 001 | Z31: 01 | AA31: 04 | AB31: 02 9 02 60690 | AC31: 240 | AD31: 69 | AE31: 73 | AF31: 75
X32: Муниципальная программа «Социальная защита населения» | Y32: 001 | Z32: 01 | AA32: 04 | AB32: 04 0 00 00000 | AD32: =AD33+AD40 -> 2765 | AE32: =AE33+AE40 -> 2432 | AF32: 2453
X33: Обеспечивающая подпрограмма | Y33: 001 | Z33: 01 | AA33: 04 | AB33: 04 5 00 00000 | AD33: =AD34 -> 2335 | AE33: 2362 | AF33: 2383
X34: Основное мероприятие «Иные мероприятия, реализуемые в целях создания условий для реализации полномочий органов государственной власти Московской области и государственных органов Московской области» | Y34: 001 | Z34: 01 | AA34: 04 | AB34: 04 5 03 00000 | AD34: 2335 | AE34: 2362 | AF34: 2383
X35: Обеспечение переданного государственного полномочия Московской области по созданию комиссий по делам несовершеннолетних и защите их прав муниципальных образований Московской области | Y35: 001 | Z35: 01 | AA35: 04 | AB35: 04 5 03 60680 | AD35: =AD36+AD38 -> 2335 | AE35: =AE36+AE38 -> 2362 | AF35: =AF36+AF38 -> 2383
X36: Расходы на выплаты персоналу в целях обеспечения выполнения функций государственными (муниципальными) органами, казенными учреждениями, органами управления государственными внебюджетными фондами | Y36: 001 | Z36: 01 | AA36: 04 | AB36: 04 5 03 60680 | AC36: 100 | AD36: =AD37 -> 1998 | AE36: =AE37 -> 1998 | AF36: =AF37 -> 1998
X37: Расходы на выплаты персоналу государственных (муниципальных) органов | Y37: 001 | Z37: 01 | AA37: 04 | AB37: 04 5 03 60680 | AC37: 120 | AD37: 1998 | AE37: 1998 | AF37: 1998
X38: Закупка товаров, работ и услуг для обеспечения государственных (муниципальных) нужд | Y38: 001 | Z38: 01 | AA38: 04 | AB38: 04 5 03 60680 | AC38: 200 | AD38: =AD39 -> 337 | AE38: =AE39 -> 364 | AF38: =AF39 -> 385
X39: Иные закупки товаров, работ и услуг для обеспечения государственных (муниципальных) нужд | Y39: 001 | Z39: 01 | AA39: 04 | AB39: 04 5 03 60680 | AC39: 240 | AD39: 337 | AE39: 364 | AF39: 385
X40: Подпрограмма "Обеспечение доступности для инвалидов и маломобильных групп населения объектов инфраструктуры и услуг" | Y40: 001 | Z40: 01 | AA40: 04 | AB40: 04 7 00 00000 | AD40: =AD41 -> 430 | AE40: =AE41 -> 70 | AF40: 70
X41: Основное мероприятие "Обеспечение доступности для инвалидов и маломобильных групп населения объектов инфраструктуры (за исключением сфер культуры, образования, спорта)" | Y41: 001 | Z41: 01 | AA41: 04 | AB41: 04 7 01 00000 | AD41: =AD42 -> 430 | AE41: 70 | AF41: 70
X42: Обеспечение доступности для инвалидов и маломобильных групп населения объектов инфраструктуры (за исключением сфер культуры, образования, спорта) | Y42: 001 | Z42: 01 | AA42: 04 | AB42: 04 7 01 01770 | AD42: =AD43 -> 430 | AE42: 70 | AF42: 70
X43: Закупка товаров, работ и услуг для обеспечения государственных (муниципальных) нужд | Y43: 001 | Z43: 01 | AA43: 04 | AB43: 04 7 01 01770 | AC43: 200 | AD43: =AD44 -> 430 | AE43: 70 | AF43: 70
X44: Иные закупки товаров, работ и услуг для обеспечения государственных (муниципальных) нужд | Y44: 001 | Z44: 01 | AA44: 04 | AB44: 04 7 01 01770 | AC44: 240 | AD44: 430 | AE44: 70 | AF44: 70
X45: Муниципальная программа «Управление имуществом и муниципальными финансами» | Y45: 001 | Z45: 01 | AA45: 04 | AB45: 12 0 00 00000 | AD45: =AD46 -> 82222 | AE45: =AE46 -> 82222 | AF45: 82222
X46: Обеспечивающая подпрограмма | Y46: 001 | Z46: 01 | AA46: 04 | AB46: 12 5 00 00000 | AD46: =AD47+AD58 -> 82222 | AE46: =AE47+AE58 -> 82222 | AF46: =AF47+AF58 -> 82222
X47: Основное мероприятие «Создание условий для реализации полномочий органов местного самоуправления» | Y47: 001 | Z47: 01 | AA47: 04 | AB47: 12 5 01 00000 | AD47: =AD48 -> 82172 | AE47: 82172 | AF47: 82172
X48: Обеспечение деятельности администрации | Y48: 001 | Z48: 01 | AA48: 04 | AB48: 12 5 01 00120 | AD48: =AD49+AD52+AD55 -> 82172 | AE48: =AE49+AE52+AE55 -> 82172 | AF48: =AF49+AF52+AF55 -> 82172
X49: Обеспечение деятельности администрации (расходы на обеспечение деятельности органов местного самоуправления) | Y49: 001 | Z49: 01 | AA49: 04 | AB49: 12 5 01 00121 | AD49: =AD50 -> 8226.8 | AE49: =AE50 -> 8226.8 | AF49: 8226.8
X50: Закупка товаров, работ и услуг для обеспечения государственных (муниципальных) нужд | Y50: 001 | Z50: 01 | AA50: 04 | AB50: 12 5 01 00121 | AC50: 200 | AD50: =AD51 -> 8226.8 | AE50: =AE51 -> 8226.8 | AF50: =AF51 -> 8226.8
X51: Иные закупки товаров, работ и услуг для обеспечения государственных (муниципальных) нужд | Y51: 001 | Z51: 01 | AA51: 04 | AB51: 12 5 01 00121 | AC51: 240 | AD51: 8226.8 | AE51: 8226.8 | AF51: 8226.8
X52: Обеспечение деятельности администрации (расходы на содержание лиц, замещающих должности, не являющиеся должностями муниципальной службы) | Y52: 001 | Z52: 01 | AA52: 04 | AB52: 12 5 01 00122 | AD52: =AD53 -> 25933.7 | AE52: 25933.7 | AF52: 25933.7
X53: Расходы на выплаты персоналу в целях обеспечения выполнения функций государственными (муниципальными) органами, казенными учреждениями, органами управления государственными внебюджетными фондами | Y53: 001 | Z53: 01 | AA53: 04 | AB53: 12 5 01 00122 | AC53: 100 | AD53: 25933.7 | AE53: 25933.7 | AF53: 25933.7
X54: Расходы на выплаты персоналу государственных (муниципальных) органов | Y54: 001 | Z54: 01 | AA54: 04 | AB54: 12 5 01 00122 | AC54: 120 | AD54: 25933.7 | AE54: 25933.7 | AF54: 25933.7
X55: Обеспечение деятельности администрации (расходы на содержание лиц, замещающих должности муниципальной службы) | Y55: 001 | Z55: 01 | AA55: 04 | AB55: 12 5 01 00123 | AD55: =AD56 -> 48011.5 | AE55: 48011.5 | AF55: 48011.5
X56: Расходы на выплаты персоналу в целях обеспечения выполнения функций государственными (муниципальными) органами, казенными учреждениями, органами управления государственными внебюджетными фондами | Y56: 001 | Z56: 01 | AA56: 04 | AB56: 12 5 01 00123 | AC56: 100 | AD56: 48011.5 | AE56: 48011.5 | AF56: 48011.5
X57: Расходы на выплаты персоналу государственных (муниципальных) органов | Y57: 001 | Z57: 01 | AA57: 04 | AB57: 12 5 01 00123 | AC57: 120 | AD57: 48011.5 | AE57: 48011.5 | AF57: 48011.5
X58: Основное мероприятие "Мероприятия, реализуемые в целях создания условий для реализации полномочий органов местного самоуправления" | Y58: 001 | Z58: 01 | AA58: 04 | AB58: 12 5 03 00000 | AD58: =AD59 -> 50 | AE58: =AE59 -> 50 | AF58: 50
X59: Организация профессионального образования и дополнительного профессионального образования выборных должностных лиц местного самоуправления, членов выборных органов местного самоуправления, депутатов представительных органов муниципальных образований, муниципальных служащих и работников муниципальных учреждений, организация подготовки кадров для муниципальной службы | Y59: 001 | Z59: 01 | AA59: 04 | AB59: 12 5 03 00830 | AD59: =AD60 -> 50 | AE59: 50 | AF59: 50
X60: Закупка товаров, работ и услуг для обеспечения государственных (муниципальных) нужд | Y60: 001 | Z60: 01 | AA60: 04 | AB60: 12 5 03 00830 | AC60: 200 | AD60: =AD61 -> 50 | AE60: 50 | AF60: 50
X61: Иные закупки товаров, работ и услуг для обеспечения государственных (муниципальных) нужд | Y61: 001 | Z61: 01 | AA61: 04 | AB61: 12 5 03 00830 | AC61: 240 | AD61: 50 | AE61: 50 | AF61: 50
X62: Муниципальная программа «Развитие институтов гражданского общества, повышение эффективности местного самоуправления и реализации молодежной политики» | Y62: 001 | Z62: 01 | AA62: 04 | AB62: 13 0 00 00000 | AD62: =AD63 -> 6252 | AE62: 6252 | AF62: 6252
X63: Подпрограмма «Развитие системы информирования населения о деятельности органов местного самоуправления городских округов Московской области, создание доступной современной медиасреды» | Y63: 001 | Z63: 01 | AA63: 04 | AB63: 13 1 00 00000 | AD63: 6252 | AE63: 6252 | AF63: 6252
X64: Основное мероприятие «Информирование населения об основных событиях социально-экономического развития и общественно-политической жизни» | Y64: 001 | Z64: 01 | AA64: 04 | AB64: 13 1 01 00000 | AD64: 6252 | AE64: 6252 | AF64: 6252
X65: Информирование населения о деятельности, о положении дел на территории муниципального образования, опубликование муниципальных правовых актов, обсуждение проектов муниципальных правовых актов по вопросам местного значения, доведение до сведения жителей муниципального образования официальной информации о социально-экономическом и культурном развитии муниципального образования, о развитии его общественной инфраструктуры и иной официальной информации | Y65: 001 | Z65: 01 | AA65: 04 | AB65: 13 1 01 00820 | AD65: =AD66 -> 6252 | AE65: 6252 | AF65: 6252
X66: Закупка товаров, работ и услуг для обеспечения государственных (муниципальных) нужд | Y66: 001 | Z66: 01 | AA66: 04 | AB66: 13 1 01 00820 | AC66: 200 | AD66: 6252 | AE66: 6252 | AF66: 6252
X67: Иные закупки товаров, работ и услуг для обеспечения государственных (муниципальных) нужд | Y67: 001 | Z67: 01 | AA67: 04 | AB67: 13 1 01 00820 | AC67: 240 | AD67: 6252 | AE67: 6252 | AF67: 6252
X68: Муниципальная программа «Архитектура и градостроительство» | Y68: 001 | Z68: 01 | AA68: 04 | AB68: 16 0 00 00000 | AD68: =AD69 -> 199 | AE68: =AE69 -> 199 | AF68: 199
X69: Подпрограмма «Реализация политики пространственного развития городского округа» | Y69: 001 | Z69: 01 | AA69: 04 | AB69: 16 2 00 00000 | AD69: =AD70 -> 199 | AE69: 199 | AF69: 199
X70: Основное мероприятие "Финансовое обеспечение выполнения отдельных государственных полномочий в сфере архитектуры и градостроительства, переданных органам местного самоуправления муниципальных образований" | Y70: 001 | Z70: 01 | AA70: 04 | AB70: 16 2 04 00000 | AD70: 199 | AE70: 199 | AF70: 199
X71: Осуществление отдельных государственных полномочий в части присвоения адресов объектам адресации и согласования перепланировки помещений в многоквартирном доме | Y71: 001 | Z71: 01 | AA71: 04 | AB71: 16 2 04 60700 | AD71: =AD72+AD74 -> 199 | AE71: =AE72+AE74 -> 199 | AF71: 199
X72: Расходы на выплаты персоналу в целях обеспечения выполнения функций государственными (муниципальными) органами, казенными учреждениями, органами управления государственными внебюджетными фондами | Y72: 001 | Z72: 01 | AA72: 04 | AB72: 16 2 04 60700 | AC72: 100 | AD72: 158.3 | AE72: 158.3 | AF72: 158.3
X73: Расходы на выплаты персоналу государственных (муниципальных) органов | Y73: 001 | Z73: 01 | AA73: 04 | AB73: 16 2 04 60700 | AC73: 120 | AD73: 158.3 | AE73: 158.3 | AF73: 158.3
X74: Закупка товаров, работ и услуг для обеспечения государственных (муниципальных) нужд | Y74: 001 | Z74: 01 | AA74: 04 | AB74: 16 2 04 60700 | AC74: 200 | AD74: =AD75 -> 40.7 | AE74: =AE75 -> 40.7 | AF74: 40.7
X75: Иные закупки товаров, работ и услуг для обеспечения государственных (муниципальных) нужд | Y75: 001 | Z75: 01 | AA75: 04 | AB75: 16 2 04 60700 | AC75: 240 | AD75: 40.7 | AE75: 40.7 | AF75: 40.7
X76: Резервные фонды | Y76: 001 | Z76: 01 | AA76: 11 | AD76: =AD77 -> 3530.5 | AE76: =AE77 -> 4571.6 | AF76: =AF77 -> 3697.9
X77: Непрограммные расходы | Y77: 001 | Z77: 01 | AA77: 11 | AB77: 99 0 00 00000 | AD77: =AD78+AD81 -> 3530.5 | AE77: =AE78+AE81 -> 4571.6 | AF77: =AF78+AF81 -> 3697.9
X78: Резервный фонд администрации | Y78: 001 | Z78: 01 | AA78: 11 | AB78: 99 0 00 00060 | AD78: =AD79 -> 2530.5 | AE78: 3571.6 | AF78: 2697.9
X79: Иные бюджетные ассигнования | Y79: 001 | Z79: 01 | AA79: 11 | AB79: 99 0 00 00060 | AC79: 800 | AD79: 2530.5 | AE79: 3571.6 | AF79: 2697.9
X80: Резервные средства | Y80: 001 | Z80: 01 | AA80: 11 | AB80: 99 0 00 00060 | AC80: 870 | AD80: 2530.5 | AE80: 3571.6 | AF80: =2572+125.9 -> 2697.9
X81: Резервный фонд на предупреждение и ликвидацию чрезвычайных ситуаций и последствий стихийных бедствий | Y81: 001 | Z81: 01 | AA81: 11 | AB81: 99 0 00 00070 | AD81: =AD82 -> 1000 | AE81: 1000 | AF81: 1000
X82: Иные бюджетные ассигнования | Y82: 001 | Z82: 01 | AA82: 11 | AB82: 99 0 00 00070 | AC82: 800 | AD82: 1000 | AE82: 1000 | AF82: 1000
X83: Резервные средства | Y83: 001 | Z83: 01 | AA83: 11 | AB83: 99 0 00 00070 | AC83: 870 | AD83: 1000 | AE83: 1000 | AF83: 1000
X84: Другие общегосударственные вопросы | Y84: 001 | Z84: 01 | AA84: 13 | AD84: =AD85+AD116+AD122+AD133 -> 137795.8 | AE84: =AE85+AE116+AE122+AE133 -> 119533.8 | AF84: =AF85+AF116+AF122+AF133 -> 99533.6
X85: Муниципальная программа «Управление имуществом и муниципальными финансами» | Y85: 001 | Z85: 01 | AA85: 13 | AB85: 12 0 00 00000 | AD85: =AD86+AD95 -> 85332.6 | AE85: =AE86+AE95 -> 67070.6 | AF85: =AF86+AF95 -> 57070.6
X86: Подпрограмма «Эффективное управление имущественным комплексом» | Y86: 001 | Z86: 01 | AA86: 13 | AB86: 12 1 00 00000 | AD86: =AD87 -> 11054 | AE86: 11054 | AF86: 11054
X87: Основное мероприятие «Управление имуществом, находящимся в муниципальной собственности, и выполнение кадастровых работ» | Y87: 001 | Z87: 01 | AA87: 13 | AB87: 12 1 02 00000 | AD87: 11054 | AE87: 11054 | AF87: 11054
X88: Владение, пользование и распоряжение имуществом, находящимся в муниципальной собственности городского округа | Y88: 001 | Z88: 01 | AA88: 13 | AB88: 12 1 02 00170 | AD88: =AD93+AD89+AD91 -> 11054 | AE88: =AE93+AE89+AE91 -> 11054 | AF88: =AF93+AF89+AF91 -> 11054
X89: Закупка товаров, работ и услуг для обеспечения государственных (муниципальных) нужд | Y89: 001 | Z89: 01 | AA89: 13 | AB89: 12 1 02 00170 | AC89: 200 | AD89: =AD90 -> 60 | AE89: =AE90 -> 60 | AF89: =AF90 -> 60
X90: Иные закупки товаров, работ и услуг для обеспечения государственных (муниципальных) нужд | Y90: 001 | Z90: 01 | AA90: 13 | AB90: 12 1 02 00170 | AC90: 240 | AD90: 60 | AE90: 60 | AF90: 60
X91: Социальное обеспечение и иные выплаты населению | Y91: 001 | Z91: 01 | AA91: 13 | AB91: 12 1 02 00170 | AC91: 300 | AD91: =AD92 -> 1994 | AE91: =AE92 -> 1994 | AF91: 1994
X92: Иные выплаты населению | Y92: 001 | Z92: 01 | AA92: 13 | AB92: 12 1 02 00170 | AC92: 360 | AD92: 1994 | AE92: 1994 | AF92: 1994
X93: Предоставление субсидий бюджетным, автономным учреждениям и иным некоммерческим организациям | Y93: 001 | Z93: 01 | AA93: 13 | AB93: 12 1 02 00170 | AC93: 600 | AD93: =AD94 -> 9000 | AE93: =AE94 -> 9000 | AF93: =AF94 -> 9000
X94: Субсидии бюджетным учреждениям | Y94: 001 | Z94: 01 | AA94: 13 | AB94: 12 1 02 00170 | AC94: 610 | AD94: 9000 | AE94: 9000 | AF94: 9000
X95: Обеспечивающая подпрограмма | Y95: 001 | Z95: 01 | AA95: 13 | AB95: 12 5 00 00000 | AD95: =AD96 -> 74278.6 | AE95: =AE96 -> 56016.6 | AF95: =AF96 -> 46016.6
X96: Основное мероприятие «Создание условий для реализации полномочий органов местного самоуправления» | Y96: 001 | Z96: 01 | AA96: 13 | AB96: 12 5 01 00000 | AD96: =AD97+AD100+AD105 -> 74278.6 | AE96: =AE97+AE100+AE105 -> 56016.6 | AF96: =AF97+AF100+AF105 -> 46016.6
X97: Взносы в общественные организации | Y97: 001 | Z97: 01 | AA97: 13 | AB97: 12 5 01 00870 | AD97: =AD99 -> 144 | AE97: =AE99 -> 144 | AF97: =AF99 -> 144
X98: Иные бюджетные ассигнования | Y98: 001 | Z98: 01 | AA98: 13 | AB98: 12 5 01 00870 | AC98: 800 | AD98: =AD99 -> 144 | AE98: =AE99 -> 144 | AF98: =AF99 -> 144
X99: Уплата налогов, сборов и иных платежей | Y99: 001 | Z99: 01 | AA99: 13 | AB99: 12 5 01 00870 | AC99: 850 | AD99: 144 | AE99: 144 | AF99: 144
X100: Обеспечение деятельности муниципальных казенных учреждений в сфере закупок товаров, работ, услуг | Y100: 001 | Z100: 01 | AA100: 13 | AB100: 12 5 01 01680 | AD100: =AD101+AD103 -> 12197.8 | AE100: =AE101+AE103 -> 10600 | AF100: =AF101+AF103 -> 10600
X101: Расходы на выплаты персоналу в целях обеспечения выполнения функций государственными (муниципальными) органами, казенными учреждениями, органами управления государственными внебюджетными фондами | Y101: 001 | Z101: 01 | AA101: 13 | AB101: 12 5 01 01680 | AC101: 100 | AD101: =AD102 -> 11391.2 | AE101: =AE102 -> 9793.4 | AF101: =AF102 -> 9793.4
X102: Расходы на выплаты персоналу казенных учреждений | Y102: 001 | Z102: 01 | AA102: 13 | AB102: 12 5 01 01680 | AC102: 110 | AD102: 11391.2 | AE102: 9793.4 | AF102: 9793.4
X103: Закупка товаров, работ и услуг для обеспечения государственных (муниципальных) нужд | Y103: 001 | Z103: 01 | AA103: 13 | AB103: 12 5 01 01680 | AC103: 200 | AD103: =AD104 -> 806.6 | AE103: =AE104 -> 806.6 | AF103: =AF104 -> 806.6
X104: Иные закупки товаров, работ и услуг для обеспечения государственных (муниципальных) нужд | Y104: 001 | Z104: 01 | AA104: 13 | AB104: 12 5 01 01680 | AC104: 240 | AD104: 806.6 | AE104: 806.6 | AF104: 806.6
X105: Расходы на обеспечение деятельности (оказание услуг) муниципальных учреждений - обеспечение деятельности органов местного самоуправления | Y105: 001 | Z105: 01 | AA105: 13 | AB105: 12 5 01 06090 | AD105: =AD106+AD111 -> 61936.8 | AE105: =AE106+AE111 -> 45272.6 | AF105: 35272.6
X106: Расходы на обеспечение деятельности (оказание услуг) муниципальных учреждений - обеспечение деятельности органов местного самоуправления( "Управление обеспечения деятельности Администрации города Лыткарино") | Y106: 001 | Z106: 01 | AA106: 13 | AB106: 12 5 01 06092 | AD106: =AD107+AD109 -> 55272.6 | AE106: =AE107+AE109 -> 45272.6 | AF106: 35272.6
X107: Расходы на выплаты персоналу в целях обеспечения выполнения функций государственными (муниципальными) органами, казенными учреждениями, органами управления государственными внебюджетными фондами | Y107: 001 | Z107: 01 | AA107: 13 | AB107: 12 5 01 06092 | AC107: 100 | AD107: =AD108 -> 54604.1 | AE107: =AE108 -> 44604.1 | AF107: =AF108 -> 34604.1
X108: Расходы на выплаты персоналу казенных учреждений | Y108: 001 | Z108: 01 | AA108: 13 | AB108: 12 5 01 06092 | AC108: 110 | AD108: 54604.1 | AE108: 44604.1 | AF108: 34604.1
X109: Закупка товаров, работ и услуг для обеспечения государственных (муниципальных) нужд | Y109: 001 | Z109: 01 | AA109: 13 | AB109: 12 5 01 06092 | AC109: 200 | AD109: =AD110 -> 668.5 | AE109: =AE110 -> 668.5 | AF109: =AF110 -> 668.5
X110: Иные закупки товаров, работ и услуг для обеспечения государственных (муниципальных) нужд | Y110: 001 | Z110: 01 | AA110: 13 | AB110: 12 5 01 06092 | AC110: 240 | AD110: 668.5 | AE110: 668.5 | AF110: 668.5
X111: Расходы на обеспечение деятельности (оказание услуг) муниципальных учреждений - обеспечение деятельности органов местного самоуправления ("Комитет по делам культуры, молодежи,спорта и туризма г.Лыткарино") | Y111: 001 | Z111: 01 | AA111: 13 | AB111: 12 5 01 06093 | AD111: =AD112+AD114 -> 6664.2 | AE111: =AE112+AE114 -> 0 | AF111: 0
X112: Расходы на выплаты персоналу в целях обеспечения выполнения функций государственными (муниципальными) органами, казенными учреждениями, органами управления государственными внебюджетными фондами | Y112: 001 | Z112: 01 | AA112: 13 | AB112: 12 5 01 06093 | AC112: 100 | AD112: =AD113 -> 6057.3 | AE112: =AE113 -> 0 | AF112: =AF113 -> 0
X113: Расходы на выплаты персоналу казенных учреждений | Y113: 001 | Z113: 01 | AA113: 13 | AB113: 12 5 01 06093 | AC113: 110 | AD113: 6057.3 | AE113: 0 | AF113: 0
X114: Закупка товаров, работ и услуг для обеспечения государственных (муниципальных) нужд | Y114: 001 | Z114: 01 | AA114: 13 | AB114: 12 5 01 06093 | AC114: 200 | AD114: =AD115 -> 606.9 | AE114: =AE115 -> 0 | AF114: =AF115 -> 0
X115: Иные закупки товаров, работ и услуг для обеспечения государственных (муниципальных) нужд | Y115: 001 | Z115: 01 | AA115: 13 | AB115: 12 5 01 06093 | AC115: 240 | AD115: 606.9 | AE115: 0 | AF115: 0
X116: Муниципальная программа «Развитие институтов гражданского общества, повышение эффективности местного самоуправления и реализации молодежной политики» | Y116: 001 | Z116: 01 | AA116: 13 | AB116: 13 0 00 00000 | AD116: =AD117 -> 2.1 | AE116: =AE117 -> 2.1 | AF116: 1.9
X117: Обеспечивающая подпрограмма | Y117: 001 | Z117: 01 | AA117: 13 | AB117: 13 6 00 00000 | AD117: =AD118 -> 2.1 | AE117: =AE118 -> 2.1 | AF117: 1.9
X118: Основное мероприятие «Корректировка списков кандидатов в присяжные заседатели федеральных судов общей юрисдикции в Российской Федерации» | Y118: 001 | Z118: 01 | AA118: 13 | AB118: 13 6 04 00000 | AD118: =AD119 -> 2.1 | AE118: 2.1 | AF118: 1.9
X119: Осуществление полномочий по составлению (изменению) списков кандидатов в присяжные заседатели федеральных судов общей юрисдикции в Российской Федерации | Y119: 001 | Z119: 01 | AA119: 13 | AB119: 13 6 04 51200 | AD119: 2.1 | AE119: 2.1 | AF119: 1.9
X120: Закупка товаров, работ и услуг для обеспечения государственных (муниципальных) нужд | Y120: 001 | Z120: 01 | AA120: 13 | AB120: 13 6 04 51200 | AC120: 200 | AD120: 2.1 | AE120: 2.1 | AF120: 1.9
X121: Иные закупки товаров, работ и услуг для обеспечения государственных (муниципальных) нужд | Y121: 001 | Z121: 01 | AA121: 13 | AB121: 13 6 04 51200 | AC121: 240 | AD121: 2.1 | AE121: 2.1 | AF121: 1.9
X122: Муниципальная программа «Цифровое муниципальное образование» | Y122: 001 | Z122: 01 | AA122: 13 | AB122: 15 0 00 00000 | AD122: =AD123+AD128 -> 42361.1 | AE122: =AE123+AE128 -> 42361.1 | AF122: 42361.1
X123: Подпрограмма «Повышение качества и доступности предоставления государственных и муниципальных услуг на базе многофункциональных центров предоставления государственных и муниципальных услуг» | Y123: 001 | Z123: 01 | AA123: 13 | AB123: 15 1 00 00000 | AD123: =AD124 -> 799 | AE123: =AE124 -> 799 | AF123: 799
X124: Основное мероприятие "Совершенствование системы предоставления государственных и муниципальных услуг по принципу одного окна в многофункциональных центрах предоставления государственных и муниципальных услуг" | Y124: 001 | Z124: 01 | AA124: 13 | AB124: 15 1 02 00000 | AD124: =AD125 -> 799 | AE124: =AE125 -> 799 | AF124: 799
X125: Техническая поддержка программно-технических комплексов для оформления паспортов гражданина Российской Федерации, удостоверяющих личность гражданина Российской Федерации за пределами территории Российской Федерации в многофункциональных центрах предоставления государственных и муниципальных услуг | Y125: 001 | Z125: 01 | AA125: 13 | AB125: 15 1 02 S0860 | AD125: =AD126 -> 799 | AE125: =AE126 -> 799 | AF125: 799
X126: Предоставление субсидий бюджетным, автономным учреждениям и иным некоммерческим организациям | Y126: 001 | Z126: 01 | AA126: 13 | AB126: 15 1 02 S0860 | AC126: 600 | AD126: =AD127 -> 799 | AE126: =AE127 -> 799 | AF126: 799
X127: Субсидии бюджетным учреждениям | Y127: 001 | Z127: 01 | AA127: 13 | AB127: 15 1 02 S0860 | AC127: 610 | AD127: =665+134 -> 799 | AE127: =665+134 -> 799 | AF127: =665+134 -> 799
X128: Обеспечивающая подпрограмма | Y128: 001 | Z128: 01 | AA128: 13 | AB128: 15 3 00 00000 | AD128: =AD129 -> 41562.1 | AE128: =AE129 -> 41562.1 | AF128: 41562.1
X129: Основное мероприятие "Создание условий для реализации полномочий органов местного самоуправления" | Y129: 001 | Z129: 01 | AA129: 13 | AB129: 15 3 01 00000 | AD129: =AD130 -> 41562.1 | AE129: 41562.1 | AF129: 41562.1
X130: Расходы на обеспечение деятельности (оказание услуг) муниципальных учреждений - многофункциональный центр предоставления государственных и муниципальных услуг | Y130: 001 | Z130: 01 | AA130: 13 | AB130: 15 3 01 06190 | AD130: =AD131 -> 41562.1 | AE130: 41562.1 | AF130: 41562.1
X131: Предоставление субсидий бюджетным, автономным учреждениям и иным некоммерческим организациям | Y131: 001 | Z131: 01 | AA131: 13 | AB131: 15 3 01 06190 | AC131: 600 | AD131: =AD132 -> 41562.1 | AE131: 41562.1 | AF131: 41562.1
X132: Субсидии бюджетным учреждениям | Y132: 001 | Z132: 01 | AA132: 13 | AB132: 15 3 01 06190 | AC132: 610 | AD132: 41562.1 | AE132: 41562.1 | AF132: 41562.1
X133: Непрограммные расходы | Y133: 001 | Z133: 01 | AA133: 13 | AB133: 99 0 00 00000 | AD133: =AD134+AD137 -> 10100 | AE133: =AE134+AE137 -> 10100 | AF133: 100
X134: Оплата исполнительных листов, судебных издержек | Y134: 001 | Z134: 01 | AA134: 13 | AB134: 99 0 00 00080 | AD134: =AD135 -> 100 | AE134: 100 | AF134: 100
X135: Иные бюджетные ассигнования | Y135: 001 | Z135: 01 | AA135: 13 | AB135: 99 0 00 00080 | AC135: 800 | AD135: 100 | AE135: 100 | AF135: 100
X136: Исполнение судебных актов | Y136: 001 | Z136: 01 | AA136: 13 | AB136: 99 0 00 00080 | AC136: 830 | AD136: 100 | AE136: 100 | AF136: 100
X137: Иные расходы | Y137: 001 | Z137: 01 | AA137: 13 | AB137: 99 0 00 04000 | AD137: =AD138 -> 10000 | AE137: =AE138 -> 10000 | AF137: 0
X138: Иные расходы (обеспечение участия городского округа Лыткарино в государственных программах Московской области) | Y138: 001 | Z138: 01 | AA138: 13 | AB138: 99 0 00 04006 | AD138: =AD139 -> 10000 | AE138: =AE139 -> 10000 | AF138: 0
X139: Иные бюджетные ассигнования | Y139: 001 | Z139: 01 | AA139: 13 | AB139: 99 0 00 04006 | AC139: 800 | AD139: =AD140 -> 10000 | AE139: 10000 | AF139: 0
X140: Резервные средства | Y140: 001 | Z140: 01 | AA140: 13 | AB140: 99 0 00 04006 | AC140: 870 | AD140: 10000 | AE140: 10000 | AF140: 0
X141: Национальная оборона | Y141: 001 | Z141: 02 | AD141: =AD142+AD151 -> 4267.3 | AE141: =AE142+AE151 -> 4313.2 | AF141: =AF142+AF151 -> 4462.8
X142: Мобилизационная и вневойсковая подготовка | Y142: 001 | Z142: 02 | AA142: 03 | AD142: =AD143 -> 4067.3 | AE142: =AE143 -> 4249.2 | AF142: =AF143 -> 4398.8
X143: Муниципальная программа «Развитие институтов гражданского общества, повышение эффективности местного самоуправления и реализации молодежной политики» | Y143: 001 | Z143: 02 | AA143: 03 | AB143: 13 0 00 00000 | AD143: =AD144 -> 4067.3 | AE143: 4249.2 | AF143: 4398.8
X144: Обеспечивающая подпрограмма | Y144: 001 | Z144: 02 | AA144: 03 | AB144: 13 6 00 00000 | AD144: 4067.3 | AE144: 4249.2 | AF144: 4398.8
X145: Основное мероприятие «Осуществление первичного воинского учета» | Y145: 001 | Z145: 02 | AA145: 03 | AB145: 13 6 03 00000 | AD145: 4067.3 | AE145: 4249.2 | AF145: 4398.8
X146: Осуществление первичного воинского учета органами местного самоуправления поселений, муниципальных и городских округов | Y146: 001 | Z146: 02 | AA146: 03 | AB146: 13 6 03 51180 | AD146: =AD147+AD149 -> 4067.3 | AE146: =AE147+AE149 -> 4249.2 | AF146: 4398.8
X147: Расходы на выплаты персоналу в целях обеспечения выполнения функций государственными (муниципальными) органами, казенными учреждениями, органами управления государственными внебюджетными фондами | Y147: 001 | Z147: 02 | AA147: 03 | AB147: 13 6 03 51180 | AC147: 100 | AD147: =AD148 -> 4067.3 | AE147: =AE148 -> 4067.3 | AF147: =AF148 -> 4067.3
X148: Расходы на выплаты персоналу государственных (муниципальных) органов | Y148: 001 | Z148: 02 | AA148: 03 | AB148: 13 6 03 51180 | AC148: 120 | AD148: 4067.3 | AE148: 4067.3 | AF148: 4067.3
X149: Закупка товаров, работ и услуг для обеспечения государственных (муниципальных) нужд | Y149: 001 | Z149: 02 | AA149: 03 | AB149: 13 6 03 51180 | AC149: 200 | AD149: =AD150 -> 0 | AE149: =AE150 -> 181.9 | AF149: 331.5
X150: Иные закупки товаров, работ и услуг для обеспечения государственных (муниципальных) нужд | Y150: 001 | Z150: 02 | AA150: 03 | AB150: 13 6 03 51180 | AC150: 240 | AD150: 0 | AE150: 181.9 | AF150: 331.5
X151: Мобилизационная подготовка экономики | Y151: 001 | Z151: 02 | AA151: 04 | AD151: =AD152 -> 200 | AE151: 64 | AF151: 64
X152: Муниципальная программа «Управление имуществом и муниципальными финансами» | Y152: 001 | Z152: 02 | AA152: 04 | AB152: 12 0 00 00000 | AD152: 200 | AE152: 64 | AF152: 64
X153: Обеспечивающая подпрограмма | Y153: 001 | Z153: 02 | AA153: 04 | AB153: 12 5 00 00000 | AD153: =AD154 -> 200 | AE153: 64 | AF153: 64
X154: Основное мероприятие «Создание условий для реализации полномочий органов местного самоуправления» | Y154: 001 | Z154: 02 | AA154: 04 | AB154: 12 5 01 00000 | AD154: 200 | AE154: 64 | AF154: 64
X155: Организация и осуществление мероприятий по мобилизационной подготовке | Y155: 001 | Z155: 02 | AA155: 04 | AB155: 12 5 01 00720 | AD155: 200 | AE155: 64 | AF155: 64
X156: Закупка товаров, работ и услуг для обеспечения государственных (муниципальных) нужд | Y156: 001 | Z156: 02 | AA156: 04 | AB156: 12 5 01 00720 | AC156: 200 | AD156: 200 | AE156: 64 | AF156: 64
X157: Иные закупки товаров, работ и услуг для обеспечения государственных (муниципальных) нужд | Y157: 001 | Z157: 02 | AA157: 04 | AB157: 12 5 01 00720 | AC157: 240 | AD157: 200 | AE157: 64 | AF157: 64
X158: Национальная безопасность и правоохранительная деятельность | Y158: 001 | Z158: 03 | AD158: =AD159+AD170+AD207 -> 41771.5 | AE158: =AE159+AE170+AE207 -> 30686.8 | AF158: =AF159+AF170+AF207 -> 31174.8
X159: Гражданская оборона | Y159: 001 | Z159: 03 | AA159: 09 | AD159: =AD160 -> 1300 | AE159: =AE160 -> 1300 | AF159: =AF160 -> 1300
X160: Муниципальная программа «Безопасность и обеспечение безопасности жизнедеятельности населения» | Y160: 001 | Z160: 03 | AA160: 09 | AB160: 08 0 00 00000 | AD160: =AD161 -> 1300 | AE160: =AE161 -> 1300 | AF160: 1300
X161: Подпрограмма "Обеспечение мероприятий гражданской обороны на территории муниципального образования Московской области" | Y161: 001 | Z161: 03 | AA161: 09 | AB161: 08 3 00 00000 | AD161: =AD162+AD166 -> 1300 | AE161: =AE162+AE166 -> 1300 | AF161: 1300
X162: Основное мероприятие «Создание, развитие и поддержание в постоянной готовности систем оповещения населения об опасностях, возникающих при военных конфликтах или вследствие этих конфликтов, а также при чрезвычайных ситуациях природного и техногенного характера (происшествий) на территории муниципального образования Московской области» | Y162: 001 | Z162: 03 | AA162: 09 | AB162: 08 3 01 00000 | AD162: =AD163 -> 850 | AE162: 850 | AF162: 850
X163: Поддержка в состоянии постоянной готовности к использованию систем оповещения населения об опасности, объектов гражданской обороны | Y163: 001 | Z163: 03 | AA163: 09 | AB163: 08 3 01 00690 | AD163: 850 | AE163: 850 | AF163: 850
X164: Закупка товаров, работ и услуг для обеспечения государственных (муниципальных) нужд | Y164: 001 | Z164: 03 | AA164: 09 | AB164: 08 3 01 00690 | AC164: 200 | AD164: 850 | AE164: 850 | AF164: 850
X165: Иные закупки товаров, работ и услуг для обеспечения государственных (муниципальных) нужд | Y165: 001 | Z165: 03 | AA165: 09 | AB165: 08 3 01 00690 | AC165: 240 | AD165: 850 | AE165: 850 | AF165: 850
X166: Основное мероприятие «Развитие и совершенствование материально-технической базы учреждений в сфере гражданской обороны и защиты населения и территорий от чрезвычайных ситуаций» | Y166: 001 | Z166: 03 | AA166: 09 | AB166: 08 3 03 00000 | AD166: =AD167 -> 450 | AE166: 450 | AF166: 450
X167: Организация и осуществление мероприятий по территориальной обороне и гражданской обороне | Y167: 001 | Z167: 03 | AA167: 09 | AB167: 08 3 03 00670 | AD167: =AD168 -> 450 | AE167: 450 | AF167: 450
X168: Закупка товаров, работ и услуг для обеспечения государственных (муниципальных) нужд | Y168: 001 | Z168: 03 | AA168: 09 | AB168: 08 3 03 00670 | AC168: 200 | AD168: 450 | AE168: 450 | AF168: 450
X169: Иные закупки товаров, работ и услуг для обеспечения государственных (муниципальных) нужд | Y169: 001 | Z169: 03 | AA169: 09 | AB169: 08 3 03 00670 | AC169: 240 | AD169: 450 | AE169: 450 | AF169: 450
X170: Защита населения и территории от чрезвычайных ситуаций природного и техногенного характера,пожарная безопасность | Y170: 001 | Z170: 03 | AA170: 10 | AD170: =AD171 -> 25033.3 | AE170: =AE171 -> 21691 | AF170: 21691
X171: Муниципальная программа «Безопасность и обеспечение безопасности жизнедеятельности населения» | Y171: 001 | Z171: 03 | AA171: 10 | AB171: 08 0 00 00000 | AD171: =AD172+AD185+AD199+AD192 -> 25033.3 | AE171: =AE172+AE185+AE199+AE192 -> 21691 | AF171: =AF172+AF185+AF199+AF192 -> 21691
X172: Подпрограмма "Обеспечение мероприятий по защите населения и территории от чрезвычайных ситуаций" | Y172: 001 | Z172: 03 | AA172: 10 | AB172: 08 2 00 00000 | AD172: =AD177+AD173+AD181 -> 1142 | AE172: =AE177+AE173+AE181 -> 1142 | AF172: 1142
X173: Основное мероприятие "Развитие и эксплуатация Системы-112 на территории Московской области" | Y173: 001 | Z173: 03 | AA173: 10 | AB173: 08 2 01 00000 | AD173: =AD174 -> 535 | AE173: =AE174 -> 535 | AF173: 535
X174: Содержание и развитие Системы-112, ЕДДС | Y174: 001 | Z174: 03 | AA174: 10 | AB174: 08 2 01 01850 | AD174: =AD175 -> 535 | AE174: =AE175 -> 535 | AF174: 535
X175: Закупка товаров, работ и услуг для обеспечения государственных (муниципальных) нужд | Y175: 001 | Z175: 03 | AA175: 10 | AB175: 08 2 01 01850 | AC175: 200 | AD175: =AD176 -> 535 | AE175: =AE176 -> 535 | AF175: 535
X176: Иные закупки товаров, работ и услуг для обеспечения государственных (муниципальных) нужд | Y176: 001 | Z176: 03 | AA176: 10 | AB176: 08 2 01 01850 | AC176: 240 | AD176: 535 | AE176: 535 | AF176: 535
X177: Основное мероприятие "Создание резервов материальных ресурсов для ликвидации чрезвычайных ситуаций" | Y177: 001 | Z177: 03 | AA177: 10 | AB177: 08 2 02 00000 | AD177: =AD178 -> 340 | AE177: 340 | AF177: 340
X178: Участие в предупреждении и ликвидации последствий чрезвычайных ситуаций в границах городского округа | Y178: 001 | Z178: 03 | AA178: 10 | AB178: 08 2 02 00340 | AD178: 340 | AE178: 340 | AF178: 340
X179: Закупка товаров, работ и услуг для обеспечения государственных (муниципальных) нужд | Y179: 001 | Z179: 03 | AA179: 10 | AB179: 08 2 02 00340 | AC179: 200 | AD179: 340 | AE179: 340 | AF179: 340
X180: Иные закупки товаров, работ и услуг для обеспечения государственных (муниципальных) нужд | Y180: 001 | Z180: 03 | AA180: 10 | AB180: 08 2 02 00340 | AC180: 240 | AD180: 340 | AE180: 340 | AF180: 340
X181: Основное мероприятие "Реализация мероприятий по подготовке населения и специалистов и должностных лиц в области гражданской обороны, защиты населения и территории от чрезвычайных ситуаций природного и техногенного характера" | Y181: 001 | Z181: 03 | AA181: 10 | AB181: 08 2 03 00000 | AD181: =AD182 -> 267 | AE181: =AE182 -> 267 | AF181: 267
X182: Участие в предупреждении и ликвидации последствий чрезвычайных ситуаций в границах городского округа | Y182: 001 | Z182: 03 | AA182: 10 | AB182: 08 2 03 00340 | AD182: =AD183 -> 267 | AE182: 267 | AF182: 267
X183: Закупка товаров, работ и услуг для обеспечения государственных (муниципальных) нужд | Y183: 001 | Z183: 03 | AA183: 10 | AB183: 08 2 03 00340 | AC183: 200 | AD183: =AD184 -> 267 | AE183: =AE184 -> 267 | AF183: 267
X184: Иные закупки товаров, работ и услуг для обеспечения государственных (муниципальных) нужд | Y184: 001 | Z184: 03 | AA184: 10 | AB184: 08 2 03 00340 | AC184: 240 | AD184: 267 | AE184: 267 | AF184: 267
X185: Подпрограмма «Обеспечение пожарной безопасности на территории муниципального образования Московской области» | Y185: 001 | Z185: 03 | AA185: 10 | AB185: 08 4 00 00000 | AD185: =AD186 -> 1888 | AE185: 694 | AF185: 694
X186: Основное мероприятие "Повышение степени пожарной безопасности на территории муниципального образования Московской области" | Y186: 001 | Z186: 03 | AA186: 10 | AB186: 08 4 01 00000 | AD186: 1888 | AE186: 694 | AF186: 694
X187: Обеспечение первичных мер пожарной безопасности в границах городского округа | Y187: 001 | Z187: 03 | AA187: 10 | AB187: 08 4 01 00360 | AD187: =AD188+AD190 -> 1888 | AE187: =AE188+AE190 -> 694 | AF187: 694
X188: Закупка товаров, работ и услуг для обеспечения государственных (муниципальных) нужд | Y188: 001 | Z188: 03 | AA188: 10 | AB188: 08 4 01 00360 | AC188: 200 | AD188: =AD189 -> 1324 | AE188: =AE189 -> 325 | AF188: =AF189 -> 325
X189: Иные закупки товаров, работ и услуг для обеспечения государственных (муниципальных) нужд | Y189: 001 | Z189: 03 | AA189: 10 | AB189: 08 4 01 00360 | AC189: 240 | AD189: =999+325 -> 1324 | AE189: 325 | AF189: 325
X190: Предоставление субсидий бюджетным, автономным учреждениям и иным некоммерческим организациям | Y190: 001 | Z190: 03 | AA190: 10 | AB190: 08 4 01 00360 | AC190: 600 | AD190: =AD191 -> 564 | AE190: =AE191 -> 369 | AF190: 369
X191: Субсидии бюджетным учреждениям | Y191: 001 | Z191: 03 | AA191: 10 | AB191: 08 4 01 00360 | AC191: 610 | AD191: 564 | AE191: 369 | AF191: 369
X192: Подпрограмма "Обеспечение безопасности населения на водных объектах, расположенных на территории муниципального образования Московской области" | Y192: 001 | Z192: 03 | AA192: 10 | AB192: 08 5 00 00000 | AD192: =AD193 -> 770 | AE192: =AE193 -> 770 | AF192: 770
X193: Основное мероприятие "Выполнение мероприятий по безопасности населения на водных объектах, расположенных на территории Московской области" | Y193: 001 | Z193: 03 | AA193: 10 | AB193: 08 5 01 00000 | AD193: =AD194 -> 770 | AE193: 770 | AF193: 770
X194: Осуществление мероприятий по обеспечению безопасности людей на водных объектах, охране их жизни и здоровья | Y194: 001 | Z194: 03 | AA194: 10 | AB194: 08 5 01 00730 | AD194: =AD195+AD198 -> 770 | AE194: =AE195+AE198 -> 770 | AF194: 770
X195: Закупка товаров, работ и услуг для обеспечения государственных (муниципальных) нужд | Y195: 001 | Z195: 03 | AA195: 10 | AB195: 08 5 01 00730 | AC195: 200 | AD195: =AD196 -> 70 | AE195: 70 | AF195: 70
X196: Иные закупки товаров, работ и услуг для обеспечения государственных (муниципальных) нужд | Y196: 001 | Z196: 03 | AA196: 10 | AB196: 08 5 01 00730 | AC196: 240 | AD196: 70 | AE196: 70 | AF196: 70
X197: Предоставление субсидий бюджетным, автономным учреждениям и иным некоммерческим организациям | Y197: 001 | Z197: 03 | AA197: 10 | AB197: 08 5 01 00730 | AC197: 600 | AD197: =AD198 -> 700 | AE197: =AE198 -> 700 | AF197: 700
X198: Субсидии бюджетным учреждениям | Y198: 001 | Z198: 03 | AA198: 10 | AB198: 08 5 01 00730 | AC198: 610 | AD198: 700 | AE198: 700 | AF198: 700
X199: Обеспечивающая подпрограмма | Y199: 001 | Z199: 03 | AA199: 10 | AB199: 08 6 00 00000 | AD199: =AD200 -> 21233.3 | AE199: =AE200 -> 19085 | AF199: 19085
X200: Основное мероприятие «Создание условий для реализации полномочий органов местного самоуправления» | Y200: 001 | Z200: 03 | AA200: 10 | AB200: 08 6 01 00000 | AD200: =AD201+AD204 -> 21233.3 | AE200: =AE201+AE204 -> 19085 | AF200: 19085
X201: Содержание и развитие муниципальных экстренных оперативных служб | Y201: 001 | Z201: 03 | AA201: 10 | AB201: 08 6 01 01020 | AD201: =AD202 -> 20217.9 | AE201: =AE202 -> 18069.6 | AF201: 18069.6
X202: Расходы на выплаты персоналу в целях обеспечения выполнения функций государственными (муниципальными) органами, казенными учреждениями, органами управления государственными внебюджетными фондами | Y202: 001 | Z202: 03 | AA202: 10 | AB202: 08 6 01 01020 | AC202: 100 | AD202: =AD203 -> 20217.9 | AE202: =AE203 -> 18069.6 | AF202: =AF203 -> 18069.6
X203: Расходы на выплаты персоналу казенных учреждений | Y203: 001 | Z203: 03 | AA203: 10 | AB203: 08 6 01 01020 | AC203: 110 | AD203: 20217.9 | AE203: 18069.6 | AF203: 18069.6
... 714 more rows

Sheet Лист1
